Workbook

Sheet Data base original
B1: LOANS (*) | G1: INTEREST RATES BY TYPE (*) | R1: MONETARY AGGREGATES (*) | AP1: INTEREST RATES BY MATURITY (*)
B2: loans individual balance sheets | G2: consumer ($) | K2: commercial ($) | N2: foreign trade (US$) | Q2: mortgage (UF) | R2: M1 | W2: M2 | AD2: M3 | AP2: 30 to 89 days | AR2: 90 days to 1 year | AT2: 1 to 3 years | AV2: more than 3 years
B3: commercial | C3: consumer | D3: mortgage | E3: foreign trade | F3: total | G3: consumer average | H3: credit card | I3: installment credit | J3: overdraft | K3: commercial average | L3: credit card | M3: overdraft | N3: foreign trade average | O3: export | P3: import | R3: monetary base | S3: currency in circulation | T3: current account deposits | U3: other checkable deposits | V3: M1 | W3: time deposits | X3: savings deposits | Y3: mutual funds quotas in instruments with maturity of up to 1 year | Z3: deposits of savings and credit cooperatives | AA3: mutual funds investments in M2 | AB3: savings and credit cooperatives investments in M2 | AC3: M2 | AD3: foreign currency deposits | AE3: Central Bank instruments | AF3: treasury bonds | AG3: mortgage bonds | AH3: commercial papers | AI3: corporate bonds | AJ3: other mutual funds quotas | AK3: AFP voluntary savings quotas | AL3: mutual funds investments in M3 | AM3: AFP investments in M3 | AN3: M3 | AP3: deposits | AQ3: loans | AR3: deposits | AS3: loans | AT3: deposits | AU3: loans | AV3: deposits | AW3: loans
B4: billions of pesos | G4: rates on an annual basis 360 days, percentage | R4: billions of pesos | AP4: rates on an annual basis 360 days, percentage
B5: Source: Central Bank of Chile and Superintendency of Banks and Financial Institutions | G5: Source: Central Bank of Chile | R5: Source: Central Bank of Chile | AP5: Source: Central Bank of Chile
B6: F022.COMBI.STO.Z.Z.CLP.M | C6: F022.CONBI.STO.Z.Z.CLP.M | D6: F022.VIVBI.STO.Z.Z.CLP.M | E6: F022.CMXBI.STO.Z.Z.CLP.M | F6: F022.CTOBI.STO.Z.Z.CLP.M | G6: F022.CON.TIP.Z.NO.Z.M | H6: F022.CONTARJ.TIP.Z.NO.Z.M | I6: F022.CONCUOT.TIP.Z.NO.Z.M | J6: F022.CONSOBR.TIP.Z.NO.Z.M | K6: F022.COM.TIP.Z.NO.Z.M | L6: F022.COMCUOT.TIP.Z.NO.Z.M | M6: F022.COMSOBR.TIP.Z.NO.Z.M | N6: F022.CMX.TIP.Z.US.Z.M | O6: F022.CMXEXPT.TIP.Z.US.Z.M | P6: F022.CMXIMPT.TIP.Z.US.Z.M | Q6: F022.VIV.TIP.MA03.UF.Z.M | R6: F021.BMO.STO.N.CLP.0.M | S6: F021.CIR.STO.N.CLP.0.M | T6: F021.DCC.STO.N.CLP.0.M | U6: F021.DA.STO.N.CLP.0.M | V6: F021.M1.STO.N.CLP.0.M | W6: F021.DP.STO.N.CLP.0.M | X6: F021.AHP.STO.N.CLP.0.M | Y6: F021.FM.STO.N.CLP.0.M | Z6: F021.CAC.STO.N.CLP.0.M | AA6: F021.FM2.STO.N.CLP.0.M | AB6: F021.CA2.STO.N.CLP.0.M | AC6: F021.M2.STO.N.CLP.0.M | AD6: F021.DME.STO.N.CLP.0.M | AE6: F021.DBC.STO.N.CLP.0.M | AF6: F021.BOT.STO.N.CLP.0.M | AG6: F021.LCR.STO.N.CLP.0.M | AH6: F021.ECO.STO.N.CLP.0.M | AI6: F021.BOE.STO.N.CLP.0.M | AJ6: F021.FMR.STO.N.CLP.0.M | AK6: F021.CAV.STO.N.CLP.0.M | AL6: F021.FM3.STO.N.CLP.0.M | AM6: F021.AF3.STO.N.CLP.0.M | AN6: F021.M3.STO.N.CLP.0.M | AP6: F022.CAP.TIN.D089.NO.Z.M | AQ6: F022.COL.TIN.D089.NO.Z.M | AR6: F022.CAP.TIN.AN01.NO.Z.M | AS6: F022.CAP.TIN.Z.NO.Z.M | AT6: F022.CAP.TIN.AN03.NO.Z.M | AU6: F022.COL.TIN.AN03.NO.Z.M | AV6: F022.CAP.TIN.MA03.NO.Z.M | AW6: F022.COL.TIN.MA03.NO.Z.M
A11: 2006-01-01 | B11: 25877.189 | C11: 5571.003 | D11: 9317.488 | E11: 3905.426 | F11: 44671.106 | G11: 26.84010551 | K11: 10.27317257 | N11: 5.289234388 | Q11: 5.31 | R11: 2757.702 | S11: 1694 | T11: 4523.31 | U11: 1360.3 | V11: 7577.61 | W11: 23131.4875 | X11: 2244.97 | Y11: 3330.57 | Z11: 110.16 | AA11: 3111.66 | AB11: 8.47 | AC11: 33274.6675 | AD11: 3263.92 | AE11: 6603.07 | AF11: 1040.99 | AG11: 4253.96 | AH11: 352.74 | AI11: 8243.95 | AJ11: 3443.76 | AK11: 408.65 | AL11: 2312.86 | AM11: 161.41 | AN11: 58411.4375 | AP11: 4.92 | AQ11: 7.56 | AR11: 5.52 | AS11: 14.76 | AT11: 6.24 | AU11: 17.64 | AV11: 6.36 | AW11: 19.92
A12: 2006-02-01 | B12: 25995.919 | C12: 5649.901 | D12: 9409.751 | E12: 3971.411 | F12: 45026.982 | G12: 28.08001067 | K12: 10.69175166 | N12: 5.488292681 | Q12: 5.33 | R12: 2800.771 | S12: 1718.6 | T12: 4534.7425 | U12: 1295.0275 | V12: 7548.37 | W12: 23439.3055 | X12: 2237.55 | Y12: 3233.72 | Z12: 123.01 | AA12: 3034.93 | AB12: 5.84 | AC12: 33541.1855 | AD12: 3379.45 | AE12: 6469.58 | AF12: 1053.09 | AG12: 4269.98 | AH12: 358.48 | AI12: 8174.45 | AJ12: 3670.98 | AK12: 420.38 | AL12: 2365.22 | AM12: 163.97 | AN12: 58808.3855 | AP12: 4.56 | AQ12: 7.56 | AR12: 5.16 | AS12: 15.48 | AT12: 6.36 | AU12: 17.64 | AV12: 7.2 | AW12: 18.6
A13: 2006-03-01 | B13: 26532.268 | C13: 5831.413 | D13: 9540.067 | E13: 4086.012 | F13: 45989.76 | G13: 25.2206299 | K13: 10.24201215 | N13: 5.847508201 | Q13: 5.22 | R13: 2897.087 | S13: 1708.3 | T13: 4530.39725 | U13: 1300.88275 | V13: 7539.58 | W13: 23947.409 | X13: 2238.86 | Y13: 3752.51 | Z13: 127.13 | AA13: 3546.99 | AB13: 6.15 | AC13: 34052.349 | AD13: 3311.26 | AE13: 6343.46 | AF13: 1063.27 | AG13: 4348.74 | AH13: 354.14 | AI13: 8242.23 | AJ13: 3777.33 | AK13: 430.6 | AL13: 2420.59 | AM13: 166.01 | AN13: 59336.779 | AP13: 4.68 | AQ13: 7.32 | AR13: 5.28 | AS13: 14.64 | AT13: 6 | AU13: 15.96 | AV13: 7.2 | AW13: 19.08
A14: 2006-04-01 | B14: 27144.354 | C14: 5934.604 | D14: 9634.727 | E14: 4126.392 | F14: 46840.077 | G14: 26.81238125 | K14: 10.69633422 | N14: 5.653472987 | Q14: 5.04 | R14: 3019.939 | S14: 1710.9 | T14: 4668.0777 | U14: 1257.6623 | V14: 7636.64 | W14: 24350.179 | X14: 2239.71 | Y14: 4222.62 | Z14: 123.45 | AA14: 4032.18 | AB14: 11.32 | AC14: 34529.099 | AD14: 3342.52 | AE14: 6252.99 | AF14: 1067.84 | AG14: 4250.3 | AH14: 330.64 | AI14: 8372.4 | AJ14: 3828.1 | AK14: 445.85 | AL14: 2485.1 | AM14: 168.26 | AN14: 59766.379 | AP14: 4.8 | AQ14: 7.44 | AR14: 5.52 | AS14: 14.52 | AT14: 6.12 | AU14: 18.84 | AV14: 6.96 | AW14: 20.52
A15: 2006-05-01 | B15: 27224.795 | C15: 6010.176 | D15: 9795.954 | E15: 4360.806 | F15: 47391.731 | G15: 27.49968525 | K15: 10.69976304 | N15: 6.069324926 | Q15: 5.03 | R15: 2891.704 | S15: 1719 | T15: 4778.19615 | U15: 1198.34385 | V15: 7695.54 | W15: 24721.8365 | X15: 2258.06 | Y15: 3957.82 | Z15: 124.65 | AA15: 3797.24 | AB15: 11.71 | AC15: 34948.9565 | AD15: 3514.52 | AE15: 6039.46 | AF15: 1065.26 | AG15: 4309.05 | AH15: 313.96 | AI15: 8445.32 | AJ15: 3866.9 | AK15: 455.5 | AL15: 2471.92 | AM15: 179.66 | AN15: 60307.3465 | AP15: 4.92 | AQ15: 7.44 | AR15: 5.52 | AS15: 15.12 | AT15: 6.12 | AU15: 18.48 | AW15: 20.04
A16: 2006-06-01 | B16: 27538.088 | C16: 6095.037 | D16: 9949.017 | E16: 4700.001 | F16: 48282.143 | G16: 27.54061454 | K16: 10.0914888 | N16: 6.098626848 | Q16: 5 | R16: 2910.86 | S16: 1755.2 | T16: 4677.9574 | U16: 1388.6426 | V16: 7821.8 | W16: 24974.549 | X16: 2289.71 | Y16: 4054.03 | Z16: 128.52 | AA16: 3856.88 | AB16: 7.17 | AC16: 35404.559 | AD16: 3629.06 | AE16: 5881.13 | AF16: 1057.38 | AG16: 4419.18 | AH16: 316.05 | AI16: 8469.06 | AJ16: 3777.34 | AK16: 452.49 | AL16: 2419.68 | AM16: 184.36 | AN16: 60802.209 | AP16: 5.04 | AQ16: 7.56 | AR16: 5.4 | AS16: 14.28 | AT16: 6.12 | AU16: 17.04 | AV16: 7.56 | AW16: 16.8
A17: 2006-07-01 | B17: 27878.936 | C17: 6188.033 | D17: 10134.075 | E17: 4504.95 | F17: 48705.994 | G17: 27.28323577 | K17: 9.956696994 | N17: 6.294930372 | Q17: 5.1 | R17: 2889.248 | S17: 1744.3 | T17: 4593.77055 | U17: 1352.11945 | V17: 7690.19 | W17: 25128.757 | X17: 2298.52 | Y17: 4091.77 | Z17: 128.53 | AA17: 3878.73 | AB17: 8.41 | AC17: 35450.627 | AD17: 3630.31 | AE17: 5722.86 | AF17: 1063.1 | AG17: 4334.56 | AH17: 337.86 | AI17: 8430.67 | AJ17: 3818.66 | AK17: 455.8 | AL17: 2486.57 | AM17: 185.74 | AN17: 60572.137 | AP17: 5.04 | AQ17: 7.8 | AR17: 5.52 | AS17: 13.92 | AT17: 6.12 | AU17: 17.88 | AV17: 7.68 | AW17: 19.32
A18: 2006-08-01 | B18: 28247.624 | C18: 6337.786 | D18: 10348.575 | E18: 4524.201 | F18: 49458.186 | G18: 26.63961018 | K18: 10.30839481 | N18: 6.222757439 | Q18: 5.05 | R18: 2764.59 | S18: 1724.9 | T18: 4577.3335 | U18: 1355.3565 | V18: 7657.59 | W18: 25565.7825 | X18: 2303.31 | Y18: 3801.64 | Z18: 127.65 | AA18: 3148.09 | AB18: 9.9 | AC18: 36297.9825 | AD18: 3597.79 | AE18: 6004.8 | AF18: 1071.25 | AG18: 4281.36 | AH18: 363.45 | AI18: 8510.22 | AJ18: 4004.45 | AK18: 469 | AL18: 2893.12 | AM18: 189.31 | AN18: 61517.8725 | AP18: 5.16 | AQ18: 8.16 | AR18: 5.52 | AS18: 14.16 | AT18: 6.12 | AU18: 17.28 | AV18: 7.8 | AW18: 15.96
A19: 2006-09-01 | B19: 28286.672 | C19: 6452.131 | D19: 10481.288 | E19: 4639.071 | F19: 49859.162 | G19: 26.5372798 | K19: 10.34509493 | N19: 6.288846604 | Q19: 5.01 | R19: 3018.459 | S19: 1805.7 | T19: 4605.4865 | U19: 1513.8235 | V19: 7925.01 | W19: 26010.968 | X19: 2309.45 | Y19: 4298.29 | Z19: 151.95 | AA19: 3592.98 | AB19: 9.93 | AC19: 37092.758 | AD19: 3605.23 | AE19: 6394.11 | AF19: 1079.8 | AG19: 4379.06 | AH19: 371.07 | AI19: 8652.03 | AJ19: 4126.88 | AK19: 482.11 | AL19: 2999.78 | AM19: 191.47 | AN19: 62991.798 | AP19: 5.16 | AQ19: 8.16 | AR19: 5.52 | AS19: 14.4 | AT19: 6 | AU19: 17.28 | AV19: 6.12 | AW19: 15.6
A20: 2006-10-01 | B20: 28525.246 | C20: 6567.021 | D20: 10583.667 | E20: 4580.337 | F20: 50256.271 | G20: 26.87426644 | K20: 10.32842561 | N20: 6.177634104 | Q20: 4.95 | R20: 3003.052637 | S20: 1781.4 | T20: 4572.5085 | U20: 1385.6615 | V20: 7739.57 | W20: 26344.011 | X20: 2313.98 | Y20: 4781.81 | Z20: 176.88 | AA20: 4504.55 | AB20: 11.2 | AC20: 36840.501 | AD20: 3638.46 | AE20: 6187.42 | AF20: 1089.92 | AG20: 4337.05 | AH20: 371.05 | AI20: 8713.07 | AJ20: 4168.04 | AK20: 498.26 | AL20: 2737.7 | AM20: 193.7 | AN20: 62912.371 | AP20: 5.16 | AQ20: 8.04 | AR20: 5.52 | AS20: 14.16 | AT20: 5.88 | AU20: 18.6 | AV20: 6.48 | AW20: 20.28
A21: 2006-11-01 | B21: 29148.369 | C21: 6690.599 | D21: 10695.628 | E21: 4696.927 | F21: 51231.523 | G21: 26.97083773 | K21: 10.16942247 | N21: 6.107811217 | Q21: 4.82 | R21: 3011.76559 | S21: 1804.2 | T21: 4581.5053 | U21: 1481.5347 | V21: 7867.24 | W21: 26760.863 | X21: 2304.87 | Y21: 4571.5 | Z21: 177.92 | AA21: 4354.2 | AB21: 12.42 | AC21: 37315.773 | AD21: 3679.09 | AE21: 6044.24 | AF21: 1082.9 | AG21: 4440.1 | AH21: 368.02 | AI21: 8780.32 | AJ21: 4245.68 | AK21: 516.44 | AL21: 2714.6 | AM21: 197.76 | AN21: 63560.203 | AP21: 5.16 | AQ21: 7.92 | AR21: 5.52 | AS21: 14.4 | AT21: 5.76 | AU21: 18.12 | AV21: 7.08 | AW21: 16.92
A22: 2006-12-01 | B22: 29910.708 | C22: 6786.221 | D22: 10799.63 | E22: 4805.611 | F22: 52302.17 | G22: 27.08498 | K22: 10.24621563 | N22: 6.077732562 | Q22: 4.77 | R22: 3504.068652 | S22: 1958.1 | T22: 4912.8567 | U22: 1709.1433 | V22: 8580.1 | W22: 27389.04 | X22: 2282.73 | Y22: 4613.79 | Z22: 174.56 | AA22: 4388.79 | AB22: 12.87 | AC22: 38638.56 | AD22: 3630.32 | AE22: 5879.37 | AF22: 1058.49 | AG22: 4467.42 | AH22: 364.22 | AI22: 8999.03 | AJ22: 4359.52 | AK22: 538.89 | AL22: 2696.8 | AM22: 202.16 | AN22: 65036.86 | AP22: 5.28 | AQ22: 7.68 | AR22: 5.64 | AS22: 13.44 | AT22: 5.88 | AU22: 18 | AV22: 6.12 | AW22: 18.72
A23: 2007-01-01 | B23: 30104.209 | C23: 6864.27 | D23: 10928.962 | E23: 4950.368 | F23: 52847.809 | G23: 27.90456465 | K23: 10.08135097 | N23: 6.104881737 | Q23: 4.68 | R23: 3035.860502 | S23: 1944.3 | T23: 5174.8193 | U23: 1672.7307 | V23: 8791.85 | W23: 28083.5855 | X23: 2275.7 | Y23: 4558.09 | Z23: 170.67 | AA23: 4356.94 | AB23: 12.05 | AC23: 39510.9055 | AD23: 3630.65 | AE23: 5344.41 | AF23: 1039.43 | AG23: 4352.59 | AH23: 361.04 | AI23: 9272.74 | AJ23: 4565.59 | AK23: 558.19 | AL23: 2684.67 | AM23: 208.05 | AN23: 65742.8255 | AP23: 5.04 | AQ23: 7.44 | AR23: 5.4 | AS23: 13.56 | AT23: 5.64 | AU23: 17.88 | AV23: 6.12 | AW23: 20.04
A24: 2007-02-01 | B24: 30453.855 | C24: 6925.246 | D24: 11070.237 | E24: 4981.741 | F24: 53431.079 | G24: 28.68203617 | K24: 9.948701138 | N24: 6.092187817 | Q24: 4.58 | R24: 3250.881288 | S24: 1974 | T24: 5245.00435 | U24: 1520.43565 | V24: 8739.44 | W24: 28586.566 | X24: 2273.95 | Y24: 4242.7 | Z24: 172.72 | AA24: 4138.21 | AB24: 12.09 | AC24: 39865.076 | AD24: 3755.68 | AE24: 5159.6 | AF24: 1049.47 | AG24: 4365.9 | AH24: 363.87 | AI24: 9393.7 | AJ24: 4755.82 | AK24: 566.44 | AL24: 2714.44 | AM24: 205.13 | AN24: 66355.986 | AP24: 5.04 | AQ24: 8.04 | AR24: 5.4 | AS24: 14.16 | AT24: 5.64 | AU24: 19.2 | AV24: 6.6 | AW24: 16.32
A25: 2007-03-01 | B25: 30797.955 | C25: 7057.045 | D25: 11237.238 | E25: 4974.938 | F25: 54067.176 | G25: 26.98843784 | K25: 9.818966191 | N25: 5.992904891 | Q25: 4.56 | R25: 3466.206843 | S25: 1967.6 | T25: 5356.8645 | U25: 1457.0655 | V25: 8781.53 | W25: 29060.5155 | X25: 2277.19 | Y25: 4764.35 | Z25: 176.15 | AA25: 4639.47 | AB25: 11.9 | AC25: 40408.3655 | AD25: 3758.09 | AE25: 5135.92 | AF25: 1035.84 | AG25: 4402.84 | AH25: 369.8 | AI25: 9433.62 | AJ25: 4940.53 | AK25: 574.64 | AL25: 2836.48 | AM25: 210.66 | AN25: 67012.5055 | AP25: 5.04 | AQ25: 7.8 | AR25: 5.28 | AS25: 14.16 | AT25: 5.52 | AU25: 17.64 | AV25: 6.6 | AW25: 13.32
A26: 2007-04-01 | B26: 31287.592 | C26: 7145.561 | D26: 11391.856 | E26: 5143.099 | F26: 54968.108 | G26: 27.73739058 | K26: 9.949041121 | N26: 6.026521309 | Q26: 4.54 | R26: 3604.738 | S26: 1972.8 | T26: 5462.21375 | U26: 1561.00625 | V26: 8996.02 | W26: 29482.415 | X26: 2277.08 | Y26: 5255.88 | Z26: 177.89 | AA26: 5054.87 | AB26: 14.28 | AC26: 41120.135 | AD26: 3808.68 | AE26: 5050.13 | AF26: 1012.14 | AG26: 4048.81 | AH26: 372.27 | AI26: 9423.35 | AJ26: 5234.03 | AK26: 598.3 | AL26: 2952.32 | AM26: 213.44 | AN26: 67502.085 | AP26: 5.04 | AQ26: 7.8 | AR26: 5.4 | AS26: 13.08 | AT26: 5.64 | AU26: 17.16 | AV26: 6 | AW26: 18.48
A27: 2007-05-01 | B27: 31686.086 | C27: 7187.303 | D27: 11616.996 | E27: 5319.282 | F27: 55809.667 | G27: 27.88672215 | K27: 10.02925436 | N27: 6.07313798 | Q27: 4.39 | R27: 3718.443515 | S27: 1985.9 | T27: 5487.34035 | U27: 1575.64965 | V27: 9048.89 | W27: 29997.8555 | X27: 2292.68 | Y27: 5086.24 | Z27: 189.13 | AA27: 4850.32 | AB27: 16.92 | AC27: 41747.5555 | AD27: 3961.75 | AE27: 4914.41 | AF27: 1067.46 | AG27: 4189.04 | AH27: 372.17 | AI27: 9500.48 | AJ27: 5422.62 | AK27: 625.74 | AL27: 2894.61 | AM27: 220.86 | AN27: 68685.7555 | AP27: 5.04 | AQ27: 7.92 | AR27: 5.64 | AS27: 13.44 | AT27: 5.76 | AU27: 14.64 | AV27: 6.72 | AW27: 17.64
A28: 2007-06-01 | B28: 32190.674 | C28: 7240.03 | D28: 11889.188 | E28: 5286.989 | F28: 56606.881 | G28: 27.94304786 | K28: 9.824916651 | N28: 6.135268702 | Q28: 4.42 | R28: 3666.478785 | S28: 2006.5 | T28: 5406.4358 | U28: 1679.8542 | V28: 9092.79 | W28: 30655.1505 | X28: 2317.05 | Y28: 5315.17 | Z28: 203.23 | AA28: 5089.07 | AB28: 16.45 | AC28: 42477.8705 | AD28: 3932.11 | AE28: 4718.73 | AF28: 1133.57 | AG28: 4213.57 | AH28: 381.92 | AI28: 9597.02 | AJ28: 5560.25 | AK28: 650.12 | AL28: 2805.23 | AM28: 228.88 | AN28: 69631.0505 | AP28: 5.4 | AQ28: 7.44 | AR28: 5.52 | AS28: 12.84 | AT28: 6.36 | AU28: 16.2 | AV28: 7.56 | AW28: 17.16
A29: 2007-07-01 | B29: 32687.58 | C29: 7329.254 | D29: 12122.924 | E29: 5263.157 | F29: 57402.915 | G29: 28.85455598 | K29: 9.985638792 | N29: 6.062530955 | Q29: 4.51 | R29: 3650.588446 | S29: 1991.3 | T29: 5397.08635 | U29: 1752.80365 | V29: 9141.19 | W29: 31072.5525 | X29: 2321.37 | Y29: 5253.62 | Z29: 211.65 | AA29: 4889.29 | AB29: 17.42 | AC29: 43093.6725 | AD29: 3926.29 | AE29: 4653.62 | AF29: 1160.63 | AG29: 4096.74 | AH29: 389.69 | AI29: 9609.62 | AJ29: 5782.33 | AK29: 671.26 | AL29: 2805.97 | AM29: 234.6 | AN29: 70343.2825 | AP29: 5.4 | AQ29: 7.56 | AR29: 5.76 | AS29: 13.08 | AT29: 6.36 | AU29: 15.36 | AV29: 7.08 | AW29: 17.88
A30: 2007-08-01 | B30: 33344.21 | C30: 7456.144 | D30: 12409.393 | E30: 5359.948 | F30: 58569.695 | G30: 27.59263685 | K30: 9.911397133 | N30: 6.19990909 | Q30: 4.69 | R30: 3502.967405 | S30: 1969.9 | T30: 5408.1836 | U30: 1743.3664 | V30: 9121.45 | W30: 31127.8495 | X30: 2327.08 | Y30: 5407.28 | Z30: 220.73 | AA30: 4995.61 | AB30: 19.91 | AC30: 43188.8695 | AD30: 3958.81 | AE30: 4744.24 | AF30: 1160.28 | AG30: 4146.57 | AH30: 397.83 | AI30: 9734.06 | AJ30: 5885.32 | AK30: 672.26 | AL30: 2898.11 | AM30: 233.27 | AN30: 70756.8595 | AP30: 5.52 | AQ30: 7.68 | AR30: 6.12 | AS30: 12.84 | AT30: 6.6 | AU30: 15.72 | AV30: 7.8 | AW30: 18.6
A31: 2007-09-01 | B31: 34064.347 | C31: 7529.568 | D31: 12721.028 | E31: 5310.816 | F31: 59625.759 | G31: 28.88864487 | K31: 10.12611294 | N31: 6.144116389 | Q31: 4.79 | R31: 4118.501882 | S31: 2059.3 | T31: 5397.76535 | U31: 1952.16465 | V31: 9409.23 | W31: 31394.4335 | X31: 2340.96 | Y31: 5425.09 | Z31: 229.26 | AA31: 5262.59 | AB31: 19.99 | AC31: 43516.3935 | AD31: 3967.61 | AE31: 4687.45 | AF31: 1185.22 | AG31: 4227.91 | AH31: 397.53 | AI31: 9905.39 | AJ31: 5964.2 | AK31: 681.5 | AL31: 2984.07 | AM31: 225.16 | AN31: 71323.9735 | AP31: 5.88 | AQ31: 8.4 | AR31: 6.36 | AS31: 14.04 | AT31: 6.72 | AU31: 16.32 | AV31: 7.68 | AW31: 19.68
A32: 2007-10-01 | B32: 34709.024 | C32: 7628.024 | D32: 12982.869 | E32: 5237.779 | F32: 60557.696 | G32: 29.01098504 | K32: 10.15083518 | N32: 5.853360697 | Q32: 4.83 | R32: 3533.582524 | S32: 2018.9 | T32: 5351.5122 | U32: 1820.4178 | V32: 9190.83 | W32: 32192.0455 | X32: 2357.69 | Y32: 5528.08 | Z32: 234.83 | AA32: 5508.11 | AB32: 17.06 | AC32: 43978.3055 | AD32: 4089.22 | AE32: 4596.54 | AF32: 1184.14 | AG32: 4137.27 | AH32: 393.47 | AI32: 10064.37 | AJ32: 6212.2 | AK32: 716.88 | AL32: 3014.92 | AM32: 230.2 | AN32: 72127.2755 | AP32: 5.88 | AQ32: 9.72 | AR32: 6.36 | AS32: 14.4 | AT32: 6.84 | AU32: 15.84 | AV32: 7.44 | AW32: 19.44
A33: 2007-11-01 | B33: 35764.525 | C33: 7740.683 | D33: 13182.559 | E33: 5543.69 | F33: 62231.457 | G33: 28.91827827 | K33: 10.16639217 | N33: 5.682430127 | Q33: 4.81 | R33: 3515.065866 | S33: 2041.2 | T33: 5462.3509 | U33: 2066.9791 | V33: 9570.53 | W33: 33221.2125 | X33: 2363.57 | Y33: 6338.14 | Z33: 229.9 | AA33: 6247.86 | AB33: 15.74 | AC33: 45459.7525 | AD33: 4144.98 | AE33: 4450.98 | AF33: 1231.92 | AG33: 4167.13 | AH33: 405.73 | AI33: 10272.13 | AJ33: 6296.57 | AK33: 723.79 | AL33: 3081.23 | AM33: 242.1 | AN33: 73829.6525 | AP33: 5.88 | AQ33: 10.44 | AR33: 6.36 | AS33: 14.04 | AT33: 6.84 | AU33: 15.96 | AV33: 10.2 | AW33: 18.24
A34: 2007-12-01 | B34: 36669.066 | C34: 7827.114911 | D34: 13431.649 | E34: 5403.179 | F34: 63331.00891 | G34: 29.9564244 | K34: 10.20759446 | N34: 5.890780774 | Q34: 4.83 | R34: 3660.577562 | S34: 2210.3 | T34: 5873.0165 | U34: 2046.5435 | V34: 10129.86 | W34: 34305.203 | X34: 2356.44 | Y34: 6176.76 | Z34: 221.39 | AA34: 6053.72 | AB34: 16.56 | AC34: 47119.373 | AD34: 4142.89 | AE34: 4082.7 | AF34: 1327.55 | AG34: 4138.16 | AH34: 389.53 | AI34: 10443.17 | AJ34: 6094.77 | AK34: 706.55 | AL34: 3017.96 | AM34: 248.08 | AN34: 75178.653 | AP34: 6.48 | AQ34: 9.84 | AR34: 6.96 | AS34: 13.32 | AT34: 7.08 | AU34: 16.08 | AV34: 7.32 | AW34: 19.2
A35: 2008-01-01 | B35: 36532.93751 | C35: 7916.375832 | D35: 13711.53259 | E35: 5095.808267 | F35: 63256.6542 | G35: 32.06297709 | K35: 10.54607256 | N35: 4.909974714 | Q35: 4.8 | R35: 3746.548395 | S35: 2190.6 | T35: 6114.3455 | U35: 1899.1545 | V35: 10204.1 | W35: 35106.785 | X35: 2362.9 | Y35: 5566.9 | Z35: 229.4 | AA35: 5520 | AB35: 18.5 | AC35: 47931.585 | AD35: 4208.8 | AE35: 4142.8 | AF35: 1397.2 | AG35: 4131.3 | AH35: 368.7 | AI35: 10541.2 | AJ35: 5674.1 | AK35: 666 | AL35: 2953.2 | AM35: 253.8 | AN35: 75854.685 | AP35: 6.36 | AQ35: 10.68 | AR35: 6.6 | AS35: 14.04 | AT35: 7.32 | AU35: 18 | AV35: 7.92 | AW35: 21.36
A36: 2008-02-01 | B36: 36902.59123 | C36: 7975.891219 | D36: 13854.58514 | E36: 5196.531323 | F36: 63929.59891 | G36: 31.96068943 | K36: 10.52429586 | N36: 4.19445297 | Q36: 4.9 | R36: 3755.412361 | S36: 2228.8 | T36: 6031.2591 | U36: 1896.7409 | V36: 10156.8 | W36: 35534.999 | X36: 2374.7 | Y36: 5860.6 | Z36: 240.4 | AA36: 5697.6 | AB36: 16.6 | AC36: 48453.299 | AD36: 4258.9 | AE36: 4376.3 | AF36: 1301.8 | AG36: 4084 | AH36: 369.8 | AI36: 10558.6 | AJ36: 5491.9 | AK36: 638.8 | AL36: 3171 | AM36: 249 | AN36: 76113.399 | AP36: 6.24 | AQ36: 10.68 | AR36: 6.6 | AS36: 13.8 | AT36: 7.08 | AU36: 17.88 | AV36: 7.68 | AW36: 19.68
A37: 2008-03-01 | B37: 37065.95947 | C37: 8059.479026 | D37: 14054.6845 | E37: 5151.148232 | F37: 64331.27123 | G37: 29.8751708 | K37: 10.60816322 | N37: 3.909952199 | Q37: 4.82 | R37: 3909.475941 | S37: 2229.3 | T37: 6007.5789 | U37: 1864.8211 | V37: 10101.7 | W37: 36025.548 | X37: 2380.3 | Y37: 5949.5 | Z37: 250.8 | AA37: 5714.1 | AB37: 14.8 | AC37: 48978.948 | AD37: 4172.9 | AE37: 4370.4 | AF37: 1336.5 | AG37: 4081.2 | AH37: 365.9 | AI37: 10620.1 | AJ37: 5702.6 | AK37: 638.3 | AL37: 3450 | AM37: 258.2 | AN37: 76558.648 | AP37: 6.48 | AQ37: 10.68 | AR37: 6.96 | AS37: 14.16 | AT37: 7.32 | AU37: 16.44 | AV37: 7.44 | AW37: 19.08
A38: 2008-04-01 | B38: 37929.25986 | C38: 8157.740165 | D38: 14333.60615 | E38: 5818.984932 | F38: 66239.59111 | G38: 30.12632972 | K38: 10.5928774 | N38: 4.016354928 | Q38: 4.76 | R38: 3768.92997 | S38: 2213.8 | T38: 6050.28365 | U38: 1837.21635 | V38: 10101.3 | W38: 36664.9485 | X38: 2392.4 | Y38: 6075.6 | Z38: 261.4 | AA38: 5909.6 | AB38: 16.1 | AC38: 49569.9485 | AD38: 4431.3 | AE38: 4342.6 | AF38: 1426.3 | AG38: 4082.3 | AH38: 375.2 | AI38: 10823.6 | AJ38: 5906.2 | AK38: 636.6 | AL38: 3513.8 | AM38: 252.7 | AN38: 77827.5485 | AP38: 6.48 | AQ38: 10.92 | AR38: 6.96 | AS38: 14.64 | AT38: 7.32 | AU38: 17.28 | AV38: 7.44 | AW38: 19.8
A39: 2008-05-01 | B39: 38480.92771 | C39: 8155.671818 | D39: 14529.4222 | E39: 6335.393903 | F39: 67501.41563 | G39: 30.9324869 | K39: 10.67956961 | N39: 4.116003773 | Q39: 4.63 | R39: 3922.134447 | S39: 2257.2 | T39: 6158.41995 | U39: 2000.78005 | V39: 10416.4 | W39: 36940.379 | X39: 2427.4 | Y39: 6895.9 | Z39: 274.5 | AA39: 6684 | AB39: 18.8 | AC39: 50251.779 | AD39: 4876.2 | AE39: 4531.7 | AF39: 1556.6 | AG39: 3987.2 | AH39: 396 | AI39: 11137.4 | AJ39: 6041 | AK39: 655.2 | AL39: 3503.9 | AM39: 251 | AN39: 79678.179 | AP39: 6.6 | AQ39: 10.92 | AR39: 6.96 | AS39: 13.68 | AT39: 7.32 | AU39: 17.28 | AV39: 7.8 | AW39: 20.4
A40: 2008-06-01 | B40: 39280.5813 | C40: 8190.377374 | D40: 14847.07102 | E40: 7018.991106 | F40: 69337.0208 | G40: 30.74424815 | K40: 10.87630127 | N40: 4.238679367 | Q40: 4.72 | R40: 3942.236998 | S40: 2274.2 | T40: 6353.5361 | U40: 1863.9639 | V40: 10491.7 | W40: 36953.1865 | X40: 2468.3 | Y40: 6562.2 | Z40: 293.5 | AA40: 6357.7 | AB40: 22 | AC40: 50389.1865 | AD40: 5370 | AE40: 4879.8 | AF40: 1630.8 | AG40: 4083.1 | AH40: 413.2 | AI40: 11329.1 | AJ40: 6013.4 | AK40: 657.3 | AL40: 3453.4 | AM40: 250.4 | AN40: 81062.0865 | AP40: 6.72 | AQ40: 11.28 | AR40: 7.32 | AS40: 14.28 | AT40: 7.68 | AU40: 18 | AV40: 8.52 | AW40: 20.28
A41: 2008-07-01 | B41: 39742.06483 | C41: 8230.370095 | D41: 15178.60382 | E41: 6694.507948 | F41: 69845.54669 | G41: 31.24031374 | K41: 11.42875372 | N41: 4.404424868 | Q41: 4.87 | R41: 3885.245573 | S41: 2254.4 | T41: 6175.0858 | U41: 1520.7142 | V41: 9950.2 | W41: 37144.072 | X41: 2498.7 | Y41: 6257 | Z41: 307.9 | AA41: 6006.6 | AB41: 23.7 | AC41: 50127.572 | AD41: 5832.1 | AE41: 5436.9 | AF41: 1685.6 | AG41: 4002.9 | AH41: 420.3 | AI41: 11377.4 | AJ41: 5891.9 | AK41: 638.9 | AL41: 3507.2 | AM41: 263.5 | AN41: 81642.872 | AP41: 6.84 | AQ41: 10.56 | AR41: 7.56 | AS41: 15.36 | AT41: 8.64 | AU41: 18.12 | AV41: 8.76 | AW41: 21
A42: 2008-08-01 | B42: 40257.88392 | C42: 8288.808897 | D42: 15482.081 | E42: 6706.784942 | F42: 70735.55877 | G42: 32.01457109 | K42: 11.87277186 | N42: 4.682843065 | Q42: 4.82 | R42: 3888.735781 | S42: 2232 | T42: 5954.4933 | U42: 1876.3067 | V42: 10062.8 | W42: 37322.297 | X42: 2523.5 | Y42: 6316.2 | Z42: 321.3 | AA42: 5907.8 | AB42: 24.4 | AC42: 50613.897 | AD42: 6044.2 | AE42: 6257.8 | AF42: 1827.6 | AG42: 4007.5 | AH42: 436.4 | AI42: 11696.9 | AJ42: 5802.1 | AK42: 619.6 | AL42: 3699.5 | AM42: 266.2 | AN42: 83340.297 | AP42: 7.44 | AQ42: 11.64 | AR42: 8.04 | AS42: 15.24 | AT42: 8.64 | AU42: 19.2 | AV42: 9.24 | AW42: 23.28
A43: 2008-09-01 | B43: 40957.88284 | C43: 8315.656005 | D43: 15741.79555 | E43: 7268.870571 | F43: 72284.20497 | G43: 34.02436491 | K43: 12.80472031 | N43: 5.126385627 | Q43: 4.8 | R43: 3946.473005 | S43: 2315 | T43: 6148.6309 | U43: 1729.6691 | V43: 10193.3 | W43: 37743.865 | X43: 2546.6 | Y43: 5893.7 | Z43: 328.1 | AA43: 5393 | AB43: 22.8 | AC43: 51289.765 | AD43: 6220.8 | AE43: 6968.1 | AF43: 1974.3 | AG43: 3983.4 | AH43: 457.6 | AI43: 12067.3 | AJ43: 5505.3 | AK43: 582.1 | AL43: 3542.9 | AM43: 271.1 | AN43: 85234.665 | AP43: 8.4 | AQ43: 12.48 | AR43: 9.48 | AS43: 16.44 | AT43: 9.6 | AU43: 19.08 | AV43: 9.36 | AW43: 24.36
A44: 2008-10-01 | B44: 42404.14236 | C44: 8325.853397 | D44: 15986.53123 | E44: 8464.093896 | F44: 75180.62088 | G44: 35.7608978 | K44: 15.14850576 | N44: 8.027125743 | Q44: 5.34 | R44: 3936.598818 | S44: 2305.9 | T44: 6214.3885 | U44: 1896.2115 | V44: 10416.5 | W44: 39143.106 | X44: 2563.5 | Y44: 6055.2 | Z44: 326.4 | AA44: 5559.3 | AB44: 18.1 | AC44: 52927.306 | AD44: 6550.1 | AE44: 6842 | AF44: 2137.4 | AG44: 3925.9 | AH44: 465.1 | AI44: 12231.4 | AJ44: 4853.4 | AK44: 510.9 | AL44: 3183 | AM44: 268.3 | AN44: 86992.206 | AP44: 9 | AQ44: 16.56 | AR44: 9.96 | AS44: 17.16 | AT44: 9.84 | AU44: 22.56 | AW44: 23.52
A45: 2008-11-01 | B45: 42751.92068 | C45: 8365.910376 | D45: 16177.99934 | E45: 8393.288363 | F45: 75689.11876 | G45: 36.07184204 | K45: 15.12878623 | N45: 5.927597244 | Q45: 5.69 | R45: 4137.190968 | S45: 2331.1 | T45: 6159.8162 | U45: 1791.8838 | V45: 10282.8 | W45: 40446.7475 | X45: 2571.9 | Y45: 6236.7 | Z45: 330.4 | AA45: 5757.5 | AB45: 18.4 | AC45: 54092.6475 | AD45: 6857.2 | AE45: 6481.1 | AF45: 2293.6 | AG45: 3944.6 | AH45: 487 | AI45: 12405 | AJ45: 4328.1 | AK45: 465.9 | AL45: 3078.7 | AM45: 255 | AN45: 88021.4475 | AP45: 8.04 | AQ45: 17.04 | AR45: 8.88 | AS45: 16.68 | AT45: 9.24 | AU45: 22.44 | AV45: 8.88 | AW45: 27
A46: 2008-12-01 | B46: 42262.40887 | C46: 8356.583898 | D46: 16275.07166 | E46: 7828.050024 | F46: 74722.11446 | G46: 36.85158168 | K46: 14.91091061 | N46: 5.831500249 | Q46: 5.77 | R46: 4287.580488 | S46: 2484.8 | T46: 6340.7397 | U46: 1982.3603 | V46: 10807.9 | W46: 40974.225 | X46: 2563.5 | Y46: 6512 | Z46: 342.6 | AA46: 6021.2 | AB46: 22.2 | AC46: 55156.825 | AD46: 6666.5 | AE46: 6330.6 | AF46: 2335.7 | AG46: 3816.7 | AH46: 503.4 | AI46: 12650.5 | AJ46: 4091.8 | AK46: 459.9 | AL46: 2953.5 | AM46: 248.3 | AN46: 88810.125 | AP46: 8.28 | AQ46: 16.44 | AR46: 8.76 | AS46: 16.92 | AT46: 8.52 | AU46: 22.32 | AV46: 7.2 | AW46: 24.96
A47: 2009-01-01 | B47: 41620.5329 | C47: 8342.315144 | D47: 16266.58066 | E47: 7488.709613 | F47: 73718.13831 | G47: 36.33417145 | K47: 13.51124586 | N47: 5.323566282 | Q47: 5.92 | R47: 4305.789 | S47: 2445.4 | T47: 6472.36655 | U47: 1835.03345 | V47: 10752.8 | W47: 41131.805 | X47: 2555 | Y47: 7657.4 | Z47: 348.9 | AA47: 7157.4 | AB47: 24.9 | AC47: 55263.605 | AD47: 6548.5 | AE47: 6051.9 | AF47: 2350.2 | AG47: 3670.3 | AH47: 500.4 | AI47: 13010.6 | AJ47: 4144.4 | AK47: 453.1 | AL47: 3108.8 | AM47: 239 | AN47: 88645.205 | AP47: 7.08 | AQ47: 14.04 | AR47: 6.72 | AS47: 19.56 | AT47: 6.6 | AU47: 22.08 | AW47: 23.04
A48: 2009-02-01 | B48: 41119.3856 | C48: 8282.983976 | D48: 16154.00607 | E48: 7068.389425 | F48: 72624.76507 | G48: 36.18977679 | K48: 12.21579471 | N48: 5.117256562 | Q48: 5.53 | R48: 4164.7998 | S48: 2446 | T48: 6485.56095 | U48: 1603.63905 | V48: 10535.2 | W48: 40750.097 | X48: 2541.2 | Y48: 8278.8 | Z48: 355.9 | AA48: 7709 | AB48: 25.7 | AC48: 54726.497 | AD48: 6554.7 | AE48: 6124.9 | AF48: 2445.3 | AG48: 3715.3 | AH48: 529 | AI48: 13196.2 | AJ48: 4551 | AK48: 446.6 | AL48: 3610.3 | AM48: 239 | AN48: 88440.197 | AP48: 5.16 | AQ48: 12.96 | AR48: 4.92 | AS48: 15.12 | AT48: 4.68 | AU48: 19.92 | AV48: 5.76 | AW48: 24.24
A49: 2009-03-01 | B49: 40445.08225 | C49: 8286.758878 | D49: 16177.83183 | E49: 6733.923758 | F49: 71643.59671 | G49: 32.23109006 | K49: 10.05881629 | N49: 4.683590798 | Q49: 4.9 | R49: 4218.546834 | S49: 2459.9 | T49: 6613.87805 | U49: 1568.72195 | V49: 10642.5 | W49: 39918.085 | X49: 2533.7 | Y49: 8098.2 | Z49: 363.2 | AA49: 7551.7 | AB49: 25.9 | AC49: 53978.085 | AD49: 6489.1 | AE49: 6655.6 | AF49: 2500.7 | AG49: 3599.9 | AH49: 559.5 | AI49: 13297.4 | AJ49: 4865.2 | AK49: 445 | AL49: 4017.7 | AM49: 241.5 | AN49: 88131.285 | AP49: 2.88 | AQ49: 10.08 | AR49: 3.12 | AS49: 14.88 | AT49: 3.24 | AU49: 15.12 | AW49: 20.64
A50: 2009-04-01 | B50: 40860.99227 | C50: 8322.734132 | D50: 16217.03066 | E50: 6398.891221 | F50: 71799.64829 | G50: 29.97497029 | K50: 8.766351447 | N50: 3.947299689 | Q50: 4.42 | R50: 4234.410146 | S50: 2462.6 | T50: 6770.0209 | U50: 1657.1791 | V50: 10889.8 | W50: 39593.7535 | X50: 2549.4 | Y50: 8882.9 | Z50: 367.1 | AA50: 8634.1 | AB50: 22.1 | AC50: 53626.7535 | AD50: 6254.1 | AE50: 6811.1 | AF50: 2540.2 | AG50: 3479.9 | AH50: 581.5 | AI50: 13804.3 | AJ50: 5011.4 | AK50: 457.7 | AL50: 4069.3 | AM50: 234.3 | AN50: 88263.3535 | AP50: 2.28 | AQ50: 9.48 | AR50: 2.52 | AS50: 13.08 | AT50: 2.88 | AU50: 11.76 | AW50: 17.64
A51: 2009-05-01 | B51: 40716.10378 | C51: 8264.660025 | D51: 16297.69606 | E51: 6183.376553 | F51: 71461.83641 | G51: 29.56658702 | K51: 8.071368334 | N51: 3.776842156 | Q51: 4.455645369 | R51: 4344.859181 | S51: 2493.5 | T51: 6965.08455 | U51: 1875.71545 | V51: 11334.3 | W51: 39362.9995 | X51: 2589.9 | Y51: 9185.3 | Z51: 373.4 | AA51: 8999.2 | AB51: 23 | AC51: 53823.6995 | AD51: 5840.2 | AE51: 6723.3 | AF51: 2596.2 | AG51: 3469 | AH51: 600.2 | AI51: 14288.6 | AJ51: 5157.5 | AK51: 484.1 | AL51: 3958.6 | AM51: 222.5 | AN51: 88801.6995 | AP51: 1.56 | AQ51: 7.08 | AR51: 1.8 | AS51: 12.12 | AT51: 2.52 | AU51: 13.56 | AW51: 18.96
A52: 2009-06-01 | B52: 40399.39512 | C52: 8203.665652 | D52: 16441.35447 | E52: 5403.769367 | F52: 70448.18461 | G52: 28.9061915 | K52: 7.984518349 | N52: 3.496964596 | Q52: 4.61 | R52: 4430.577429 | S52: 2504.8 | T52: 7202.7768 | U52: 1907.3232 | V52: 11614.9 | W52: 38951.3265 | X52: 2627.5 | Y52: 8599.7 | Z52: 371.3 | AA52: 8163.3 | AB52: 26.3 | AC52: 53975.1265 | AD52: 5373.4 | AE52: 6917.2 | AF52: 2653.5 | AG52: 3435.3 | AH52: 598 | AI52: 14355.7 | AJ52: 5191.6 | AK52: 506.4 | AL52: 3819.8 | AM52: 208.4 | AN52: 88978.0265 | AP52: 1.32 | AQ52: 5.88 | AR52: 1.68 | AS52: 14.16 | AT52: 2.76 | AU52: 13.08 | AW52: 14.88
A53: 2009-07-01 | B53: 40444.88165 | C53: 8213.907189 | D53: 16579.80784 | E53: 5362.954307 | F53: 70601.55098 | G53: 27.90935239 | K53: 7.240847234 | N53: 2.713315794 | Q53: 4.62 | R53: 4308.172045 | S53: 2487 | T53: 7152.0186 | U53: 1963.0814 | V53: 11602.1 | W53: 39030.7115 | X53: 2640.4 | Y53: 9977.7 | Z53: 367.8 | AA53: 9280 | AB53: 24.2 | AC53: 54314.5115 | AD53: 5141.7 | AE53: 6460 | AF53: 2778.2 | AG53: 3339.5 | AH53: 609.4 | AI53: 14256.1 | AJ53: 5355 | AK53: 527.9 | AL53: 3911.6 | AM53: 206.6 | AN53: 88664.1115 | AP53: 0.84 | AQ53: 5.04 | AR53: 1.44 | AS53: 11.4 | AT53: 1.8 | AU53: 16.2 | AW53: 18.84
A54: 2009-08-01 | B54: 40852.69961 | C54: 8220.545874 | D54: 16692.06583 | E54: 5389.531063 | F54: 71154.84237 | G54: 24.57374351 | K54: 5.987396699 | N54: 3.394973906 | Q54: 4.56 | R54: 4487.901 | S54: 2505.8 | T54: 7240.88675 | U54: 2001.51325 | V54: 11748.2 | W54: 38922.2065 | X54: 2652.7 | Y54: 10236.6 | Z54: 365.5 | AA54: 9492.9 | AB54: 21.6 | AC54: 54410.7065 | AD54: 5360.1 | AE54: 6128.7 | AF54: 2906.9 | AG54: 3309.1 | AH54: 614.3 | AI54: 14330.7 | AJ54: 5723.9 | AK54: 552.7 | AL54: 4174.6 | AM54: 200.9 | AN54: 88961.6065 | AP54: 0.48 | AQ54: 4.2 | AR54: 0.72 | AS54: 10.56 | AT54: 1.44 | AU54: 9.48 | AV54: 4.68 | AW54: 14.76
A55: 2009-09-01 | B55: 41035.87044 | C55: 8242.085323 | D55: 16810.68889 | E55: 5246.605182 | F55: 71335.24984 | G55: 26.52326424 | K55: 5.774980921 | N55: 2.545047012 | Q55: 4.49 | R55: 4558.826714 | S55: 2612.6 | T55: 7467.18735 | U55: 2217.61265 | V55: 12297.4 | W55: 38276.271 | X55: 2663.4 | Y55: 9042 | Z55: 363.8 | AA55: 8393.2 | AB55: 21.5 | AC55: 54228.171 | AD55: 5369 | AE55: 6576.2 | AF55: 3040.4 | AG55: 3282.4 | AH55: 607 | AI55: 13900.9 | AJ55: 6234.5 | AK55: 580.9 | AL55: 4371.3 | AM55: 200.3 | AN55: 89247.871 | AP55: 0.6 | AQ55: 3.84 | AR55: 1.08 | AS55: 11.4 | AT55: 2.16 | AU55: 12.24 | AV55: 4.44 | AW55: 17.4
A56: 2009-10-01 | B56: 41079.07672 | C56: 8300.790008 | D56: 17052.11346 | E56: 5224.977959 | F56: 71656.95815 | G56: 26.66781426 | K56: 5.613465454 | N56: 2.660928912 | Q56: 4.35 | R56: 4379.120762 | S56: 2571.2 | T56: 7491.8483 | U56: 2281.1517 | V56: 12344.2 | W56: 37715.6185 | X56: 2670.1 | Y56: 9653.9 | Z56: 358.3 | AA56: 8873.3 | AB56: 24.8 | AC56: 53844.0185 | AD56: 5266 | AE56: 6458.5 | AF56: 3201.8 | AG56: 3182 | AH56: 591.6 | AI56: 13440.4 | AJ56: 6669.4 | AK56: 607.5 | AL56: 4552.1 | AM56: 192.7 | AN56: 88516.4185 | AP56: 0.6 | AQ56: 3.72 | AR56: 1.2 | AS56: 11.64 | AT56: 2.52 | AU56: 11.88 | AV56: 5.04 | AW56: 16.56
A57: 2009-11-01 | B57: 40973.89827 | C57: 8346.10289 | D57: 17292.09993 | E57: 4819.113992 | F57: 71431.21508 | G57: 27.25833994 | K57: 5.247571939 | N57: 2.546599361 | Q57: 4.28 | R57: 4558.89 | S57: 2585.4 | T57: 7611.999744 | U57: 2125.000256 | V57: 12322.4 | W57: 37243.5635 | X57: 2643.8 | Y57: 9434.3 | Z57: 347.8 | AA57: 8629 | AB57: 23.9 | AC57: 53338.9635 | AD57: 5365.9 | AE57: 6421.3 | AF57: 3396.7 | AG57: 2992.3 | AH57: 533.7 | AI57: 13640.6 | AJ57: 6644.4 | AK57: 615.5 | AL57: 4382.8 | AM57: 183.4 | AN57: 88383.1635 | AP57: 0.6 | AQ57: 3.72 | AR57: 1.44 | AS57: 11.28 | AT57: 2.88 | AU57: 12.36 | AV57: 4.8 | AW57: 16.68
A58: 2009-12-01 | B58: 42490.42915 | C58: 8424.088013 | D58: 17435.79351 | E58: 4624.035573 | F58: 72974.34625 | G58: 26.55652398 | K58: 4.739766636 | N58: 2.220797364 | Q58: 4.541432542 | R58: 4735.213 | S58: 2754.5 | T58: 8056.187294 | U58: 2468.412706 | V58: 13279.1 | W58: 37323.6455 | X58: 2628 | Y58: 9448.2 | Z58: 346.3 | AA58: 8712.9 | AB58: 24 | AC58: 54288.3455 | AD58: 5387.9 | AE58: 6214.4 | AF58: 3451.2 | AG58: 2965.1 | AH58: 496.9 | AI58: 13853.4 | AJ58: 6548.9 | AK58: 624.2 | AL58: 4071.8 | AM58: 180 | AN58: 89578.5455 | AP58: 0.72 | AQ58: 3.48 | AR58: 1.44 | AS58: 9.84 | AT58: 2.52 | AU58: 7.68 | AV58: 4.68 | AW58: 14.76
A59: 2010-01-01 | B59: 42328.99862 | C59: 8459.64858 | D59: 17483.62977 | E59: 5245.58657 | F59: 73517.86355 | G59: 30.35391496 | K59: 7.040624887 | N59: 1.837065704 | Q59: 4.583830998 | R59: 4802.93565 | S59: 2744.3 | T59: 8516.17675 | U59: 2520.12325 | V59: 13780.6 | W59: 37860.047 | X59: 2656.8 | Y59: 9729.9 | Z59: 351.9 | AA59: 8973 | AB59: 25 | AC59: 55381.247 | AD59: 5513.4 | AE59: 5823.5 | AF59: 3528.4 | AG59: 2818.5 | AH59: 495.1 | AI59: 13930.3 | AJ59: 6640.9 | AK59: 635.4 | AL59: 4138.9 | AM59: 218.4 | AN59: 90409.447 | AP59: 0.6 | AQ59: 3.96 | AR59: 1.2 | AS59: 11.88 | AT59: 2.28 | AU59: 13.32 | AV59: 5.04 | AW59: 20.28
A60: 2010-02-01 | B60: 42565.73597 | C60: 8474.471061 | D60: 17597.78179 | E60: 5118.180715 | F60: 73756.16954 | G60: 29.546126 | K60: 5.62794949 | N60: 1.978243918 | Q60: 4.602983966 | R60: 4952.2498 | S60: 2801.8 | T60: 8673.2252 | U60: 2401.0748 | V60: 13876.1 | W60: 38257.2145 | X60: 2634.1 | Y60: 8937.2 | Z60: 358.3 | AA60: 8217.1 | AB60: 25.2 | AC60: 55820.6145 | AD60: 5581.3 | AE60: 6024.2 | AF60: 3639.8 | AG60: 2773.5 | AH60: 477.8 | AI60: 13893.7 | AJ60: 6848.9 | AK60: 639.3 | AL60: 4291.7 | AM60: 219.3 | AN60: 91188.1145 | AP60: 0.6 | AQ60: 4.08 | AR60: 1.56 | AS60: 13.8 | AT60: 2.88 | AU60: 17.64 | AV60: 4.8 | AW60: 19.08
A61: 2010-03-01 | B61: 42411.28149 | C61: 8531.434368 | D61: 17711.91058 | E61: 5141.598752 | F61: 73796.2252 | G61: 27.98245903 | K61: 5.420358692 | N61: 2.201231503 | Q61: 4.275585515 | R61: 5065.956609 | S61: 2869.8 | T61: 8709.5172 | U61: 2625.3828 | V61: 14204.7 | W61: 38357.7815 | X61: 2654.9 | Y61: 9111.7 | Z61: 363.7 | AA61: 8195.2 | AB61: 22.5 | AC61: 56475.0815 | AD61: 5580.5 | AE61: 6253.2 | AF61: 3908.2 | AG61: 2940 | AH61: 465.5 | AI61: 13899.1 | AJ61: 7295 | AK61: 656.9 | AL61: 4671.3 | AM61: 222.4 | AN61: 92579.7815 | AP61: 0.6 | AQ61: 3.96 | AR61: 1.32 | AS61: 11.52 | AT61: 2.52 | AU61: 13.92 | AV61: 5.64 | AW61: 15.24
A62: 2010-04-01 | B62: 42721.57489 | C62: 8650.120887 | D62: 17821.45227 | E62: 5346.385341 | F62: 74539.53339 | G62: 27.30835546 | K62: 5.444336526 | N62: 1.820821489 | Q62: 4.127527784 | R62: 4965.60619 | S62: 2918.6 | T62: 9012.42705 | U62: 2402.77295 | V62: 14333.8 | W62: 38372.5365 | X62: 2726.8 | Y62: 10228.3 | Z62: 378.7 | AA62: 9122 | AB62: 21 | AC62: 56897.1365 | AD62: 5716.3 | AE62: 6582.8 | AF62: 4137.5 | AG62: 2734 | AH62: 468.9 | AI62: 13936 | AJ62: 7771.4 | AK62: 680.1 | AL62: 5179.6 | AM62: 225 | AN62: 93519.5365 | AP62: 0.6 | AQ62: 3.72 | AR62: 1.2 | AS62: 11.28 | AT62: 2.88 | AU62: 12.12 | AV62: 6.24 | AW62: 17.52
A63: 2010-05-01 | B63: 43016.76997 | C63: 8664.317883 | D63: 18041.26693 | E63: 5634.652399 | F63: 75357.00718 | G63: 27.304549 | K63: 5.104336024 | N63: 2.343192732 | Q63: 4.180987597 | R63: 5140.46495 | S63: 2982.1 | T63: 9661.58285 | U63: 2383.01715 | V63: 15026.7 | W63: 38750.0565 | X63: 2738.3 | Y63: 10010.7 | Z63: 397.4 | AA63: 9143 | AB63: 22.6 | AC63: 57757.5565 | AD63: 5942 | AE63: 5973.6 | AF63: 4394 | AG63: 2760.5 | AH63: 465.6 | AI63: 14023.2 | AJ63: 7915.7 | AK63: 678.3 | AL63: 5058.8 | AM63: 230.5 | AN63: 94621.1565 | AP63: 0.72 | AQ63: 3.84 | AR63: 1.8 | AS63: 12.48 | AT63: 3.84 | AU63: 10.2 | AV63: 6 | AW63: 15.12
A64: 2010-06-01 | B64: 43297.5842 | C64: 8717.965819 | D64: 18296.44437 | E64: 5852.445006 | F64: 76164.43939 | G64: 27.30581746 | K64: 5.264501639 | N64: 2.17113661 | Q64: 4.064804216 | R64: 5258.331762 | S64: 3009.4 | T64: 9852.5456 | U64: 2460.4544 | V64: 15322.4 | W64: 38568.084 | X64: 2798.4 | Y64: 8713.5 | Z64: 407 | AA64: 8152.6 | AB64: 22.9 | AC64: 57633.884 | AD64: 6170 | AE64: 5144.3 | AF64: 4613.5 | AG64: 2870.4 | AH64: 457 | AI64: 14141.4 | AJ64: 7964.7 | AK64: 677.6 | AL64: 4616.6 | AM64: 233.2 | AN64: 94822.984 | AP64: 0.96 | AQ64: 3.6 | AR64: 2.16 | AS64: 10.44 | AT64: 3.96 | AU64: 13.56 | AV64: 5.28 | AW64: 16.08
A65: 2010-07-01 | B65: 42961.69648 | C65: 8799.311256 | D65: 18435.64867 | E65: 5574.450985 | F65: 75771.10739 | G65: 28.12090691 | K65: 5.864711137 | N65: 2.049669513 | Q65: 4.025876708 | R65: 5172.57081 | S65: 3005.2 | T65: 9514.08205 | U65: 2626.01795 | V65: 15145.3 | W65: 38190.2745 | X65: 2838.2 | Y65: 9277.2 | Z65: 405.8 | AA65: 8628.5 | AB65: 23.8 | AC65: 57204.4745 | AD65: 6019.6 | AE65: 4632.7 | AF65: 4800.5 | AG65: 2778.6 | AH65: 411 | AI65: 14197.3 | AJ65: 8126.9 | AK65: 701.6 | AL65: 4952.2 | AM65: 229.6 | AN65: 93690.8745 | AP65: 1.68 | AQ65: 3.96 | AR65: 2.64 | AS65: 12.12 | AT65: 4.56 | AU65: 14.4 | AV65: 5.4 | AW65: 17.4
A66: 2010-08-01 | B66: 43165.96213 | C66: 8927.681728 | D66: 18682.83754 | E66: 5506.390068 | F66: 76282.87147 | G66: 27.51463276 | K66: 6.913705921 | N66: 2.107778798 | Q66: 4.064727342 | R66: 5211.829227 | S66: 2950.8 | T66: 9348.52045 | U66: 2826.27955 | V66: 15125.6 | W66: 38130.357 | X66: 2831.9 | Y66: 8683 | Z66: 403.4 | AA66: 7991.7 | AB66: 22.9 | AC66: 57159.657 | AD66: 5958.8 | AE66: 4398.4 | AF66: 4880.4 | AG66: 2781.2 | AH66: 356.8 | AI66: 14245.6 | AJ66: 8407.2 | AK66: 714.9 | AL66: 5060.1 | AM66: 228.1 | AN66: 93614.757 | AP66: 2.64 | AQ66: 5.04 | AR66: 3.72 | AS66: 12.96 | AT66: 5.4 | AU66: 14.28 | AV66: 6.24 | AW66: 20.4
A67: 2010-09-01 | B67: 43483.00586 | C67: 9004.575778 | D67: 18850.86494 | E67: 5320.740188 | F67: 76659.18677 | G67: 28.00297126 | K67: 6.868685981 | N67: 1.959424999 | Q67: 4.000279187 | R67: 5230.00125 | S67: 3056.3 | T67: 9287.37565 | U67: 3305.12435 | V67: 15648.8 | W67: 38170.4655 | X67: 2869.5 | Y67: 7354.6 | Z67: 404.1 | AA67: 6787.8 | AB67: 21.9 | AC67: 57637.7655 | AD67: 6293.5 | AE67: 4471.1 | AF67: 5042 | AG67: 2817 | AH67: 342.7 | AI67: 14343.3 | AJ67: 8619.4 | AK67: 728.6 | AL67: 4535.9 | AM67: 227.1 | AN67: 95532.3655 | AP67: 3 | AQ67: 5.76 | AR67: 4.08 | AS67: 11.28 | AT67: 5.52 | AU67: 12.36 | AV67: 6.36 | AW67: 15.84
A68: 2010-10-01 | B68: 43988.90595 | C68: 9116.528754 | D68: 19068.30828 | E68: 5707.592108 | F68: 77881.33509 | G68: 27.25242528 | K68: 7.13997477 | N68: 1.765055047 | Q68: 4.140442383 | R68: 5293.39775 | S68: 3025.5 | T68: 9274.7974 | U68: 3148.7026 | V68: 15449 | W68: 38748.2045 | X68: 2849.5 | Y68: 8166.7 | Z68: 400.9 | AA68: 7487.8 | AB68: 21.8 | AC68: 58104.7045 | AD68: 6754.4 | AE68: 4500.4 | AF68: 5267.3 | AG68: 2697.6 | AH68: 335 | AI68: 14370 | AJ68: 8659.3 | AK68: 753.2 | AL68: 4343.3 | AM68: 223.8 | AN68: 96874.8045 | AP68: 3.24 | AQ68: 5.76 | AR68: 4.32 | AS68: 11.16 | AT68: 5.4 | AU68: 15.84 | AV68: 4.68 | AW68: 16.08
A69: 2010-11-01 | B69: 44217.75877 | C69: 9262.826265 | D69: 19244.20113 | E69: 5824.234729 | F69: 78549.02089 | G69: 27.34191012 | K69: 7.187239134 | N69: 1.86573893 | Q69: 4.350280261 | R69: 5330.543333 | S69: 3035.3 | T69: 9401.23695 | U69: 2911.66305 | V69: 15348.2 | W69: 39528.4395 | X69: 2861.7 | Y69: 8195.6 | Z69: 400 | AA69: 7605.3 | AB69: 22.9 | AC69: 58705.7395 | AD69: 6943.4 | AE69: 4609.8 | AF69: 5680.4 | AG69: 2668.5 | AH69: 338.9 | AI69: 14413.2 | AJ69: 8700.5 | AK69: 766.5 | AL69: 4126.1 | AM69: 229.9 | AN69: 98470.9395 | AP69: 3.36 | AQ69: 5.76 | AR69: 4.2 | AS69: 11.16 | AT69: 5.28 | AU69: 15.96 | AV69: 6.48 | AW69: 18.96
A70: 2010-12-01 | B70: 44826.24336 | C70: 9390.75168 | D70: 19481.39258 | E70: 5283.800004 | F70: 78982.18763 | G70: 26.44170293 | K70: 7.379796927 | N70: 1.934379118 | Q70: 4.371130622 | R70: 5595.011429 | S70: 3209.2 | T70: 9745.1939 | U70: 3151.0061 | V70: 16105.4 | W70: 40025.0645 | X70: 2840.7 | Y70: 8249.4 | Z70: 405 | AA70: 7601.9 | AB70: 23.3 | AC70: 60000.3645 | AD70: 6927.6 | AE70: 4369 | AF70: 6063.7 | AG70: 2574.1 | AH70: 325.4 | AI70: 14487.8 | AJ70: 8651.9 | AK70: 773.1 | AL70: 3735.7 | AM70: 239 | AN70: 100198.2645 | AP70: 3.72 | AQ70: 6.36 | AR70: 4.56 | AS70: 11.04 | AT70: 5.52 | AU70: 15.12 | AV70: 6.6 | AW70: 17.64
A71: 2011-01-01 | B71: 45140.2364 | C71: 9515.07226 | D71: 19599.88231 | E71: 6010.49504 | F71: 80265.68601 | G71: 27.09389282 | K71: 7.599103818 | N71: 1.777727046 | Q71: 4.337310721 | R71: 5707.29 | S71: 3195.2 | T71: 10156.911 | U71: 3133.689 | V71: 16485.8 | W71: 40608.253 | X71: 2861.7 | Y71: 8329.6 | Z71: 417.4 | AA71: 7828.5 | AB71: 22.2 | AC71: 60852.053 | AD71: 7037.6 | AE71: 4404.9 | AF71: 6945.2 | AG71: 2333.5 | AH71: 307.3 | AI71: 14665.5 | AJ71: 8534.2 | AK71: 776.7 | AL71: 3339.2 | AM71: 241.3 | AN71: 102276.453 | AP71: 3.72 | AQ71: 6.72 | AR71: 4.44 | AS71: 11.4 | AT71: 5.64 | AU71: 15.48 | AV71: 4.56 | AW71: 20.16
A72: 2011-02-01 | B72: 45314.42583 | C72: 9619.609073 | D72: 19752.34582 | E72: 6182.367385 | F72: 80868.74811 | G72: 26.44719241 | K72: 7.906570832 | N72: 1.742377773 | Q72: 4.353309404 | R72: 5661.549 | S72: 3217.8 | T72: 10284.7682 | U72: 2595.3318 | V72: 16097.9 | W72: 41002.0365 | X72: 2841.1 | Y72: 7469.7 | Z72: 427 | AA72: 7173.2 | AB72: 23.4 | AC72: 60641.1365 | AD72: 6993.2 | AE72: 5082 | AF72: 7171.5 | AG72: 2329 | AH72: 306.7 | AI72: 14864.9 | AJ72: 8344.2 | AK72: 774.5 | AL72: 3128.1 | AM72: 243.7 | AN72: 103135.3365 | AP72: 3.84 | AQ72: 7.44 | AR72: 4.8 | AS72: 12 | AT72: 5.4 | AU72: 14.76 | AV72: 4.56 | AW72: 20.04
A73: 2011-03-01 | B73: 45890.50077 | C73: 9832.270987 | D73: 19950.67805 | E73: 6472.759263 | F73: 82146.20908 | G73: 25.88126176 | K73: 8.252341346 | N73: 1.894617682 | Q73: 4.392648861 | R73: 5614.734783 | S73: 3174.1 | T73: 10253.6952 | U73: 2598.7048 | V73: 16026.5 | W73: 41572.324 | X73: 2827.7 | Y73: 7470.1 | Z73: 441.8 | AA73: 7029 | AB73: 23.3 | AC73: 61286.124 | AD73: 6759.6 | AE73: 5282.3 | AF73: 7513.8 | AG73: 2501.8 | AH73: 306.5 | AI73: 14920.9 | AJ73: 8378.6 | AK73: 521.9 | AL73: 3397.7 | AM73: 250.4 | AN73: 103823.424 | AP73: 4.2 | AQ73: 7.2 | AR73: 5.16 | AS73: 13.08 | AT73: 6.72 | AU73: 17.16 | AV73: 4.68 | AW73: 18.84
A74: 2011-04-01 | B74: 46504.27644 | C74: 9997.982936 | D74: 20168.48584 | E74: 6537.726729 | F74: 83208.47194 | G74: 27.11788572 | K74: 8.423425558 | N74: 1.639951833 | Q74: 4.305976651 | R74: 5685.54395 | S74: 3199.8 | T74: 10332.5 | U74: 2769.2 | V74: 16301.5 | W74: 42519.936 | X74: 2869 | Y74: 8298.4 | Z74: 473.1 | AA74: 7876.4 | AB74: 20.3 | AC74: 62565.236 | AD74: 6689.8 | AE74: 5349.9 | AF74: 7688.1 | AG74: 2367.1 | AH74: 287.5 | AI74: 14987.4 | AJ74: 8608.8 | AK74: 801.3 | AL74: 3825.1 | AM74: 258.7 | AN74: 105261.336 | AP74: 4.68 | AQ74: 7.44 | AR74: 5.52 | AS74: 12.84 | AT74: 6.36 | AU74: 16.2 | AV74: 5.4 | AW74: 18.84
A75: 2011-05-01 | B75: 47315.03892 | C75: 10061.32488 | D75: 20375.73539 | E75: 6969.563642 | F75: 84721.66284 | G75: 27.31975229 | K75: 8.658781184 | N75: 1.628783103 | Q75: 4.16 | R75: 5966.27 | S75: 3250.6 | T75: 10529.42525 | U75: 2799.57475 | V75: 16579.6 | W75: 43652.3525 | X75: 2878.3 | Y75: 8297.7 | Z75: 490.6 | AA75: 7890.4 | AB75: 22.6 | AC75: 63985.5525 | AD75: 6778.7 | AE75: 5639.5 | AF75: 7823.7 | AG75: 2166.5 | AH75: 268.1 | AI75: 15081.7 | AJ75: 8691.3 | AK75: 811.3 | AL75: 3977.4 | AM75: 263.5 | AN75: 107005.4525 | AP75: 5.4 | AQ75: 7.8 | AR75: 6 | AS75: 12.48 | AT75: 6.48 | AU75: 15.36 | AV75: 4.8 | AW75: 18.48
A76: 2011-06-01 | B76: 47636.25474 | C76: 10177.31521 | D76: 20615.75739 | E76: 6805.410625 | F76: 85234.73796 | G76: 26.94085067 | K76: 9.099138038 | N76: 1.775944227 | Q76: 4.13 | R76: 5832.145238 | S76: 3289.4 | T76: 10554.3632 | U76: 2863.2368 | V76: 16707 | W76: 44557.904 | X76: 2918.6 | Y76: 7394.5 | Z76: 495.5 | AA76: 6916.6 | AB76: 24.5 | AC76: 65132.404 | AD76: 6771.4 | AE76: 5987.1 | AF76: 7918.3 | AG76: 2094.7 | AH76: 291.5 | AI76: 15310.3 | AJ76: 8611.6 | AK76: 809.6 | AL76: 3903.5 | AM76: 266.5 | AN76: 108756.904 | AP76: 5.64 | AQ76: 9 | AR76: 6 | AS76: 12.36 | AT76: 5.76 | AU76: 17.4 | AV76: 4.08 | AW76: 16.8
A77: 2011-07-01 | B77: 47794.15562 | C77: 10296.95643 | D77: 20800.21688 | E77: 6964.254449 | F77: 85855.58338 | G77: 27.43814138 | K77: 9.480908349 | N77: 1.786425558 | Q77: 4.13 | R77: 5952.678238 | S77: 3288.1 | T77: 10332.2862 | U77: 2678.3138 | V77: 16298.7 | W77: 45479.7875 | X77: 2933.6 | Y77: 7167.1 | Z77: 495.3 | AA77: 6714.7 | AB77: 24.5 | AC77: 65635.2875 | AD77: 6721.3 | AE77: 6584.2 | AF77: 8194.4 | AG77: 2143.8 | AH77: 309.3 | AI77: 15470 | AJ77: 8258.5 | AK77: 797.9 | AL77: 3848.4 | AM77: 277.8 | AN77: 109988.4875 | AP77: 5.76 | AQ77: 9 | AR77: 6.12 | AS77: 12.96 | AT77: 6.6 | AU77: 18.24 | AW77: 17.64
A78: 2011-08-01 | B78: 48232.4719 | C78: 10469.93113 | D78: 20972.75349 | E78: 7219.442139 | F78: 86894.59866 | G78: 27.68 | K78: 9.61 | N78: 1.75 | Q78: 4.17 | R78: 5765.861545 | S78: 3274.4 | T78: 10202.7961 | U78: 3054.8039 | V78: 16532 | W78: 47082.2875 | X78: 2935.5 | Y78: 7212 | Z78: 492.2 | AA78: 7003.4 | AB78: 25.8 | AC78: 67224.7875 | AD78: 6753.7 | AE78: 6997.6 | AF78: 8654.4 | AG78: 2182.8 | AH78: 301.6 | AI78: 15484.9 | AJ78: 7832 | AK78: 772.6 | AL78: 3849.3 | AM78: 297.5 | AN78: 112057.5875 | AP78: 5.64 | AQ78: 9.84 | AR78: 5.88 | AS78: 12.36 | AT78: 6.24 | AU78: 18.48 | AV78: 5.16 | AW78: 20.28
A79: 2011-09-01 | B79: 49463.90602 | C79: 10567.06338 | D79: 21138.08055 | E79: 8180.102422 | F79: 89349.15237 | G79: 28.74 | K79: 9.3 | N79: 1.81 | Q79: 4.17 | R79: 5932.959238 | S79: 3394 | T79: 10317.9333 | U79: 3100.0667 | V79: 16812 | W79: 48399.378 | X79: 2964 | Y79: 8283 | Z79: 497 | AA79: 8111 | AB79: 28 | AC79: 68816.378 | AD79: 7003 | AE79: 7895 | AF79: 9054 | AG79: 2287 | AH79: 310 | AI79: 15541 | AJ79: 7565 | AK79: 744 | AL79: 4006 | AM79: 313 | AN79: 114896.378 | AP79: 5.52 | AQ79: 9.72 | AR79: 5.64 | AS79: 13.08 | AT79: 5.76 | AU79: 18.12 | AV79: 7.2 | AW79: 18.6
A80: 2011-10-01 | B80: 50153.98998 | C80: 10687.71499 | D80: 21334.41147 | E80: 7741.481012 | F80: 89917.59745 | G80: 27.73 | K80: 9.59 | N80: 2.02 | Q80: 4.11 | R80: 6166.067263 | S80: 3402.2 | T80: 10414.15855 | U80: 3101.74145 | V80: 16918.1 | W80: 49404.4215 | X80: 2979.3 | Y80: 9587.2 | Z80: 498.9 | AA80: 9319.3 | AB80: 28.9 | AC80: 70039.7215 | AD80: 7200.1 | AE80: 8930.2 | AF80: 9495.6 | AG80: 2069.4 | AH80: 305.8 | AI80: 15692 | AJ80: 7494.7 | AK80: 738.2 | AL80: 4041 | AM80: 313.7 | AN80: 117611.0215 | AP80: 5.52 | AQ80: 9.72 | AR80: 5.76 | AS80: 13.2 | AT80: 5.76 | AU80: 15.12 | AV80: 7.2 | AW80: 20.16
A81: 2011-11-01 | B81: 50977.5773 | C81: 10939.562 | D81: 21601.08746 | E81: 8058.723701 | F81: 91576.95046 | G81: 26.96 | K81: 9.5 | N81: 2.22 | Q81: 4.15 | R81: 6145.23819 | S81: 3458.7 | T81: 10500.2325 | U81: 2847.4675 | V81: 16806.4 | W81: 50432.4935 | X81: 2990.1 | Y81: 9160.3 | Z81: 497.2 | AA81: 8943.5 | AB81: 26.9 | AC81: 70916.0935 | AD81: 7154.2 | AE81: 9203.3 | AF81: 9532.5 | AG81: 2115.2 | AH81: 288.5 | AI81: 15880.1 | AJ81: 7413.4 | AK81: 734.9 | AL81: 3852.4 | AM81: 308.3 | AN81: 119077.4935 | AP81: 5.76 | AQ81: 9.96 | AR81: 5.88 | AS81: 12 | AT81: 6 | AU81: 18.48 | AW81: 19.2
A82: 2011-12-01 | B82: 51805.62433 | C82: 11054.38578 | D82: 21895.70707 | E82: 7604.47151 | F82: 92360.1887 | G82: 27.48 | K82: 9.28 | N82: 2.75 | Q82: 4.26 | R82: 6719.61 | S82: 3646.9 | T82: 10872.13785 | U82: 3490.06215 | V82: 18009.1 | W82: 51368.1305 | X82: 2984.7 | Y82: 9215.7 | Z82: 500.5 | AA82: 8903.9 | AB82: 32.5 | AC82: 73141.7305 | AD82: 7085.4 | AE82: 8929.3 | AF82: 9719.2 | AG82: 2093.8 | AH82: 275.9 | AI82: 16073.8 | AJ82: 7228.7 | AK82: 724.2 | AL82: 3769 | AM82: 307.1 | AN82: 121195.9305 | AP82: 6.24 | AQ82: 10.2 | AR82: 6.12 | AS82: 11.4 | AT82: 6.36 | AU82: 17.88 | AV82: 7.2 | AW82: 15.12
A83: 2012-01-01 | B83: 52322.87588 | C83: 11155.81596 | D83: 22101.95932 | E83: 7054.350622 | F83: 92635.00178 | G83: 28.04 | K83: 9.39 | N83: 2.7 | Q83: 4.33 | R83: 6524.376273 | S83: 3635.929 | T83: 11086.1265 | U83: 3466.2575 | V83: 18188.313 | W83: 51741.173 | X83: 2999.076 | Y83: 9465.568166 | Z83: 504.8856531 | AA83: 9013.687266 | AB83: 31.25266642 | AC83: 73854.07589 | AD83: 7411.18 | AE83: 9154.34 | AF83: 9900.314 | AG83: 2343.864 | AH83: 274.5804445 | AI83: 16247.2624 | AJ83: 7250.24569 | AK83: 726.9968395 | AL83: 3788.633171 | AM83: 306.5393002 | AN83: 123067.6868 | AP83: 5.52 | AQ83: 9.84 | AR83: 5.52 | AS83: 11.4 | AT83: 6 | AU83: 16.2 | AV83: 7.2 | AW83: 19.8
A84: 2012-02-01 | B84: 52673.6117 | C84: 11252.14866 | D84: 22284.89276 | E84: 7154.813511 | F84: 93365.46664 | G84: 29.81 | K84: 9.46 | N84: 2.5 | Q84: 4.32 | R84: 6450.647476 | S84: 3661.118 | T84: 11005.47575 | U84: 3069.49725 | V84: 17736.091 | W84: 51951.418 | X84: 3013.262 | Y84: 8673.488747 | Z84: 508.5559775 | AA84: 8474.064081 | AB84: 25.02642235 | AC84: 73383.72522 | AD84: 7310.31 | AE84: 9648.501 | AF84: 9776.472 | AG84: 2434.177 | AH84: 292.4436995 | AI84: 16327.44581 | AJ84: 7455.653888 | AK84: 737.8202715 | AL84: 3820.738686 | AM84: 307.7448068 | AN84: 123238.0654 | AP84: 5.28 | AQ84: 9.48 | AR84: 5.52 | AS84: 12.6 | AT84: 6 | AU84: 20.64 | AW84: 19.8
A85: 2012-03-01 | B85: 53657.9767 | C85: 11401.10618 | D85: 22517.07119 | E85: 7478.101969 | F85: 95054.25604 | G85: 27.97 | K85: 9.33 | N85: 2.34 | Q85: 4.29 | R85: 6446.219045 | S85: 3643.521 | T85: 11256.1323 | U85: 2963.7307 | V85: 17863.384 | W85: 52688.3835 | X85: 3033.127 | Y85: 8949.593973 | Z85: 512.6323701 | AA85: 8924.821379 | AB85: 27.11221645 | AC85: 74095.18725 | AD85: 7483.0155 | AE85: 9818.9 | AF85: 9856.851 | AG85: 2226.57 | AH85: 284.5983425 | AI85: 16388.61157 | AJ85: 7646.173202 | AK85: 744.4243595 | AL85: 3827.311799 | AM85: 304.3709199 | AN85: 124412.6485 | AP85: 5.64 | AQ85: 9.72 | AR85: 6 | AS85: 13.08 | AT85: 6.36 | AU85: 18.24 | AV85: 5.4 | AW85: 14.28
A86: 2012-04-01 | B86: 54225.70622 | C86: 11503.0073 | D86: 22710.35047 | E86: 7703.082728 | F86: 96142.14671 | G86: 28.97 | K86: 9.84 | N86: 2.45 | Q86: 4.37 | R86: 6517.71905 | S86: 3684.829 | T86: 11473.033 | U86: 3111.951 | V86: 18269.813 | W86: 53970.4975 | X86: 3062.04 | Y86: 9762.353286 | Z86: 487.3684326 | AA86: 9732.622863 | AB86: 27.6982611 | AC86: 75791.75109 | AD86: 7598.71 | AE86: 9889.01 | AF86: 9909.42 | AG86: 2090.987 | AH86: 265.141608 | AI86: 16544.29128 | AJ86: 7667.674436 | AK86: 742.749658 | AL86: 3734.188049 | AM86: 303.2681857 | AN86: 126462.2788 | AP86: 5.76 | AQ86: 10.56 | AR86: 6.12 | AS86: 14.4 | AT86: 6.6 | AU86: 18.12 | AV86: 10.08 | AW86: 17.88
A87: 2012-05-01 | B87: 55406.60762 | C87: 11567.54168 | D87: 22885.51588 | E87: 8574.771491 | F87: 98434.43667 | G87: 27.93154458 | K87: 9.969018526 | N87: 2.294966394 | Q87: 4.35 | R87: 6701.867762 | S87: 3749.783 | T87: 11474.85145 | U87: 3514.18155 | V87: 18738.816 | W87: 55536.8535 | X87: 3097.427 | Y87: 9235.778367 | Z87: 504.2732878 | AA87: 9363.780161 | AB87: 26.88665777 | AC87: 77722.48134 | AD87: 7710.342 | AE87: 9929.83 | AF87: 9936.47 | AG87: 2022.715 | AH87: 262.152711 | AI87: 16678.41451 | AJ87: 7515.817497 | AK87: 733.5375985 | AL87: 3705.101962 | AM87: 309.9081552 | AN87: 128496.7505 | AP87: 5.76 | AQ87: 10.2 | AR87: 6 | AS87: 14.04 | AT87: 6.6 | AU87: 17.16 | AV87: 6.6 | AW87: 16.92
A88: 2012-06-01 | B88: 56105.20379 | C88: 11645.66512 | D88: 23083.91106 | E88: 8315.527406 | F88: 99150.30737 | G88: 28.01329261 | K88: 9.44907718 | N88: 2.369475938 | Q88: 4.3 | R88: 6716.810095 | S88: 3788.317 | T88: 11530.50795 | U88: 3111.57105 | V88: 18430.396 | W88: 56885.2255 | X88: 3194.396 | Y88: 9427.956582 | Z88: 556.3529885 | AA88: 9386.651616 | AB88: 28.49766907 | AC88: 79079.17779 | AD88: 7623.736 | AE88: 9811.431 | AF88: 9962.13 | AG88: 1941.626 | AH88: 257.99859 | AI88: 16623.34841 | AJ88: 7352.503433 | AK88: 726.6149785 | AL88: 3749.466706 | AM88: 313.6095991 | AN88: 129315.4899 | AP88: 5.76 | AQ88: 10.44 | AR88: 6.12 | AS88: 13.56 | AT88: 6.6 | AU88: 18.96 | AV88: 6.24 | AW88: 13.8
A89: 2012-07-01 | B89: 56089.79431 | C89: 11737.52164 | D89: 23172.72478 | E89: 8120.903272 | F89: 99120.944 | G89: 28.00703443 | K89: 9.428934698 | N89: 2.177293478 | Q89: 4.35 | R89: 6829.8286 | S89: 3821.878 | T89: 11420.04145 | U89: 3097.89855 | V89: 18339.818 | W89: 57658.697 | X89: 3162.57 | Y89: 9877.499887 | Z89: 553.9071786 | AA89: 9748.931484 | AB89: 31.04231781 | AC89: 79812.51826 | AD89: 7475.79 | AE89: 9741.712 | AF89: 10014.9 | AG89: 1825.82 | AH89: 220.0447975 | AI89: 16529.92883 | AJ89: 7132.421692 | AK89: 724.731136 | AL89: 3630.028803 | AM89: 313.6193411 | AN89: 129534.2186 | AP89: 5.52 | AQ89: 8.64 | AR89: 5.76 | AS89: 14.04 | AT89: 6.36 | AU89: 20.16 | AV89: 6 | AW89: 17.28
A90: 2012-08-01 | B90: 56120.19828 | C90: 11899.88833 | D90: 23334.95977 | E90: 8380.348146 | F90: 99735.39453 | G90: 27.72897033 | K90: 9.643124618 | N90: 1.778553408 | Q90: 4.27 | R90: 6675.824318 | S90: 3815.609 | T90: 11218.27055 | U90: 2774.23045 | V90: 17808.11 | W90: 57998.028 | X90: 3214.391 | Y90: 10180.12029 | Z90: 553.1805573 | AA90: 10304.64565 | AB90: 32.95418359 | AC90: 79416.23001 | AD90: 7291.74 | AE90: 10120.03029 | AF90: 10066.56 | AG90: 1844.4 | AH90: 178.745237 | AI90: 16537.1986 | AJ90: 7014.604048 | AK90: 721.011687 | AL90: 3644.445461 | AM90: 313.903513 | AN90: 129232.1709 | AP90: 5.52 | AQ90: 9.72 | AR90: 5.52 | AS90: 14.52 | AT90: 6.36 | AU90: 20.4 | AV90: 6.24 | AW90: 18.12
A91: 2012-09-01 | B91: 56659.48563 | C91: 11974.53444 | D91: 23502.78464 | E91: 8206.639969 | F91: 100343.4447 | G91: 28.48198197 | K91: 9.53469323 | N91: 1.795980594 | Q91: 4.31 | R91: 7014.227353 | S91: 4002.335 | T91: 11133.54005 | U91: 3502.86195 | V91: 18638.737 | W91: 58377.8975 | X91: 3165.861 | Y91: 10011.32435 | Z91: 552.172394 | AA91: 10183.06897 | AB91: 30.06356434 | AC91: 80532.85971 | AD91: 7141.35 | AE91: 10073.174 | AF91: 10202.66 | AG91: 1796.84 | AH91: 176.096407 | AI91: 16526.57696 | AJ91: 7102.991203 | AK91: 725.1906475 | AL91: 3668.740828 | AM91: 315.8669362 | AN91: 130293.1312 | AP91: 5.64 | AQ91: 9.36 | AR91: 5.88 | AS91: 13.68 | AT91: 6.48 | AU91: 23.04 | AV91: 6.24 | AW91: 18.6
A92: 2012-10-01 | B92: 57336.54197 | C92: 12103.43232 | D92: 23791.32161 | E92: 8151.998943 | F92: 101383.2948 | G92: 27.42840714 | K92: 9.428074432 | N92: 1.806457925 | Q92: 4.34 | R92: 6918.429 | S92: 3917.452 | T92: 11044.3623 | U92: 3350.9827 | V92: 18312.797 | W92: 58732.563 | X92: 3183.35 | Y92: 10090.47875 | Z92: 535.0446437 | AA92: 10133.0429 | AB92: 27.22417828 | AC92: 80693.96631 | AD92: 7301.2 | AE92: 10228.42 | AF92: 10347.36 | AG92: 1551.78 | AH92: 181.2706465 | AI92: 16438.67503 | AJ92: 7231.505002 | AK92: 732.3382395 | AL92: 3768.891909 | AM92: 315.7486086 | AN92: 130621.8747 | AP92: 5.76 | AQ92: 9.36 | AR92: 6.12 | AS92: 13.68 | AT92: 6.6 | AU92: 18.96 | AV92: 6.72 | AW92: 18.72
A93: 2012-11-01 | B93: 58331.72409 | C93: 12245.00659 | D93: 24113.22909 | E93: 8170.370977 | F93: 102860.3307 | G93: 25.90477067 | K93: 9.191525358 | N93: 1.992071979 | Q93: 4.34 | R93: 7052 | S93: 3957.408 | T93: 11176.9256 | U93: 3137.7004 | V93: 18272.034 | W93: 58880.646 | X93: 3196.913 | Y93: 11169.68116 | Z93: 527.5382424 | AA93: 11179.92304 | AB93: 28.92422472 | AC93: 80837.96513 | AD93: 7697.52 | AE93: 10694.7 | AF93: 10373.4 | AG93: 1419.86 | AH93: 196.574506 | AI93: 16453.53462 | AJ93: 7291.999692 | AK93: 733.36134 | AL93: 3955.957098 | AM93: 310.8083738 | AN93: 131432.1498 | AP93: 5.64 | AQ93: 8.88 | AR93: 6.12 | AS93: 14.16 | AT93: 6.6 | AU93: 19.44 | AV93: 5.88 | AW93: 15.96
A94: 2012-12-01 | B94: 59124.13789 | C94: 12332.83773 | D94: 24293.66394 | E94: 8052.019987 | F94: 103802.6595 | G94: 25.65805527 | K94: 8.938005482 | N94: 1.93347586 | Q94: 4.38 | R94: 7659.542 | S94: 4199.081 | T94: 12108.53925 | U94: 3290.79575 | V94: 19598.416 | W94: 58532.2855 | X94: 3189.679 | Y94: 10935.48089 | Z94: 523.7141161 | AA94: 10835.85506 | AB94: 26.46338428 | AC94: 81917.25707 | AD94: 8068.6 | AE94: 9420.48 | AF94: 10453.84 | AG94: 1490.72 | AH94: 209.4110235 | AI94: 16610.99121 | AJ94: 7217.612406 | AK94: 736.3422055 | AL94: 3745.45057 | AM94: 306.9823773 | AN94: 132072.821 | AP94: 5.88 | AQ94: 9.24 | AR94: 6.12 | AS94: 12.96 | AT94: 6.72 | AU94: 21.36 | AV94: 6 | AW94: 16.8
A95: 2013-01-01 | B95: 59058.49436 | C95: 12430.11316 | D95: 24441.38699 | E95: 7941.889052 | F95: 103871.8836 | G95: 25.89170233 | H95: 34.27667985 | I95: 17.8792415 | J95: 35.48727809 | K95: 9.311266328 | L95: 7.93454902 | M95: 13.88597558 | N95: 1.871029095 | O95: 1.599260577 | P95: 2.142317947 | Q95: 4.43 | R95: 7586.608409 | S95: 4180.455 | T95: 12451.3273 | U95: 3481.7707 | V95: 20113.553 | W95: 58628.1985 | X95: 3186.914 | Y95: 9935.896277 | Z95: 524.6539743 | AA95: 9749.685055 | AB95: 26.63459876 | AC95: 82612.8961 | AD95: 8082.71 | AE95: 9113.26 | AF95: 11068.03 | AG95: 1478.92 | AH95: 222.8338685 | AI95: 16821.84678 | AJ95: 7191.878636 | AK95: 745.356212 | AL95: 3654.971506 | AM95: 301.0859187 | AN95: 133381.6742 | AP95: 5.52 | AQ95: 8.76 | AR95: 5.52 | AS95: 12.72 | AT95: 6.6 | AU95: 19.56 | AV95: 6.84 | AW95: 17.64
A96: 2013-02-01 | B96: 59462.1138 | C96: 12490.05634 | D96: 24646.68703 | E96: 8031.979076 | F96: 104630.8362 | G96: 26.68675123 | H96: 35.73798421 | I96: 18.0116299 | J96: 36.97620387 | K96: 9.676705484 | L96: 8.747926564 | M96: 12.84107908 | N96: 1.841396797 | O96: 1.520183349 | P96: 2.095366567 | Q96: 4.52 | R96: 7432.5704 | S96: 4212.295208 | T96: 12069.05285 | U96: 3354.4937 | V96: 19635.84176 | W96: 59185.429 | X96: 3193.579 | Y96: 9192.13919 | Z96: 530.6521215 | AA96: 9063.626735 | AB96: 30.35186009 | AC96: 82643.66247 | AD96: 8002.754 | AE96: 9729.96 | AF96: 11053.27 | AG96: 1450.55 | AH96: 231.037621 | AI96: 16932.29529 | AJ96: 7304.973782 | AK96: 754.293234 | AL96: 3768.253393 | AM96: 299.3039784 | AN96: 134035.239 | AP96: 5.28 | AQ96: 9.6 | AR96: 5.4 | AS96: 14.16 | AT96: 5.64 | AU96: 23.28 | AV96: 5.76 | AW96: 17.64
A97: 2013-03-01 | B97: 59953.77853 | C97: 12643.4891 | D97: 24884.62805 | E97: 8215.005209 | F97: 105696.9009 | G97: 26.56176715 | H97: 26.1732683 | I97: 15.95679296 | J97: 35.53668681 | K97: 9.285254494 | L97: 6.842489207 | M97: 10.99320885 | N97: 1.721195408 | O97: 1.453641926 | P97: 2.050779484 | Q97: 4.53 | R97: 7537.5744 | S97: 4204.371923 | T97: 12123.8761 | U97: 3598.07535 | V97: 19926.32337 | W97: 59984.015 | X97: 3214.194 | Y97: 9313.492355 | Z97: 540.2446586 | AA97: 9174.924468 | AB97: 30.67166512 | AC97: 83772.67325 | AD97: 8012.34 | AE97: 9597.14 | AF97: 11168.83 | AG97: 1527.664 | AH97: 218.2914475 | AI97: 16967.06351 | AJ97: 7442.963225 | AK97: 760.2649925 | AL97: 3687.849685 | AM97: 302.6438966 | AN97: 135476.7368 | AP97: 5.28 | AQ97: 9 | AR97: 5.4 | AS97: 14.16 | AT97: 6 | AU97: 23.28 | AV97: 5.52 | AW97: 16.92
A98: 2013-04-01 | B98: 60066.75263 | C98: 12768.33474 | D98: 25126.47963 | E98: 8447.866076 | F98: 106409.4331 | G98: 25.74 | H98: 25.09990968 | I98: 16.21847419 | J98: 35.47639022 | K98: 9.22 | L98: 7.153719351 | M98: 11.11862966 | N98: 1.52 | O98: 1.276649063 | P98: 1.887655636 | Q98: 4.53 | R98: 7364.748621 | S98: 4208.288 | T98: 12221.61215 | U98: 3562.06185 | V98: 19991.962 | W98: 60604.8595 | X98: 3241.144 | Y98: 10557.86644 | Z98: 545.5120548 | AA98: 10287.60457 | AB98: 30.5164186 | AC98: 84623.22301 | AD98: 8184.93 | AE98: 10276.59 | AF98: 11433.98 | AG98: 1333.83 | AH98: 212.920044 | AI98: 17134.2639 | AJ98: 7462.843477 | AK98: 764.0567085 | AL98: 3893.433591 | AM98: 312.8101646 | AN98: 137220.3934 | AP98: 4.92 | AQ98: 9.12 | AR98: 5.04 | AS98: 13.8 | AT98: 5.76 | AU98: 22.08 | AV98: 5.28 | AW98: 16.44
A99: 2013-05-01 | B99: 60844.64044 | C99: 12814.39697 | D99: 25239.42067 | E99: 9149.131648 | F99: 108047.5897 | G99: 26.62 | H99: 27.21457188 | I99: 16.35023127 | J99: 35.79288413 | K99: 9.13 | L99: 7.092409215 | M99: 10.89278011 | N99: 1.44 | O99: 1.165245712 | P99: 1.983332412 | Q99: 4.51 | R99: 7436.335619 | S99: 4336.638 | T99: 12518.7413 | U99: 3515.1547 | V99: 20370.534 | W99: 61312.448 | X99: 3267.82 | Y99: 12144.49614 | Z99: 548.2430393 | AA99: 11585.0931 | AB99: 31.77693609 | AC99: 86026.67114 | AD99: 8517.53 | AE99: 10687.8 | AF99: 11865.38 | AG99: 1390.55 | AH99: 216.2504905 | AI99: 17265.9813 | AJ99: 7487.394721 | AK99: 770.9913175 | AL99: 4156.63852 | AM99: 325.0270946 | AN99: 139746.8834 | AP99: 4.8 | AQ99: 9.24 | AR99: 5.04 | AS99: 13.2 | AT99: 5.52 | AU99: 22.08 | AV99: 5.4 | AW99: 16.2
A100: 2013-06-01 | B100: 61379.84658 | C100: 12885.66427 | D100: 25410.53529 | E100: 9282.431959 | F100: 108958.4781 | G100: 26.36 | H100: 28.0228127 | I100: 15.95695295 | J100: 36.18346076 | K100: 9.036 | L100: 7.004507965 | M100: 11.06908942 | N100: 1.43 | O100: 1.159442062 | P100: 1.883987212 | Q100: 4.45 | R100: 7677.1089 | S100: 4335.136 | T100: 12745.0643 | U100: 3693.7857 | V100: 20773.986 | W100: 62329.648 | X100: 3297.049 | Y100: 11437.07152 | Z100: 559.5195715 | AA100: 10854.71345 | AB100: 37.98757357 | AC100: 87504.57307 | AD100: 8809.85 | AE100: 10366.28 | AF100: 12198.08 | AG100: 1288.87 | AH100: 212.1981955 | AI100: 17235.91085 | AJ100: 7489.206983 | AK100: 769.0622315 | AL100: 3962.033876 | AM100: 327.9308469 | AN100: 141584.0666 | AP100: 5.04 | AQ100: 9 | AR100: 5.16 | AS100: 13.32 | AT100: 5.4 | AU100: 19.68 | AV100: 5.64 | AW100: 15.48
A101: 2013-07-01 | B101: 61638.65262 | C101: 12968.27827 | D101: 25677.00684 | E101: 9555.318032 | F101: 109839.2558 | G101: 26.99 | H101: 28.25178952 | I101: 16.27740703 | J101: 36.1954457 | K101: 9.22 | L101: 7.236011947 | M101: 11.11571504 | N101: 1.48 | O101: 1.282517037 | P101: 1.792275279 | Q101: 4.46 | R101: 7727.267 | S101: 4346.928 | T101: 12640.7035 | U101: 3861.11105 | V101: 20848.74255 | W101: 62829.702 | X101: 3317.72 | Y101: 10500.76447 | Z101: 559.2739151 | AA101: 9960.011141 | AB101: 41.1508482 | AC101: 88055.04095 | AD101: 9258.087691 | AE101: 10551.92 | AF101: 12470.28 | AG101: 1115.013 | AH101: 180.996845 | AI101: 17073.43242 | AJ101: 7512.896635 | AK101: 766.4512335 | AL101: 3859.395454 | AM101: 326.9726766 | AN101: 142797.7506 | AP101: 5.16 | AQ101: 9 | AR101: 5.28 | AS101: 13.08 | AT101: 5.52 | AU101: 23.52 | AV101: 5.76 | AW101: 15.72
A102: 2013-08-01 | B102: 62324.26529 | C102: 13121.27123 | D102: 25931.97845 | E102: 9463.472032 | F102: 110840.987 | G102: 27.4107645 | H102: 31.8469198 | I102: 15.59156267 | J102: 35.90296594 | K102: 8.896549356 | L102: 7.125036704 | M102: 10.66653508 | N102: 1.682150506 | O102: 1.520400806 | P102: 1.879668396 | Q102: 4.49 | R102: 7587.377857 | S102: 4303.226 | T102: 12462.7079 | U102: 3678.9731 | V102: 20444.907 | W102: 63499.5205 | X102: 3334.85 | Y102: 11598.58671 | Z102: 546.0747603 | AA102: 10964.77422 | AB102: 41.31202009 | AC102: 88417.85273 | AD102: 9605.48 | AE102: 10931 | AF102: 12812.89 | AG102: 1136.63 | AH102: 150.166041 | AI102: 17682.20253 | AJ102: 7572.596565 | AK102: 764.6164465 | AL102: 4068.42109 | AM102: 330.7036872 | AN102: 144674.3095 | AP102: 5.16 | AQ102: 8.64 | AR102: 5.28 | AS102: 12.6 | AT102: 5.4 | AU102: 21.6 | AV102: 5.52 | AW102: 19.08
A103: 2013-09-01 | B103: 62676.91915 | C103: 13184.39819 | D103: 26179.95204 | E103: 8993.848613 | F103: 111035.118 | G103: 27.45671466 | H103: 31.16532315 | I103: 14.20804883 | J103: 35.70490559 | K103: 9.243501248 | L103: 6.894534037 | M103: 11.02230596 | N103: 1.455340848 | O103: 1.313564134 | P103: 1.769106387 | Q103: 4.37 | R103: 7836.387394 | S103: 4567.361059 | T103: 12514.8717 | U103: 4021.61215 | V103: 21103.84491 | W103: 63824.336 | X103: 3349.022 | Y103: 11510.73919 | Z103: 535.1759542 | AA103: 10994.72555 | AB103: 42.32748438 | AC103: 89286.06501 | AD103: 9548.106836 | AE103: 11082.25962 | AF103: 13067.57579 | AG103: 1143.596 | AH103: 149.3244355 | AI103: 18101.05445 | AJ103: 7573.975943 | AK103: 766.228913 | AL103: 4111.744204 | AM103: 335.8508904 | AN103: 146270.5919 | AP103: 5.16 | AQ103: 8.88 | AR103: 5.4 | AS103: 12.6 | AT103: 5.52 | AU103: 19.56 | AV103: 5.76 | AW103: 19.2
A104: 2013-10-01 | B104: 63074.79261 | C104: 13343.26479 | D104: 26484.3399 | E104: 8901.431467 | F104: 111803.8288 | G104: 26.86396937 | H104: 29.72890335 | I104: 15.76672794 | J104: 35.53734965 | K104: 8.81718567 | L104: 7.188372445 | M104: 10.17488585 | N104: 1.668779538 | O104: 1.563421632 | P104: 1.790576668 | Q104: 4.39 | R104: 7635.905455 | S104: 4493.905032 | T104: 12508.89535 | U104: 3397.8576 | V104: 20400.65798 | W104: 64032.9605 | X104: 3357.605 | Y104: 11653.90572 | Z104: 529.9913844 | AA104: 11357.64865 | AB104: 41.32336756 | AC104: 88576.14857 | AD104: 9431.419289 | AE104: 11107.27955 | AF104: 13407.93987 | AG104: 1069.69 | AH104: 156.883451 | AI104: 17907.50132 | AJ104: 7753.710809 | AK104: 782.2287705 | AL104: 4182.943859 | AM104: 336.8951318 | AN104: 145672.9626 | AP104: 5.04 | AQ104: 8.4 | AR104: 5.28 | AS104: 14.04 | AT104: 5.4 | AU104: 20.28 | AV104: 5.88 | AW104: 17.4
A105: 2013-11-01 | B105: 64440.73641 | C105: 13519.49553 | D105: 26713.22542 | E105: 9170.427671 | F105: 113843.885 | G105: 26.78323487 | H105: 29.49860398 | I105: 15.57987518 | J105: 35.35546024 | K105: 8.891373155 | L105: 6.638980796 | M105: 11.09109851 | N105: 1.571033556 | O105: 1.38616923 | P105: 1.815295578 | Q105: 4.36 | R105: 7723.180771 | S105: 4490.232432 | T105: 12536.06735 | U105: 3776.91235 | V105: 20803.21213 | W105: 64414.5255 | X105: 3356.135 | Y105: 12862.89014 | Z105: 529.3123544 | AA105: 12542.64111 | AB105: 42.82159088 | AC105: 89380.61242 | AD105: 9543.293333 | AE105: 11320.06271 | AF105: 13232.23039 | AG105: 1080.914 | AH105: 167.3743365 | AI105: 17938.02726 | AJ105: 8086.671622 | AK105: 793.356855 | AL105: 4540.55608 | AM105: 334.2636581 | AN105: 146667.7232 | AP105: 4.68 | AQ105: 8.4 | AR105: 4.8 | AS105: 13.08 | AT105: 4.92 | AU105: 21.96 | AV105: 5.88 | AW105: 18.48
A106: 2013-12-01 | B106: 64939.08873 | C106: 13615.16979 | D106: 27049.08633 | E106: 8667.500302 | F106: 114270.8452 | G106: 26.06178523 | H106: 26.89588421 | I106: 15.98790361 | J106: 34.3783696 | K106: 8.345716183 | L106: 6.439636052 | M106: 10.43775091 | N106: 1.648652681 | O106: 1.512873937 | P106: 1.851940651 | Q106: 4.36 | R106: 8296.81585 | S106: 4693.221 | T106: 13455.1953 | U106: 3963.4767 | V106: 22111.893 | W106: 64506.849 | X106: 3345.568 | Y106: 12513.921 | Z106: 533.9515013 | AA106: 11940.18806 | AB106: 41.97109907 | AC106: 91030.02334 | AD106: 9628.805 | AE106: 10362.365 | AF106: 13167.667 | AG106: 993.772 | AH106: 176.2998985 | AI106: 17974.28425 | AJ106: 8280.124362 | AK106: 796.0142885 | AL106: 4638.750146 | AM106: 329.4559565 | AN106: 147441.149 | AP106: 4.56 | AQ106: 8.64 | AR106: 4.8 | AS106: 11.76 | AT106: 5.16 | AU106: 17.4 | AV106: 5.88 | AW106: 17.16
A107: 2014-01-01 | B107: 65565.12998 | C107: 13773.69532 | D107: 27428.24566 | E107: 8975.018932 | F107: 115742.0899 | G107: 26.41203171 | H107: 28.03434594 | I107: 16.7833403 | J107: 33.01531304 | K107: 8.569147046 | L107: 6.420185374 | M107: 10.8156621 | N107: 1.978356908 | O107: 2.025388041 | P107: 1.940902591 | Q107: 4.32 | R107: 8057.889727 | S107: 4742.973 | T107: 13837.76035 | U107: 3773.01935 | V107: 22353.7527 | W107: 65180.911 | X107: 3353.626 | Y107: 12347.78139 | Z107: 547.0896768 | AA107: 11691.02381 | AB107: 39.21578027 | AC107: 92052.92117 | AD107: 9790.473023 | AE107: 9793.545999 | AF107: 12909.16561 | AG107: 900.929 | AH107: 186.3517275 | AI107: 18178.54595 | AJ107: 8505.93544 | AK107: 795.096631 | AL107: 4766.21681 | AM107: 335.5088718 | AN107: 148011.2389 | AP107: 4.44 | AQ107: 8.16 | AR107: 4.56 | AS107: 12 | AT107: 4.8 | AU107: 20.28 | AW107: 19.8
A108: 2014-02-01 | B108: 65694.84556 | C108: 13843.87441 | D108: 27727.26189 | E108: 9020.470008 | F108: 116286.4519 | G108: 26.87080758 | H108: 28.29896601 | I108: 16.79207955 | J108: 33.55620875 | K108: 8.528308752 | L108: 6.352000887 | M108: 10.28763581 | N108: 1.57383596 | O108: 1.468512637 | P108: 1.703162163 | Q108: 4.3 | R108: 8099.734 | S108: 4725.875 | T108: 13371.68085 | U108: 4010.84215 | V108: 22108.398 | W108: 65782.935 | X108: 3372.81 | Y108: 12632.76537 | Z108: 560.3866485 | AA108: 11963.84254 | AB108: 40.67483272 | AC108: 92452.77764 | AD108: 10309.054 | AE108: 10897.807 | AF108: 13093.853 | AG108: 918.096 | AH108: 185.551322 | AI108: 18294.09346 | AJ108: 9002.908458 | AK108: 807.3783305 | AL108: 5185.023621 | AM108: 345.4907124 | AN108: 150431.0049 | AP108: 4.2 | AQ108: 8.88 | AR108: 4.44 | AS108: 12.12 | AT108: 4.68 | AU108: 22.08 | AV108: 3.84 | AW108: 20.76
A109: 2014-03-01 | B109: 65259.35584 | C109: 13964.76669 | D109: 28090.00814 | E109: 8768.749837 | F109: 116082.8805 | G109: 24.53337063 | H109: 25.24597957 | I109: 15.11361428 | J109: 33.84612912 | K109: 8.46797978 | L109: 6.257895578 | M109: 11.37578458 | N109: 1.564573439 | O109: 1.395267708 | P109: 1.849977739 | Q109: 4.3 | R109: 8025.049762 | S109: 4689.072 | T109: 13477.24815 | U109: 4007.330802 | V109: 22173.65095 | W109: 65792.7295 | X109: 3402.75 | Y109: 11578.96928 | Z109: 566.4482851 | AA109: 10994.503 | AB109: 41.76180738 | AC109: 92478.28321 | AD109: 10474.85406 | AE109: 11101.57014 | AF109: 13085.51921 | AG109: 899.897 | AH109: 176.063963 | AI109: 18296.76718 | AJ109: 9691.970098 | AK109: 823.805222 | AL109: 5466.502569 | AM109: 351.3972886 | AN109: 151210.8302 | AP109: 4.08 | AQ109: 8.04 | AR109: 4.08 | AS109: 12.24 | AT109: 4.32 | AU109: 19.92 | AV109: 3.72 | AW109: 17.88
A110: 2014-04-01 | B110: 65388.11441 | C110: 14089.38533 | D110: 28511.88761 | E110: 9119.93308 | F110: 117109.3204 | G110: 26.12875331 | H110: 27.97035931 | I110: 15.24987607 | J110: 34.28456884 | K110: 8.715940439 | L110: 5.972392193 | M110: 11.07179497 | N110: 1.591543961 | O110: 1.465461082 | P110: 1.769395085 | Q110: 4.25 | R110: 7978.462 | S110: 4728.2 | T110: 13686.0896 | U110: 4185.14515 | V110: 22599.43475 | W110: 65189.604 | X110: 3434.453 | Y110: 11800.63152 | Z110: 570.7383943 | AA110: 11068.40473 | AB110: 41.3690137 | AC110: 92485.08793 | AD110: 10962.51131 | AE110: 11030.3387 | AF110: 13065.09322 | AG110: 877.835 | AH110: 181.6311015 | AI110: 18190.36731 | AJ110: 10463.29905 | AK110: 839.368596 | AL110: 5942.643758 | AM110: 358.3423227 | AN110: 151794.5461 | AP110: 3.96 | AQ110: 8.28 | AR110: 3.96 | AS110: 12.48 | AT110: 4.44 | AU110: 19.56 | AV110: 3.48 | AW110: 20.76
A111: 2014-05-01 | B111: 65766.53499 | C111: 14118.0007 | D111: 28889.13608 | E111: 9037.204993 | F111: 117810.8768 | G111: 27.4277164 | H111: 30.48385889 | I111: 15.47066996 | J111: 34.06119093 | K111: 8.55267382 | L111: 5.799444388 | M111: 11.06936867 | N111: 1.241849286 | O111: 1.021519524 | P111: 1.634081484 | Q111: 4.14 | R111: 8098.402 | S111: 4767.138 | T111: 13853.7285 | U111: 4294.509155 | V111: 22915.37565 | W111: 64416.8575 | X111: 3477.185 | Y111: 13061.71361 | Z111: 576.2732831 | AA111: 11996.69826 | AB111: 41.77475914 | AC111: 92408.93202 | AD111: 11531.50484 | AE111: 11528.68108 | AF111: 13402.51535 | AG111: 1226.149 | AH111: 187.930158 | AI111: 18192.79591 | AJ111: 11306.62367 | AK111: 859.1868495 | AL111: 6551.438387 | AM111: 364.9034709 | AN111: 153727.977 | AP111: 3.96 | AQ111: 7.68 | AR111: 4.08 | AS111: 12.24 | AT111: 4.32 | AU111: 17.16 | AV111: 3.96 | AW111: 22.56
A112: 2014-06-01 | B112: 66168.76429 | C112: 14148.0135 | D112: 29223.80319 | E112: 8734.664857 | F112: 118275.2458 | G112: 26.57843084 | H112: 28.89651144 | I112: 15.22603614 | J112: 33.74564495 | K112: 8.221504819 | L112: 6.196352039 | M112: 9.483493793 | N112: 1.367077825 | O112: 1.187184505 | P112: 1.691484329 | Q112: 3.94 | R112: 8142.111 | S112: 4789.139 | T112: 13997.23755 | U112: 4346.7734 | V112: 23133.14995 | W112: 64522.267 | X112: 3525.183 | Y112: 11618.2262 | Z112: 579.2409038 | AA112: 10680.25414 | AB112: 43.95184846 | AC112: 92653.86106 | AD112: 11357.527 | AE112: 11247.935 | AF112: 13809.134 | AG112: 1460.053 | AH112: 182.6638925 | AI112: 18311.78024 | AJ112: 12122.16297 | AK112: 877.422797 | AL112: 6737.742823 | AM112: 368.1484186 | AN112: 154916.6487 | AP112: 3.96 | AQ112: 8.52 | AR112: 4.2 | AS112: 10.44 | AT112: 4.44 | AU112: 14.64 | AV112: 4.68 | AW112: 20.4
A113: 2014-07-01 | B113: 66458.07809 | C113: 14241.05607 | D113: 29476.75781 | E113: 9040.994939 | F113: 119216.8869 | G113: 24.95781361 | H113: 26.02532201 | I113: 15.20294304 | J113: 33.34407026 | K113: 8.05413924 | L113: 5.650626161 | M113: 10.10312255 | N113: 1.239079235 | O113: 1.113607468 | P113: 1.438741359 | Q113: 3.86 | R113: 7977.778 | S113: 4768.593 | T113: 13890.89735 | U113: 4270.79322 | V113: 22930.28357 | W113: 65535.362 | X113: 3583.246 | Y113: 10195.74389 | Z113: 578.5772415 | AA113: 9364.251398 | AB113: 47.35186328 | AC113: 93411.60944 | AD113: 11362.42308 | AE113: 10767.75051 | AF113: 14046.02238 | AG113: 1050.223 | AH113: 173.867798 | AI113: 18397.32063 | AJ113: 12841.64171 | AK113: 902.9998345 | AL113: 6913.055369 | AM113: 371.8997311 | AN113: 155668.9033 | AP113: 3.96 | AQ113: 8.16 | AR113: 3.96 | AS113: 11.4 | AT113: 4.32 | AU113: 12.48 | AV113: 3.12 | AW113: 19.68
A114: 2014-08-01 | B114: 67327.85147 | C114: 14354.08587 | D114: 29800.06376 | E114: 9032.480256 | F114: 120514.4814 | G114: 24.73655556 | H114: 26.57138408 | I114: 14.58798265 | J114: 32.94483023 | K114: 7.666713953 | L114: 5.501882205 | M114: 9.110591166 | N114: 1.343040083 | O114: 1.288350727 | P114: 1.411495353 | Q114: 3.67 | R114: 8142.2068 | S114: 4708.005 | T114: 13914.76855 | U114: 3996.736217 | V114: 22619.50977 | W114: 66249.8855 | X114: 3557.901 | Y114: 10125.50444 | Z114: 580.9804452 | AA114: 9296.569046 | AB114: 47.31253304 | AC114: 93789.89957 | AD114: 11740.02381 | AE114: 10785.49735 | AF114: 14195.3027 | AG114: 1037.117 | AH114: 158.6078035 | AI114: 18474.57864 | AJ114: 13840.92013 | AK114: 939.1599185 | AL114: 7451.891363 | AM114: 379.3008717 | AN114: 157129.9147 | AP114: 3.6 | AQ114: 7.8 | AR114: 3.6 | AS114: 10.44 | AT114: 3.72 | AU114: 12.72 | AV114: 4.08 | AW114: 19.92
A115: 2014-09-01 | B115: 67730.49743 | C115: 14426.4324 | D115: 30172.77529 | E115: 9044.939628 | F115: 121374.6448 | G115: 24.96235214 | H115: 27.06110737 | I115: 14.38921694 | J115: 32.09789008 | K115: 7.35368009 | L115: 5.264806173 | M115: 8.829024913 | N115: 1.283001929 | O115: 1.051827582 | P115: 1.618740527 | Q115: 3.58 | R115: 8182.405 | S115: 4883.958 | T115: 13997.46245 | U115: 4368.39255 | V115: 23249.813 | W115: 66266.083 | X115: 3571.933 | Y115: 10315.9784 | Z115: 585.7812696 | AA115: 9567.077671 | AB115: 46.63268591 | AC115: 94375.87832 | AD115: 12239.687 | AE115: 10599.541 | AF115: 14604.149 | AG115: 1108.257 | AH115: 141.705615 | AI115: 18568.04982 | AJ115: 14025.23819 | AK115: 959.4785785 | AL115: 7661.078455 | AM115: 381.3919444 | AN115: 158579.5141 | AP115: 3.48 | AQ115: 7.44 | AR115: 3.36 | AS115: 9.36 | AT115: 3.6 | AU115: 12.12 | AV115: 4.8 | AW115: 20.04
A116: 2014-10-01 | B116: 68033.96448 | C116: 14542.21416 | D116: 30651.80229 | E116: 8692.367348 | F116: 121920.3483 | G116: 24.1403866 | H116: 26.07961216 | I116: 14.47921341 | J116: 31.37556444 | K116: 7.310912419 | L116: 5.321077985 | M116: 8.867297995 | N116: 1.416498521 | O116: 1.224482746 | P116: 1.733216386 | Q116: 3.57 | R116: 8046.06 | S116: 4801.429 | T116: 13795.696 | U116: 4223.494 | V116: 22820.619 | W116: 66838.039 | X116: 3599.472 | Y116: 11948.00488 | Z116: 592.4296304 | AA116: 11080.32581 | AB116: 47.58121715 | AC116: 94670.65749 | AD116: 12176.286 | AE116: 10892.788 | AF116: 14768.473 | AG116: 962.396 | AH116: 139.3263925 | AI116: 18576.10536 | AJ116: 13029.71335 | AK116: 954.715182 | AL116: 7294.574496 | AM116: 380.2610853 | AN116: 158495.6252 | AP116: 3.6 | AQ116: 7.44 | AR116: 3.48 | AS116: 9.12 | AT116: 3.84 | AU116: 15.24 | AV116: 5.16 | AW116: 17.4
A117: 2014-11-01 | B117: 69824.92146 | C117: 14691.02463 | D117: 31194.06084 | E117: 9048.802358 | F117: 124758.8093 | G117: 23.93346914 | H117: 25.5027678 | I117: 14.75867165 | J117: 31.15511293 | K117: 6.898782263 | L117: 5.220469221 | M117: 8.198723638 | N117: 1.512884148 | O117: 1.4029676 | P117: 1.666134546 | Q117: 3.65 | R117: 8346.979 | S117: 4879.197 | T117: 14020.1812 | U117: 5062.41955 | V117: 23961.79775 | W117: 68224.4285 | X117: 3627.876 | Y117: 12672.88379 | Z117: 596.6191588 | AA117: 11731.43625 | AB117: 47.95572395 | AC117: 97304.21323 | AD117: 12254.16206 | AE117: 10275.04279 | AF117: 14985.44582 | AG117: 879.59 | AH117: 143.9688685 | AI117: 18583.10363 | AJ117: 12798.34139 | AK117: 968.2970798 | AL117: 7057.491477 | AM117: 381.0249202 | AN117: 160753.6485 | AP117: 3.48 | AQ117: 6.96 | AR117: 3.6 | AS117: 9.48 | AT117: 3.84 | AU117: 10.68 | AV117: 4.68 | AW117: 17.88
A118: 2014-12-01 | B118: 70255.53153 | C118: 14760.74409 | D118: 31579.01178 | E118: 8819.990372 | F118: 125415.2778 | G118: 23.70252557 | H118: 23.96429136 | I118: 15.01074083 | J118: 30.34777356 | K118: 6.875107198 | L118: 5.274291479 | M118: 7.973025653 | N118: 1.39379315 | O118: 1.230451901 | P118: 1.710706785 | Q118: 3.73 | R118: 8715.19525 | S118: 5160.604 | T118: 15039.2947 | U118: 5290.9196 | V118: 25490.8183 | W118: 69242.272 | X118: 3636.725 | Y118: 12662.70743 | Z118: 599.5634241 | AA118: 11862.82929 | AB118: 47.8727942 | AC118: 99721.38407 | AD118: 12683.85649 | AE118: 9484.976591 | AF118: 15401.51595 | AG118: 1136.301 | AH118: 196.9249723 | AI118: 18594.18638 | AJ118: 12995.36661 | AK118: 989.552399 | AL118: 6954.387857 | AM118: 389.7298653 | AN118: 163859.9467 | AP118: 3.48 | AQ118: 6.96 | AR118: 3.6 | AS118: 8.52 | AT118: 3.84 | AU118: 12.72 | AV118: 3.12 | AW118: 17.88
A119: 2015-01-01 | B119: 70467.61302 | C119: 14828.78995 | D119: 31737.14896 | E119: 9523.636449 | F119: 126557.1884 | G119: 24.09600442 | H119: 24.77009927 | I119: 15.33345316 | J119: 30.47260665 | K119: 7.070129911 | L119: 5.284772285 | M119: 8.322665405 | N119: 1.597160986 | O119: 1.516404191 | P119: 1.69946289 | Q119: 3.75 | R119: 8826.117334 | S119: 5142.750501 | T119: 15547.2187 | U119: 4724.8112 | V119: 25414.7804 | W119: 69418.6425 | X119: 3650.973 | Y119: 13476.61784 | Z119: 614.0085672 | AA119: 12577.72662 | AB119: 46.77360521 | AC119: 99950.52209 | AD119: 13130.56195 | AE119: 9589.866561 | AF119: 15374.20457 | AG119: 1083.888 | AH119: 227.2442853 | AI119: 18486.30926 | AJ119: 13028.37942 | AK119: 1004.806149 | AL119: 6893.084381 | AM119: 403.4105662 | AN119: 164579.2873 | AP119: 3.36 | AQ119: 6.24 | AR119: 3.24 | AS119: 9.12 | AT119: 3.48 | AU119: 14.4 | AV119: 5.4 | AW119: 20.52
A120: 2015-02-01 | B120: 70127.49067 | C120: 14883.44406 | D120: 31939.02477 | E120: 9126.025769 | F120: 126075.9853 | G120: 25.23445451 | H120: 26.27531803 | I120: 15.40213652 | J120: 31.14698589 | K120: 7.127845606 | L120: 5.518154265 | M120: 7.803606589 | N120: 1.684601637 | O120: 1.658110573 | P120: 1.735864099 | Q120: 3.73 | R120: 9072.602 | S120: 5188.517379 | T120: 15391.7826 | U120: 4756.13485 | V120: 25336.43483 | W120: 69137.1035 | X120: 3669.621 | Y120: 13464.06769 | Z120: 632.7346301 | AA120: 12542.35088 | AB120: 47.3766216 | AC120: 99650.23415 | AD120: 13338.5216 | AE120: 10184.926 | AF120: 15739.519 | AG120: 940.647 | AH120: 205.2087835 | AI120: 18399.15891 | AJ120: 13647.40167 | AK120: 1031.045629 | AL120: 7096.806027 | AM120: 408.1114949 | AN120: 165631.7452 | AP120: 3.24 | AQ120: 5.16 | AR120: 3.24 | AS120: 10.2 | AT120: 3.6 | AU120: 12.48 | AV120: 5.16 | AW120: 20.04
A121: 2015-03-01 | B121: 70094.1534 | C121: 14984.89749 | D121: 32327.5347 | E121: 9152.581286 | F121: 126559.1669 | G121: 23.29988926 | H121: 24.72073657 | I121: 13.73076495 | J121: 30.79007734 | K121: 7.145096913 | L121: 5.452256842 | M121: 8.16834574 | N121: 1.458816477 | O121: 1.220352472 | P121: 1.813407591 | Q121: 3.67 | R121: 8878.899808 | S121: 5184.078906 | T121: 15487.5511 | U121: 4414.2668 | V121: 25085.89681 | W121: 69548.4275 | X121: 3705.513 | Y121: 11904.06062 | Z121: 641.62365 | AA121: 11373.88233 | AB121: 59.7775907 | AC121: 99451.86166 | AD121: 13055.86028 | AE121: 9967.373872 | AF121: 15803.28186 | AG121: 912.9 | AH121: 205.7216605 | AI121: 18278.32248 | AJ121: 14539.25212 | AK121: 1053.32967 | AL121: 7311.221943 | AM121: 409.8475904 | AN121: 165546.8341 | AP121: 3.36 | AQ121: 5.28 | AR121: 3.48 | AS121: 9.84 | AT121: 3.72 | AU121: 13.08 | AV121: 5.16 | AW121: 19.32
A122: 2015-04-01 | B122: 70180.50611 | C122: 15085.988 | D122: 32816.12944 | E122: 9141.618814 | F122: 127224.2424 | G122: 23.6195203 | H122: 24.94630274 | I122: 14.20142725 | J122: 30.55684493 | K122: 7.036429824 | L122: 5.567055023 | M122: 7.890542971 | N122: 1.62 | O122: 1.55004718 | P122: 1.664482007 | Q122: 3.6 | R122: 8864.913116 | S122: 5203.552914 | T122: 15606.2384 | U122: 4667.7036 | V122: 25477.49491 | W122: 70453.226 | X122: 3747.868 | Y122: 11921.30909 | Z122: 640.165705 | AA122: 11498.95143 | AB122: 73.2845248 | AC122: 100667.8278 | AD122: 12963.29143 | AE122: 9746.058519 | AF122: 15891.18092 | AG122: 714.964 | AH122: 201.090092 | AI122: 18329.93332 | AJ122: 14774.93378 | AK122: 1072.419974 | AL122: 7229.984442 | AM122: 412.388113 | AN122: 166719.3272 | AP122: 3.36 | AQ122: 5.28 | AR122: 3.6 | AS122: 10.08 | AT122: 3.84 | AU122: 11.16 | AV122: 4.68 | AW122: 18.6
A123: 2015-05-01 | B123: 71322.35712 | C123: 14931.115 | D123: 33276.68512 | E123: 9443.744469 | F123: 128973.9017 | G123: 23.77792025 | H123: 25.43744992 | I123: 14.08634671 | J123: 30.34782747 | K123: 6.878039791 | L123: 5.28279614 | M123: 8.081411643 | N123: 1.38183961 | O123: 1.242867528 | P123: 1.768211172 | Q123: 3.61 | R123: 9360.241617 | S123: 5334.619242 | T123: 15875.383 | U123: 4746.82415 | V123: 25956.82639 | W123: 70801.217 | X123: 3807.353 | Y123: 12193.99735 | Z123: 634.8859205 | AA123: 11803.47908 | AB123: 65.60226733 | AC123: 101525.1983 | AD123: 13209.36698 | AE123: 10273.83767 | AF123: 16652.28961 | AG123: 670.124 | AH123: 191.9154015 | AI123: 18536.23105 | AJ123: 14600.03263 | AK123: 1087.14833 | AL123: 6884.715945 | AM123: 416.9722607 | AN123: 169444.4558 | AP123: 3.48 | AQ123: 5.16 | AR123: 3.72 | AS123: 9.96 | AT123: 3.96 | AU123: 9.96 | AV123: 3.48 | AW123: 19.8
A124: 2015-06-01 | B124: 71562.74355 | C124: 14969.74562 | D124: 33659.7144 | E124: 9459.942252 | F124: 129652.1458 | G124: 23.47911758 | H124: 25.01146347 | I124: 13.97428995 | J124: 30.10902445 | K124: 7.062430963 | L124: 5.711379322 | M124: 8.082284164 | N124: 1.681825336 | O124: 1.604697697 | P124: 1.788890232 | Q124: 3.66 | R124: 9207.026537 | S124: 5380.34316 | T124: 16190.16595 | U124: 4894.1824 | V124: 26464.69151 | W124: 71297.1295 | X124: 3874.821 | Y124: 10893.6815 | Z124: 630.3021338 | AA124: 10657.81403 | AB124: 53.74163181 | AC124: 102449.07 | AD124: 13138.29339 | AE124: 9618.983597 | AF124: 17489.83624 | AG124: 625.748 | AH124: 188.2490725 | AI124: 18517.85163 | AJ124: 14818.10757 | AK124: 1093.431324 | AL124: 6679.909689 | AM124: 418.4632043 | AN124: 170841.1979 | AP124: 3.48 | AQ124: 5.4 | AR124: 3.72 | AS124: 9.84 | AT124: 3.96 | AU124: 13.32 | AW124: 16.56
A125: 2015-07-01 | B125: 72405.91758 | C125: 15119.75806 | D125: 34057.18255 | E125: 9869.690447 | F125: 131452.5486 | G125: 22.91422975 | H125: 24.30348208 | I125: 14.25489779 | J125: 29.39969013 | K125: 6.832705522 | L125: 5.529572173 | M125: 7.561164244 | N125: 1.548626104 | O125: 1.455543012 | P125: 1.688742606 | Q125: 3.67 | R125: 9221.036235 | S125: 5331.025297 | T125: 16112.98905 | U125: 4858.94085 | V125: 26302.9552 | W125: 72876.938 | X125: 3911.563 | Y125: 12324.47537 | Z125: 629.1083495 | AA125: 11871.82024 | AB125: 50.52274912 | AC125: 104122.6969 | AD125: 13486.67746 | AE125: 9710.081006 | AF125: 18422.9604 | AG125: 836.305 | AH125: 187.6014355 | AI125: 18594.80765 | AJ125: 15397.27214 | AK125: 1125.30505 | AL125: 6884.752599 | AM125: 423.8553078 | AN125: 174575.0992 | AP125: 3.48 | AQ125: 5.28 | AR125: 3.72 | AS125: 8.52 | AT125: 3.84 | AU125: 13.2 | AV125: 2.88 | AW125: 16.68
A126: 2015-08-01 | B126: 72956.08469 | C126: 15212.8619 | D126: 34450.45057 | E126: 10140.18159 | F126: 132759.5788 | G126: 23.52036863 | H126: 25.73607752 | I126: 13.95981125 | J126: 29.10893364 | K126: 7.070604827 | L126: 5.700931012 | M126: 7.82370227 | N126: 1.585632113 | O126: 1.517493004 | P126: 1.697034476 | Q126: 3.63 | R126: 9281.872971 | S126: 5309.774591 | T126: 15969.94775 | U126: 4927.299035 | V126: 26207.02138 | W126: 74528.4105 | X126: 3952.243143 | Y126: 12435.47502 | Z126: 638.5563383 | AA126: 11974.52688 | AB126: 48.08223622 | AC126: 105739.0973 | AD126: 14081.39548 | AE126: 10151.41907 | AF126: 18792.22075 | AG126: 614.6302857 | AH126: 192.2264735 | AI126: 18803.08476 | AJ126: 16062.83734 | AK126: 1120.089806 | AL126: 7206.208428 | AM126: 439.6898268 | AN126: 177911.103 | AP126: 3.6 | AQ126: 5.4 | AR126: 3.72 | AS126: 9.6 | AT126: 3.96 | AU126: 14.64 | AV126: 2.88 | AW126: 18.12
A127: 2015-09-01 | B127: 74374.98091 | C127: 15318.95111 | D127: 34969.09535 | E127: 9950.781261 | F127: 134613.8086 | G127: 23.22803187 | H127: 25.41149716 | I127: 13.93383267 | J127: 29.05524698 | K127: 6.340226413 | L127: 5.523640285 | M127: 6.77627917 | N127: 1.573994499 | O127: 1.195511142 | P127: 2.085356488 | Q127: 3.65 | R127: 9308.615982 | S127: 5432.638092 | T127: 15997.23605 | U127: 5049.2496 | V127: 26479.12374 | W127: 75273.118 | X127: 3994.699 | Y127: 11276.48309 | Z127: 650.3782642 | AA127: 11006.06256 | AB127: 47.09145157 | AC127: 106620.6481 | AD127: 14046.93452 | AE127: 9950.487984 | AF127: 19439.84449 | AG127: 690.818 | AH127: 188.53326 | AI127: 18817.07779 | AJ127: 15995.92409 | AK127: 1108.821951 | AL127: 7179.662686 | AM127: 448.1671938 | AN127: 179231.2603 | AP127: 3.72 | AQ127: 5.4 | AR127: 3.96 | AS127: 8.28 | AT127: 4.32 | AU127: 10.08 | AV127: 3.84 | AW127: 16.56
A128: 2015-10-01 | B128: 74857.11219 | C128: 15454.55641 | D128: 35453.70579 | E128: 9723.623326 | F128: 135488.9977 | G128: 23.14114721 | H128: 24.94087181 | I128: 14.30481151 | J128: 28.61310024 | K128: 6.236534735 | L128: 5.764830451 | M128: 6.279468 | N128: 1.524345819 | O128: 1.271920214 | P128: 2.022964671 | Q128: 3.64 | R128: 9313.417157 | S128: 5406.51888 | T128: 16036.97045 | U128: 4783.22715 | V128: 26226.71648 | W128: 76298.9815 | X128: 4046.295 | Y128: 12895.18227 | Z128: 655.2222197 | AA128: 12577.90143 | AB128: 46.61823641 | AC128: 107497.8778 | AD128: 14183.5433 | AE128: 10205.30667 | AF128: 19827.07123 | AG128: 1012.457 | AH128: 172.358159 | AI128: 18858.93468 | AJ128: 15625.41678 | AK128: 1114.915371 | AL128: 6856.090974 | AM128: 451.0327521 | AN128: 181190.7573 | AP128: 3.72 | AQ128: 5.88 | AR128: 4.08 | AS128: 8.16 | AT128: 4.68 | AU128: 9.96 | AV128: 3.6 | AW128: 18.12
A129: 2015-11-01 | B129: 75881.90439 | C129: 15620.0482 | D129: 35930.22474 | E129: 9838.678268 | F129: 137270.8556 | G129: 22.7140556 | H129: 23.95500714 | I129: 14.68075926 | J129: 28.59681534 | K129: 6.926419624 | L129: 5.6078932 | M129: 7.605831205 | N129: 1.566495477 | O129: 1.38018172 | P129: 2.007846961 | Q129: 3.72 | R129: 9403.93153 | S129: 5444.231194 | T129: 16236.31145 | U129: 4992.0007 | V129: 26672.54334 | W129: 77029.8195 | X129: 4203.139 | Y129: 13128.00434 | Z129: 659.5811884 | AA129: 12711.17988 | AB129: 44.96797964 | AC129: 108936.9395 | AD129: 14497.63365 | AE129: 9999.312836 | AF129: 20349.4138 | AG129: 920.13 | AH129: 159.849122 | AI129: 18856.41959 | AJ129: 15205.18186 | AK129: 1132.919375 | AL129: 6329.888519 | AM129: 455.2294881 | AN129: 183272.6817 | AP129: 3.84 | AQ129: 5.52 | AR129: 4.32 | AS129: 9 | AT129: 4.92 | AU129: 13.32 | AV129: 2.4 | AW129: 16.92
A130: 2015-12-01 | B130: 76628.98025 | C130: 15792.3211 | D130: 36337.55289 | E130: 9626.082123 | F130: 138384.9364 | G130: 22.82592773 | H130: 23.78189297 | I130: 14.97456553 | J130: 28.35145153 | K130: 6.855746396 | L130: 5.906237776 | M130: 7.370222799 | N130: 1.829694743 | O130: 1.587507177 | P130: 2.32712497 | Q130: 3.77 | R130: 9701.93858 | S130: 5679.27348 | T130: 17150.63315 | U130: 5380.1329 | V130: 28210.03953 | W130: 77307.4295 | X130: 4071.246 | Y130: 13029.31103 | Z130: 663.4072696 | AA130: 12517.89872 | AB130: 42.45348065 | AC130: 110721.0811 | AD130: 14524.2373 | AE130: 9013.17631 | AF130: 20421.029 | AG130: 834.29 | AH130: 146.9191875 | AI130: 18754.9356 | AJ130: 14386.52525 | AK130: 1128.310043 | AL130: 5631.841964 | AM130: 455.0307701 | AN130: 183843.6311 | AP130: 3.96 | AQ130: 5.76 | AR130: 4.44 | AS130: 8.76 | AT130: 5.04 | AU130: 11.4 | AV130: 3.888386799 | AW130: 19.2
A131: 2016-01-01 | B131: 76909.28362 | C131: 15890.97804 | D131: 36583.84548 | E131: 9723.548054 | F131: 139107.6552 | G131: 23.39494371 | H131: 24.44746588 | I131: 15.4514774 | J131: 28.29147038 | K131: 7.284385244 | L131: 6.131367729 | M131: 7.737769931 | N131: 1.892401975 | O131: 1.559278305 | P131: 2.44381921 | Q131: 3.832336445 | R131: 9837.795577 | S131: 5657.760447 | T131: 17805.4914 | U131: 5355.3672 | V131: 28818.61905 | W131: 77857.243 | X131: 4081.34 | Y131: 13050.2783 | Z131: 665.973599 | AA131: 12535.38222 | AB131: 41.07917035 | AC131: 111896.9926 | AD131: 14341.74469 | AE131: 8950.267592 | AF131: 20136.19778 | AG131: 765.064 | AH131: 114.7664075 | AI131: 18788.68376 | AJ131: 13892.68772 | AK131: 1103.788426 | AL131: 5315.359511 | AM131: 454.5066657 | AN131: 184220.3268 | AP131: 3.96 | AQ131: 5.52 | AR131: 4.44 | AS131: 9.24 | AT131: 4.92 | AU131: 12.6 | AV131: 6.275554054 | AW131: 18.96
A132: 2016-02-01 | B132: 76958.32612 | C132: 15977.51775 | D132: 36897.02856 | E132: 9759.670523 | F132: 139592.543 | G132: 23.87256774 | H132: 25.132126 | I132: 15.35234214 | J132: 28.75408688 | K132: 7.753267558 | L132: 6.36037776 | M132: 8.12785259 | N132: 1.666434118 | O132: 1.43493427 | P132: 2.190425289 | Q132: 3.828542547 | R132: 9881.92754 | S132: 5701.472784 | T132: 17604.6434 | U132: 5029.71005 | V132: 28335.82623 | W132: 78229.5775 | X132: 4105.194 | Y132: 12149.95685 | Z132: 670.1787336 | AA132: 11566.70931 | AB132: 41.55628877 | AC132: 111882.4677 | AD132: 14397.7196 | AE132: 9670.475486 | AF132: 20329.02882 | AG132: 1009.983 | AH132: 97.2685295 | AI132: 18862.7709 | AJ132: 13972.88742 | AK132: 1081.497366 | AL132: 5593.26893 | AM132: 459.0082164 | AN132: 185251.8217 | AP132: 3.84 | AQ132: 5.76 | AR132: 4.32 | AS132: 10.08 | AT132: 4.68 | AU132: 14.04 | AV132: 4.737751442 | AW132: 21.12
A133: 2016-03-01 | B133: 76499.36454 | C133: 16125.04506 | D133: 37249.33251 | E133: 9538.357154 | F133: 139412.0993 | G133: 22.68924007 | H133: 24.29993198 | I133: 14.00804779 | J133: 28.92760012 | K133: 7.710791839 | L133: 6.101207724 | M133: 8.49725247 | N133: 1.845041893 | O133: 1.6036655 | P133: 2.37109483 | Q133: 3.805622256 | R133: 9965.108722 | S133: 5684.251463 | T133: 17211.32185 | U133: 4636.5459 | V133: 27532.11921 | W133: 79208.841 | X133: 4144.058 | Y133: 12247.22295 | Z133: 686.4945097 | AA133: 11625.9844 | AB133: 41.41282592 | AC133: 112151.3384 | AD133: 14441.96263 | AE133: 9194.784853 | AF133: 20381.63267 | AG133: 746.735 | AH133: 109.08516 | AI133: 18927.66718 | AJ133: 14274.35333 | AK133: 1095.949728 | AL133: 5907.991387 | AM133: 460.3226973 | AN133: 184955.1949 | AP133: 3.84 | AQ133: 5.64 | AR133: 4.2 | AS133: 10.44 | AT133: 4.56 | AU133: 12.96 | AV133: 5.100839965 | AW133: 19.56
A134: 2016-04-01 | B134: 76906.6148 | C134: 16248.96405 | D134: 37550.43324 | E134: 9445.977972 | F134: 140151.9901 | G134: 23.30594442 | H134: 25.07750411 | I134: 14.23914786 | J134: 28.81423096 | K134: 7.46724243 | L134: 5.917631481 | M134: 8.393323973 | N134: 1.916164455 | O134: 1.746347169 | P134: 2.206591953 | Q134: 3.78533942 | R134: 9801.402606 | S134: 5656.874247 | T134: 17270.3228 | U134: 4664.5282 | V134: 27591.72525 | W134: 79718.096 | X134: 4186.943 | Y134: 13605.31746 | Z134: 704.6780735 | AA134: 12757.35482 | AB134: 40.52140103 | AC134: 113008.8836 | AD134: 14473.50314 | AE134: 9374.665327 | AF134: 20394.83562 | AG134: 342.719 | AH134: 133.0507935 | AI134: 18951.63335 | AJ134: 14497.18077 | AK134: 1108.789265 | AL134: 6195.582242 | AM134: 457.4293381 | AN134: 185632.2492 | AP134: 3.72 | AQ134: 5.52 | AR134: 3.96 | AS134: 10.2 | AT134: 4.32 | AU134: 13.8 | AV134: 4.330768544 | AW134: 17.16
A135: 2016-05-01 | B135: 77802.40712 | C135: 16284.82216 | D135: 37851.38638 | E135: 10030.67371 | F135: 141969.2894 | G135: 22.86927625 | H135: 24.52369026 | I135: 14.24791938 | J135: 28.43906961 | K135: 7.453991314 | L135: 5.771290623 | M135: 8.662944903 | N135: 1.629337752 | O135: 1.377551916 | P135: 2.300888066 | Q135: 3.788066653 | R135: 9947.175277 | S135: 5714.136396 | T135: 17509.4827 | U135: 4364.4739 | V135: 27588.093 | W135: 79905.5435 | X135: 4241.536 | Y135: 13940.32921 | Z135: 707.9429104 | AA135: 13117.70581 | AB135: 40.81068536 | AC135: 113224.9281 | AD135: 14918.09963 | AE135: 10118.83868 | AF135: 21591.54046 | AG135: 342.094 | AH135: 162.5087985 | AI135: 18977.74953 | AJ135: 14864.77825 | AK135: 1121.167303 | AL135: 6434.236398 | AM135: 459.7832367 | AN135: 188427.6851 | AP135: 3.72 | AQ135: 5.4 | AR135: 3.96 | AS135: 9.72 | AT135: 4.32 | AU135: 14.88 | AV135: 3.060608739 | AW135: 17.76
A136: 2016-06-01 | B136: 77961.40401 | C136: 16355.81727 | D136: 38123.10271 | E136: 9538.048015 | F136: 141978.372 | G136: 23.12398217 | H136: 24.97852368 | I136: 14.22072608 | J136: 28.57058895 | K136: 7.156553266 | L136: 5.776403002 | M136: 7.933515875 | N136: 1.70253879 | O136: 1.458299253 | P136: 2.373994513 | Q136: 3.756538019 | R136: 9880.875557 | S136: 5756.179516 | T136: 17257.4023 | U136: 4774.15865 | V136: 27787.74047 | W136: 80733.0015 | X136: 4300.334 | Y136: 12817.67851 | Z136: 718.9076481 | AA136: 12283.71988 | AB136: 43.107268 | AC136: 114030.835 | AD136: 15262.87138 | AE136: 9876.988377 | AF136: 22661.29307 | AG136: 213.357 | AH136: 184.41608 | AI136: 18953.41609 | AJ136: 15215.96172 | AK136: 1118.944068 | AL136: 6544.965811 | AM136: 454.9773507 | AN136: 190518.1396 | AP136: 3.72 | AQ136: 5.28 | AR136: 3.96 | AS136: 10.08 | AT136: 4.2 | AU136: 12.6 | AV136: 3 | AW136: 15.72
A137: 2016-07-01 | B137: 78720.04652 | C137: 16461.59112 | D137: 38388.82258 | E137: 9648.77962 | F137: 143219.2398 | G137: 23.19229441 | H137: 24.92389628 | I137: 14.58187777 | J137: 28.57078162 | K137: 6.807152895 | L137: 5.683329817 | M137: 7.168358798 | N137: 1.702362083 | O137: 1.419846815 | P137: 2.196154745 | Q137: 3.726151404 | R137: 9808.721735 | S137: 5755.090913 | T137: 16907.03085 | U137: 4622.65995 | V137: 27284.78171 | W137: 81044.4625 | X137: 4329.216 | Y137: 12863.65802 | Z137: 755.7402226 | AA137: 12199.03362 | AB137: 45.32260017 | AC137: 114033.5022 | AD137: 15158.08126 | AE137: 10806.00535 | AF137: 23846.5774 | AG137: 212.466 | AH137: 209.318744 | AI137: 18888.66226 | AJ137: 15535.06827 | AK137: 1116.716308 | AL137: 6816.800531 | AM137: 451.7743346 | AN137: 192537.823 | AP137: 3.72 | AQ137: 5.76 | AR137: 3.96 | AS137: 9.6 | AT137: 4.2 | AU137: 10.2 | AV137: 4.18743366 | AW137: 17.52
A138: 2016-08-01 | B138: 79253.89133 | C138: 16600.65725 | D138: 38668.3738 | E138: 9761.292044 | F138: 144284.2144 | G138: 22.77836406 | H138: 24.44172944 | I138: 14.38336587 | J138: 28.5062279 | K138: 6.754499731 | L138: 5.7887252 | M138: 6.964915408 | N138: 1.655275526 | O138: 1.277109058 | P138: 2.479250582 | Q138: 3.720552392 | R138: 9868.472228 | S138: 5710.037086 | T138: 16768.1348 | U138: 4489.7028 | V138: 26967.87469 | W138: 81457.952 | X138: 4355.658 | Y138: 12799.43375 | Z138: 779.5335006 | AA138: 12111.34373 | AB138: 42.00970625 | AC138: 114207.0985 | AD138: 15190.66536 | AE138: 10694.33583 | AF138: 25208.82348 | AG138: 457.5409138 | AH138: 236.537953 | AI138: 19059.28834 | AJ138: 16146.14844 | AK138: 1135.143187 | AL138: 7174.881052 | AM138: 461.6602439 | AN138: 194699.0407 | AP138: 3.72 | AQ138: 5.28 | AR138: 3.84 | AS138: 10.68 | AT138: 4.08 | AU138: 10.08 | AW138: 15.96
A139: 2016-09-01 | B139: 78914.83739 | C139: 16693.43858 | D139: 38877.24006 | E139: 9590.443577 | F139: 144075.9596 | G139: 23.15573613 | H139: 24.90250085 | I139: 14.35446641 | J139: 28.28456051 | K139: 6.877658498 | L139: 5.858701503 | M139: 7.121551096 | N139: 1.786309884 | O139: 1.416342764 | P139: 2.49504078 | Q139: 3.663713554 | R139: 9852.847075 | S139: 5858.227198 | T139: 16724.2289 | U139: 4662.8067 | V139: 27245.2628 | W139: 82580.36958 | X139: 4383.023 | Y139: 13719.86845 | Z139: 779.4522154 | AA139: 12980.45266 | AB139: 41.45353826 | AC139: 115686.0698 | AD139: 14986.54257 | AE139: 10307.50847 | AF139: 25832.68817 | AG139: 224.088 | AH139: 249.881426 | AI139: 19335.48559 | AJ139: 16755.27485 | AK139: 1146.323257 | AL139: 7553.800715 | AM139: 470.6293478 | AN139: 196499.4321 | AP139: 3.72 | AQ139: 5.52 | AR139: 3.96 | AS139: 11.52 | AT139: 4.08 | AU139: 10.08 | AV139: 3.96576 | AW139: 18
A140: 2016-10-01 | B140: 79154.5452 | C140: 16802.97934 | D140: 39065.73854 | E140: 9127.347267 | F140: 144150.6103 | G140: 23.20043758 | H140: 24.79554588 | I140: 14.60978353 | J140: 28.11472408 | K140: 7.675640643 | L140: 5.615601117 | M140: 9.274014864 | N140: 1.960655747 | O140: 1.657352047 | P140: 2.518268777 | Q140: 3.558044109 | R140: 9983.213152 | S140: 5845.642227 | T140: 16680.6456 | U140: 4593.77655 | V140: 27120.06438 | W140: 83881.74358 | X140: 4408.993 | Y140: 14932.28183 | Z140: 714.0616973 | AA140: 14195.55536 | AB140: 44.56622936 | AC140: 116817.0229 | AD140: 14724.729 | AE140: 10134.48631 | AF140: 26046.34613 | AG140: 269.024 | AH140: 258.4530665 | AI140: 19499.24802 | AJ140: 16696.19675 | AK140: 1145.963569 | AL140: 7527.904953 | AM140: 472.8777726 | AN140: 197590.687 | AP140: 3.72 | AQ140: 5.16 | AR140: 3.96 | AS140: 11.4 | AT140: 4.08 | AU140: 16.2 | AV140: 4.698897324 | AW140: 17.28
A141: 2016-11-01 | B141: 80074.99694 | C141: 16996.71901 | D141: 39397.55224 | E141: 9456.596283 | F141: 145925.8645 | G141: 22.64391089 | H141: 23.86941595 | I141: 14.72874464 | J141: 28.25437016 | K141: 7.565957631 | L141: 5.611187546 | M141: 8.920701111 | N141: 1.842080656 | O141: 1.589355792 | P141: 2.339208395 | Q141: 3.510301705 | R141: 10033.10099 | S141: 5857.367063 | T141: 17129.4913 | U141: 4884.0195 | V141: 27870.87786 | W141: 83894.1615 | X141: 4411.979 | Y141: 14338.48406 | Z141: 716.1095512 | AA141: 13789.62323 | AB141: 41.64037775 | AC141: 117400.3484 | AD141: 14913.62708 | AE141: 9458.18263 | AF141: 26563.27451 | AG141: 396.18 | AH141: 267.512052 | AI141: 19661.68692 | AJ141: 15509.99561 | AK141: 1131.835822 | AL141: 6710.600317 | AM141: 460.7064953 | AN141: 198131.3362 | AP141: 3.6 | AQ141: 5.28 | AR141: 3.96 | AS141: 10.44 | AT141: 4.08 | AU141: 15.24 | AV141: 3.96 | AW141: 18.72
A142: 2016-12-01 | B142: 80383.10421 | C142: 17084.00847 | D142: 39818.56235 | E142: 8922.041264 | F142: 146207.7163 | G142: 22.37884938 | H142: 23.27046712 | I142: 14.58492153 | J142: 28.02879095 | K142: 7.643104968 | L142: 5.52943985 | M142: 9.66217594 | N142: 2.345209144 | O142: 2.201666159 | P142: 2.628284071 | Q142: 3.588765866 | R142: 10171.73623 | S142: 6057.664141 | T142: 18025.41335 | U142: 5286.8968 | V142: 29369.97429 | W142: 83646.7365 | X142: 4396.467 | Y142: 15085.26534 | Z142: 744.0890385 | AA142: 14344.53091 | AB142: 48.74132456 | AC142: 118849.2599 | AD142: 14588.9067 | AE142: 8249.401307 | AF142: 26652.13396 | AG142: 541.281 | AH142: 279.313601 | AI142: 20247.36621 | AJ142: 15690.6552 | AK142: 1120.356357 | AL142: 6883.429319 | AM142: 466.0071982 | AN142: 198869.2378 | AP142: 3.72 | AQ142: 5.28 | AR142: 3.96 | AS142: 11.28 | AT142: 4.2 | AU142: 16.32 | AV142: 4.985209031 | AW142: 15.84
A143: 2017-01-31 | B143: 79954.53432 | C143: 17174.98206 | D143: 39981.12941 | E143: 8837.803084 | F143: 145948.4489 | G143: 23.03861378 | H143: 23.76824852 | I143: 15.2675071 | J143: 28.2997541 | K143: 7.884418591 | L143: 5.512484199 | M143: 9.764094107 | N143: 2.214496041 | O143: 2.141242012 | P143: 2.294855847 | Q143: 3.616186992 | R143: 10241.67225 | S143: 6020.246474 | T143: 18252.03274 | U143: 5241.545862 | V143: 29513.82507 | W143: 81901.43047 | X143: 4389.214026 | Y143: 14143.91961 | Z143: 772.0275193 | AA143: 13529.00392 | AB143: 45.62566228 | AC143: 117145.7871 | AD143: 16706.41124 | AE143: 8019.099477 | AF143: 27114.95878 | AG143: 209.054 | AH143: 285.397675 | AI143: 20470.90602 | AJ143: 15936.91099 | AK143: 1123.611689 | AL143: 6989.964117 | AM143: 465.8160236 | AN143: 199556.3568 | AP143: 3.48 | AQ143: 4.92 | AR143: 3.6 | AS143: 12.72 | AT143: 3.72 | AU143: 17.52 | AV143: 2.64 | AW143: 14.88
A144: 2017-02-01 | B144: 80161.87409 | C144: 17240.20069 | D144: 40304.22663 | E144: 8926.842738 | F144: 146633.1441 | G144: 23.34 | H144: 24.14 | I144: 15.12 | J144: 28.68 | K144: 8.84 | L144: 5.58 | M144: 10.93 | N144: 2.16 | O144: 1.86 | P144: 2.6 | Q144: 3.55 | R144: 10225.16109 | S144: 6023.707905 | T144: 17644.10296 | U144: 5415.903242 | V144: 29083.71411 | W144: 81274.8156 | X144: 4396.342559 | Y144: 13198.92802 | Z144: 803.2175 | AA144: 12647.0591 | AB144: 42.112 | AC144: 116067.8467 | AD144: 16704.18114 | AE144: 8640.026344 | AF144: 27444.39873 | AG144: 259.3752174 | AH144: 276.0514975 | AI144: 20918.59557 | AJ144: 17106.95806 | AK144: 1144.078461 | AL144: 7546.288317 | AM144: 466.5151925 | AN144: 200548.7082 | AP144: 3.36 | AQ144: 5.04 | AR144: 3.36 | AS144: 13.92 | AT144: 3.6 | AU144: 19.92 | AV144: 4.08 | AW144: 18.6
A145: 2017-03-01 | B145: 80355.75696 | C145: 17405.83593 | D145: 40749.19516 | E145: 9154.672375 | F145: 147665.4604 | G145: 22.02 | H145: 23.09 | I145: 13.59 | J145: 28.4 | K145: 8.18 | L145: 5.32 | M145: 10.99 | N145: 2.33 | O145: 2.07 | P145: 2.77 | Q145: 3.47 | R145: 10170.88634 | S145: 6015.647452 | T145: 18270.8668 | U145: 4780.209319 | V145: 29066.72357 | W145: 82641.10815 | X145: 4426.393633 | Y145: 14804.17464 | Z145: 818.331 | AA145: 13985.27004 | AB145: 40.965 | AC145: 117730.496 | AD145: 16571.34726 | AE145: 8640.026344 | AF145: 27444.39873 | AG145: 28.871 | AH145: 276.0514975 | AI145: 20918.59557 | AJ145: 17106.95806 | AK145: 1157.555709 | AL145: 7546.288317 | AM145: 466.8843249 | AN145: 201861.1275 | AP145: 3.24 | AQ145: 4.68 | AR145: 3.24 | AS145: 13.08 | AT145: 3.48 | AU145: 18 | AV145: 3.84 | AW145: 16.32
A146: 2017-04-01 | B146: 81360.19444 | C146: 17461.69419 | D146: 41064.78514 | E146: 9382.320485 | F146: 149268.9943 | G146: 22.83 | H146: 23.94 | I146: 13.99 | J146: 28.56 | K146: 7.48 | L146: 4.77 | M146: 9.79 | N146: 2.35 | O146: 2.17 | P146: 2.7 | Q146: 3.42 | R146: 10173.49789 | S146: 6015.647452 | T146: 18270.8668 | U146: 5577.189154 | V146: 29863.7034 | W146: 81479.20317 | X146: 4462.284666 | Y146: 16386.02869 | Z146: 848.239 | AA146: 15155.81595 | AB146: 53.9945 | AC146: 117829.6485 | AD146: 16556.4973 | AE146: 9693.93387 | AF146: 27398.36113 | AG146: 432.717 | AH146: 276.3811995 | AI146: 21053.0153 | AJ146: 17603.6903 | AK146: 1182.863693 | AL146: 7947.400989 | AM146: 475.9914214 | AN146: 203603.7159 | AP146: 3 | AQ146: 4.44 | AR146: 3 | AS146: 11.4 | AT146: 3.24 | AU146: 18.96 | AV146: 3.6 | AW146: 16.2
A147: 2017-05-01 | B147: 80590.02968 | C147: 17453.94588 | D147: 41467.19089 | E147: 9284.141506 | F147: 148795.308 | G147: 21.88 | H147: 22.79 | I147: 13.72 | J147: 28.18 | K147: 7.03 | L147: 4.88 | M147: 8.49 | N147: 2.23 | O147: 1.97 | P147: 2.69 | Q147: 3.36 | R147: 10250.94192 | S147: 6040.285186 | T147: 18534.83829 | U147: 5560.621058 | V147: 30135.74454 | W147: 82342.59978 | X147: 4515.046048 | Y147: 15161.18358 | Z147: 873.034 | AA147: 14174.28351 | AB147: 63.3685 | AC147: 118789.9559 | AD147: 15733.48403 | AE147: 9226.392543 | AF147: 27204.85677 | AG147: 421.124 | AH147: 281.898105 | AI147: 21248.6196 | AJ147: 18028.97046 | AK147: 1204.465299 | AL147: 7748.571573 | AM147: 486.8829841 | AN147: 203904.3122 | AP147: 2.88 | AQ147: 4.44 | AR147: 2.88 | AS147: 10.56 | AT147: 3.24 | AU147: 18.24 | AV147: 2.64 | AW147: 13.08
A148: 2017-06-01 | B148: 80890.06175 | C148: 17492.82258 | D148: 41831.58577 | E148: 8908.642906 | F148: 149123.113 | G148: 22.2 | H148: 23.51 | I148: 13.53 | J148: 28.15 | K148: 7.25 | L148: 4.8 | M148: 8.81 | N148: 2.49 | O148: 2.24 | P148: 2.91 | Q148: 3.29 | R148: 10178.99049 | S148: 6160.304685 | T148: 18783.0105 | U148: 5568.779857 | V148: 30512.09504 | W148: 82742.17426 | X148: 4563.783875 | Y148: 15229.43423 | Z148: 877.0505 | AA148: 14372.68568 | AB148: 55.4035 | AC148: 119496.4487 | AD148: 15848.35201 | AE148: 8872.167706 | AF148: 28171.73226 | AG148: 365.323 | AH148: 280.3710395 | AI148: 21360.06229 | AJ148: 18309.83126 | AK148: 1219.384664 | AL148: 7423.051398 | AM148: 493.9710057 | AN148: 206006.6506 | AP148: 2.76 | AQ148: 4.32 | AR148: 2.88 | AS148: 11.04 | AT148: 3.12 | AU148: 18.36 | AV148: 4.2 | AW148: 15.6
A149: 2017-07-01 | B149: 80745.53373 | C149: 17509.46205 | D149: 41994.57085 | E149: 8802.215906 | F149: 149051.7825 | G149: 22.01 | H149: 23 | I149: 13.83 | J149: 27.88 | K149: 7.08 | L149: 4.81 | M149: 8.75 | N149: 2.39 | O149: 2.07 | P149: 2.87 | Q149: 3.2 | R149: 10546.31042 | S149: 6066.109059 | T149: 18397.71298 | U149: 5594.177958 | V149: 30058 | W149: 83688.64506 | X149: 4579.333774 | Y149: 15457.03675 | Z149: 889.056 | AA149: 14557.93499 | AB149: 62.435 | AC149: 120051.7016 | AD149: 15394.25239 | AE149: 9261.837432 | AF149: 28657.00409 | AG149: 460.402381 | AH149: 256.475711 | AI149: 21285.73556 | AJ149: 18310.46137 | AK149: 1226.21805 | AL149: 7107.408922 | AM149: 493.5892437 | AN149: 207303.0904 | AP149: 2.76 | AQ149: 4.44 | AR149: 2.88 | AS149: 11.04 | AT149: 3.36 | AU149: 18 | AV149: 4.2 | AW149: 15
A150: 2017-08-01 | B150: 80903.17256 | C150: 17650.37307 | D150: 42289.81433 | E150: 8411.453133 | F150: 149254.8131 | G150: 21.45 | H150: 22.65 | I150: 13.39 | J150: 27.96 | K150: 6.79 | L150: 4.54 | M150: 8.68 | N150: 2.52 | O150: 2.17 | P150: 2.89 | Q150: 3.19 | R150: 10169.82875 | S150: 5984.493832 | T150: 18233.13748 | U150: 5607.040048 | V150: 29824.67136 | W150: 83701.09882 | X150: 4587.24431 | Y150: 14208.35193 | Z150: 905.1875 | AA150: 13628.28736 | AB150: 69.657 | AC150: 119528.6096 | AD150: 14495.58616 | AE150: 8903.04124 | AF150: 28845.79197 | AG150: 447.8695455 | AH150: 223.04943 | AI150: 21388.30609 | AJ150: 18601.86558 | AK150: 1240.632199 | AL150: 6953.485667 | AM150: 491.5475008 | AN150: 206229.7186 | AP150: 2.64 | AQ150: 4.2 | AR150: 2.88 | AS150: 10.44 | AT150: 3.12 | AU150: 15.72 | AV150: 4.44 | AW150: 15.6
A151: 2017-09-01 | B151: 81675.13058 | C151: 17714.2515 | D151: 42703.93455 | E151: 8285.813081 | F151: 150379.1297 | G151: 22.06 | H151: 23.26 | I151: 13.4 | J151: 27.8 | K151: 6.9 | L151: 4.56 | M151: 8.55 | N151: 2.59 | O151: 2.4 | P151: 2.87 | Q151: 3.2 | R151: 10427.17599 | S151: 6118.531759 | T151: 18291.97537 | U151: 5749.608851 | V151: 30160.11598 | W151: 85528.54601 | X151: 4607.992971 | Y151: 15248.86486 | Z151: 905.0236524 | AA151: 14587.47409 | AB151: 72.14790025 | AC151: 121790.9215 | AD151: 14697.95873 | AE151: 8017.625726 | AF151: 28868.58717 | AG151: 345.0974491 | AH151: 208.4236356 | AI151: 21620.19233 | AJ151: 19303.6359 | AK151: 1252.851235 | AL151: 7367.433014 | AM151: 493.7801247 | AN151: 208244.0805 | AP151: 2.64 | AQ151: 4.2 | AR151: 2.76 | AS151: 11.28 | AT151: 3.24 | AU151: 15.24 | AV151: 4.32 | AW151: 17.76
A152: 2017-10-01 | B152: 81711.34206 | C152: 17795.13761 | D152: 42952.96279 | E152: 8291.494433 | F152: 150750.9369 | G152: 21.65 | H152: 22.66 | I152: 13.57 | J152: 27.6 | K152: 6.67 | L152: 4.6 | M152: 8.01 | N152: 2.4 | O152: 2.07 | P152: 2.93 | Q152: 3.26 | R152: 10561.91091 | S152: 6094.427333 | T152: 18498.61327 | U152: 5783.92471 | V152: 30376.96531 | W152: 85355.00665 | X152: 4631.984678 | Y152: 16596.1985 | Z152: 900.4412217 | AA152: 15933.67358 | AB152: 79.40868738 | AC152: 121847.5141 | AD152: 14590.56943 | AE152: 8628.576632 | AF152: 28532.04686 | AG152: 357.3434822 | AH152: 215.5731565 | AI152: 21803.30515 | AJ152: 19235.57243 | AK152: 1252.45812 | AL152: 7342.942903 | AM152: 492.5683722 | AN152: 208627.4481 | AP152: 2.64 | AQ152: 4.08 | AR152: 2.88 | AS152: 10.44 | AT152: 3.24 | AU152: 16.2 | AV152: 4.68 | AW152: 16.56
A153: 2017-11-01 | B153: 82799.15729 | C153: 17984.94489 | D153: 43422.23641 | E153: 8490.39004 | F153: 152696.7286 | G153: 21.15 | H153: 22.11 | I153: 13.51 | J153: 27.63 | K153: 6.57 | L153: 4.54 | M153: 8.43 | N153: 2.57 | O153: 2.3 | P153: 2.91 | Q153: 3.35 | R153: 10535.54966 | S153: 6167.499369 | T153: 18449.04318 | U153: 6038.140601 | V153: 30654.68315 | W153: 85619.24275 | X153: 4629.95861 | Y153: 15935.46377 | Z153: 903.0235925 | AA153: 15504.2744 | AB153: 74.08434788 | AC153: 122164.0131 | AD153: 14066.98658 | AE153: 8774.661912 | AF153: 28428.02842 | AG153: 404.2681225 | AH153: 223.1291671 | AI153: 21984.93804 | AJ153: 17868.95833 | AK153: 1237.01748 | AL153: 6577.906712 | AM153: 492.6638127 | AN153: 208081.4307 | AP153: 2.64 | AQ153: 3.96 | AR153: 2.88 | AS153: 11.04 | AT153: 3.24 | AU153: 13.92 | AW153: 15.96
A154: 2017-12-01 | B154: 83099.37537 | C154: 18048.3378 | D154: 43842.48219 | E154: 8101.919358 | F154: 153092.1147 | G154: 21.34 | H154: 21.91 | I154: 13.98 | J154: 27.59 | K154: 6.5 | L154: 4.61 | M154: 7.81 | N154: 2.73 | O154: 2.51 | P154: 3.23 | Q154: 3.48 | R154: 11232.8879 | S154: 6364.868428 | T154: 19704.75706 | U154: 6251.405045 | V154: 32321.03054 | W154: 86202.56225 | X154: 4623.974827 | Y154: 15971.78087 | Z154: 923.4685708 | AA154: 15485.66987 | AB154: 77.79386015 | AC154: 124479.3533 | AD154: 14307.83463 | AE154: 8129.099439 | AF154: 29193.96217 | AG154: 400.2039972 | AH154: 228.8412216 | AI154: 22364.0463 | AJ154: 17475.26534 | AK154: 1224.13631 | AL154: 6469.140223 | AM154: 493.1742485 | AN154: 210840.4283 | AP154: 2.76 | AQ154: 4.32 | AR154: 3.12 | AS154: 10.56 | AT154: 3.36 | AU154: 13.44 | AW154: 16.68
A155: 2018-01-31 | B155: 82659.42989 | C155: 18191.66576 | D155: 44109.62821 | E155: 8003.926478 | F155: 152964.6503 | G155: 21.67 | H155: 22.55 | I155: 13.99 | J155: 27.77 | K155: 6.37 | L155: 4.54 | M155: 8.01 | N155: 2.87 | O155: 2.66 | P155: 3.15 | Q155: 3.52 | R155: 11222.68081 | S155: 6351.06037 | T155: 19900.7318 | U155: 6298.813363 | V155: 32550.60553 | W155: 86407.48623 | X155: 4640.099911 | Y155: 15713.13918 | Z155: 973.5368881 | AA155: 15214.59046 | AB155: 85.36362759 | AC155: 124984.9136 | AD155: 14468.67237 | AE155: 8756.623521 | AF155: 28011.31389 | AG155: 397.2154254 | AH155: 238.047389 | AI155: 22889.77555 | AJ155: 18360.80457 | AK155: 1228.029078 | AL155: 7031.716734 | AM155: 492.6160925 | AN155: 211811.0626 | AP155: 2.76 | AQ155: 4.2 | AR155: 2.76 | AS155: 10.56 | AT155: 3.24 | AU155: 13.92 | AV155: 4.32 | AW155: 16.92

Sheet Data base graphs 1
B1: LOANS | H1: INTEREST RATES | R1: MONETARY AGGREGATES
B2: loans individual balance sheets | G2: consumer ($) | K2: commercial ($) | N2: foreign trade (US$) | Q2: mortgage (UF) | R2: M1 | V2: M2 | AF2: M3
B3: commercial | C3: consumer | D3: mortgage | E3: foreign trade | F3: total | G3: consumer average | H3: credit card | I3: installment credit | J3: overdraft | K3: commercial average | L3: installment credit | M3: overdraft | N3: foreign trade average | O3: export | P3: import | R3: currency in circulation | S3: current account deposits | T3: other checkable deposits | U3: M1 | V3: M1 | W3: time deposits | X3: savings deposits | Y3: mutual funds quotas in instruments with maturity of up to 1 year | Z3: deposits of savings and credit cooperatives | AA3: mutual funds investments in M2 | AB3: savings and credit cooperatives investments in M2 | AC3: mutual funds in M2 (net value) | AD3: cooperatives in M2 (net value) | AE3: M2 | AF3: M2 | AG3: foreign currency deposits | AH3: Central Bank instruments | AI3: treasury bonds | AJ3: mortgage bonds | AK3: commercial papers | AL3: corporate bonds | AM3: other mutual funds quotas | AN3: AFP voluntary savings quotas | AO3: mutual funds investments in M3 | AP3: AFP investments in M3 | AQ3: mutual funds in M3 (net value) | AR3: AFP in M3 (net value) | AS3: M3
B4: annual variation, percentage | G4: rates on an annual basis 360 days, percentage | R4: incidence in annual variation, percentage | U4: annual variation, percentage | V4: incidence in annual variation, percentage | AE4: annual variation, percentage | AF4: incidence in annual variation, percentage | AS4: annual variation, percentage
B5: Source: Central Bank of Chile and Superintendency of Banks and Financial Institutions | G5: Source: Central Bank of Chile | R5: Source: Central Bank of Chile
A7: 2006-01-01 | G7: ='Data base original'!G11 -> 26.84010551 | K7: ='Data base original'!K11 -> 10.27317257 | N7: ='Data base original'!N11 -> 5.289234388 | Q7: ='Data base original'!Q11 -> 5.31
A8: 2006-02-01 | G8: ='Data base original'!G12 -> 28.08001067 | K8: ='Data base original'!K12 -> 10.69175166 | N8: ='Data base original'!N12 -> 5.488292681 | Q8: ='Data base original'!Q12 -> 5.33
A9: 2006-03-01 | G9: ='Data base original'!G13 -> 25.2206299 | K9: ='Data base original'!K13 -> 10.24201215 | N9: ='Data base original'!N13 -> 5.847508201 | Q9: ='Data base original'!Q13 -> 5.22
A10: 2006-04-01 | G10: ='Data base original'!G14 -> 26.81238125 | K10: ='Data base original'!K14 -> 10.69633422 | N10: ='Data base original'!N14 -> 5.653472987 | Q10: ='Data base original'!Q14 -> 5.04
A11: 2006-05-01 | G11: ='Data base original'!G15 -> 27.49968525 | K11: ='Data base original'!K15 -> 10.69976304 | N11: ='Data base original'!N15 -> 6.069324926 | Q11: ='Data base original'!Q15 -> 5.03
A12: 2006-06-01 | G12: ='Data base original'!G16 -> 27.54061454 | K12: ='Data base original'!K16 -> 10.0914888 | N12: ='Data base original'!N16 -> 6.098626848 | Q12: ='Data base original'!Q16 -> 5
A13: 2006-07-01 | G13: ='Data base original'!G17 -> 27.28323577 | K13: ='Data base original'!K17 -> 9.956696994 | N13: ='Data base original'!N17 -> 6.294930372 | Q13: ='Data base original'!Q17 -> 5.1
A14: 2006-08-01 | G14: ='Data base original'!G18 -> 26.63961018 | K14: ='Data base original'!K18 -> 10.30839481 | N14: ='Data base original'!N18 -> 6.222757439 | Q14: ='Data base original'!Q18 -> 5.05
A15: 2006-09-01 | G15: ='Data base original'!G19 -> 26.5372798 | K15: ='Data base original'!K19 -> 10.34509493 | N15: ='Data base original'!N19 -> 6.288846604 | Q15: ='Data base original'!Q19 -> 5.01
A16: 2006-10-01 | G16: ='Data base original'!G20 -> 26.87426644 | K16: ='Data base original'!K20 -> 10.32842561 | N16: ='Data base original'!N20 -> 6.177634104 | Q16: ='Data base original'!Q20 -> 4.95
A17: 2006-11-01 | G17: ='Data base original'!G21 -> 26.97083773 | K17: ='Data base original'!K21 -> 10.16942247 | N17: ='Data base original'!N21 -> 6.107811217 | Q17: ='Data base original'!Q21 -> 4.82
A18: 2006-12-01 | G18: ='Data base original'!G22 -> 27.08498 | K18: ='Data base original'!K22 -> 10.24621563 | N18: ='Data base original'!N22 -> 6.077732562 | Q18: ='Data base original'!Q22 -> 4.77
A19: 2007-01-01 | B19: ='Data base original'!B23/'Data base original'!B11*100-100 -> 16.33492726 | C19: ='Data base original'!C23/'Data base original'!C11*100-100 -> 23.21425783 | D19: ='Data base original'!D23/'Data base original'!D11*100-100 -> 17.29515509 | E19: ='Data base original'!E23/'Data base original'!E11*100-100 -> 26.75615925 | F19: ='Data base original'!F23/'Data base original'!F11*100-100 -> 18.30423227 | G19: ='Data base original'!G23 -> 27.90456465 | K19: ='Data base original'!K23 -> 10.08135097 | N19: ='Data base original'!N23 -> 6.104881737 | Q19: ='Data base original'!Q23 -> 4.68 | R19: =('Data base original'!S23/'Data base original'!S11*100-100)*'Data base original'!S11/'Data base original'!$V11 -> 3.303152313 | S19: =('Data base original'!T23/'Data base original'!T11*100-100)*'Data base original'!T11/'Data base original'!$V11 -> 8.597820421 | T19: =('Data base original'!U23/'Data base original'!U11*100-100)*'Data base original'!U11/'Data base original'!$V11 -> 4.123077065 | U19: =('Data base original'!V23/'Data base original'!V11*100-100)*'Data base original'!V11/'Data base original'!$V11 -> 16.0240498 | V19: =('Data base original'!V23/'Data base original'!V11*100-100)*'Data base original'!V11/('Data base original'!$AC11) -> 3.649142399 | W19: =('Data base original'!W23/'Data base original'!W11*100-100)*'Data base original'!W11/('Data base original'!$AC11) -> 14.8824868 | X19: =('Data base original'!X23/'Data base original'!X11*100-100)*'Data base original'!X11/('Data base original'!$AC11) -> 0.09235253816 | Y19: =('Data base original'!Y23/'Data base original'!Y11*100-100)*'Data base original'!Y11/('Data base original'!$AC11) -> 3.68905264 | Z19: =('Data base original'!Z23/'Data base original'!Z11*100-100)*'Data base original'!Z11/('Data base original'!$AC11) -> 0.1818500515 | AA19: =-('Data base original'!AA23/'Data base original'!AA11*100-100)*'Data base original'!AA11/('Data base original'!$AC11) -> -3.742426577 | AB19: =-('Data base original'!AB23/'Data base original'!AB11*100-100)*'Data base original'!AB11/('Data base original'!$AC11) -> -0.01075893546 | AC19: =(('Data base original'!Y23-'Data base original'!AA23)/('Data base original'!Y11-'Data base original'!AA11)*100-100)*(('Data base original'!Y11-'Data base original'!AA11)/'Data base original'!AC11) -> -0.05337393679 | AD19: =(('Data base original'!Z23-'Data base original'!AB23)/('Data base original'!Z11-'Data base original'!AB11)*100-100)*(('Data base original'!Z11-'Data base original'!AB11)/'Data base original'!AC11) -> 0.1710911161 | AE19: =('Data base original'!AC23/'Data base original'!AC11*100-100)*'Data base original'!AC11/('Data base original'!$AC11) -> 18.74169892 | AF19: =('Data base original'!AC23/'Data base original'!AC11*100-100)*'Data base original'!AC11/('Data base original'!$AN11) -> 10.67639878 | AG19: =('Data base original'!AD23/'Data base original'!AD11*100-100)*'Data base original'!AD11/('Data base original'!$AN11) -> 0.6278393679 | AH19: =('Data base original'!AE23/'Data base original'!AE11*100-100)*'Data base original'!AE11/('Data base original'!$AN11) -> -2.15481771 | AI19: =('Data base original'!AF23/'Data base original'!AF11*100-100)*'Data base original'!AF11/('Data base original'!$AN11) -> -0.002670709825 | AJ19: =('Data base original'!AG23/'Data base original'!AG11*100-100)*'Data base original'!AG11/('Data base original'!$AN11) -> 0.1688539167 | AK19: =('Data base original'!AH23/'Data base original'!AH11*100-100)*'Data base original'!AH11/('Data base original'!$AN11) -> 0.01420954586 | AL19: =('Data base original'!AI23/'Data base original'!AI11*100-100)*'Data base original'!AI11/('Data base original'!$AN11) -> 1.76128177 | AM19: =('Data base original'!AJ23/'Data base original'!AJ11*100-100)*'Data base original'!AJ11/('Data base original'!$AN11) -> 1.920565643 | AN19: =('Data base original'!AK23/'Data base original'!AK11*100-100)*'Data base original'!AK11/('Data base original'!$AN11) -> 0.2560115046 | AO19: =-('Data base original'!AL23/'Data base original'!AL11*100-100)*'Data base original'!AL11/('Data base original'!$AN11) -> -0.6365362948 | AP19: =-('Data base original'!AM23/'Data base original'!AM11*100-100)*'Data base original'!AM11/('Data base original'!$AN11) -> -0.07984737578 | AQ19: =(('Data base original'!AJ23-'Data base original'!AL23)/('Data base original'!AJ11-'Data base original'!AL11)*100-100)*(('Data base original'!AJ11-'Data base original'!AL11)/'Data base original'!AN11) -> 1.284029348 | AR19: =(('Data base original'!AK23-'Data base original'!AM23)/('Data base original'!AK11-'Data base original'!AM11)*100-100)*(('Data base original'!AK11-'Data base original'!AM11)/'Data base original'!AN11) -> 0.1761641288 | AS19: =('Data base original'!AN23/'Data base original'!AN11*100-100)*'Data base original'!AN11/('Data base original'!$AN11) -> 12.55128844
A20: 2007-02-01 | B20: ='Data base original'!B24/'Data base original'!B12*100-100 -> 17.14859936 | C20: ='Data base original'!C24/'Data base original'!C12*100-100 -> 22.5728734 | D20: ='Data base original'!D24/'Data base original'!D12*100-100 -> 17.64643932 | E20: ='Data base original'!E24/'Data base original'!E12*100-100 -> 25.44007659 | F20: ='Data base original'!F24/'Data base original'!F12*100-100 -> 18.66457983 | G20: ='Data base original'!G24 -> 28.68203617 | K20: ='Data base original'!K24 -> 9.948701138 | N20: ='Data base original'!N24 -> 6.092187817 | Q20: ='Data base original'!Q24 -> 4.58 | R20: =('Data base original'!S24/'Data base original'!S12*100-100)*'Data base original'!S12/'Data base original'!$V12 -> 3.383511937 | S20: =('Data base original'!T24/'Data base original'!T12*100-100)*'Data base original'!T12/'Data base original'!$V12 -> 9.409473171 | T20: =('Data base original'!U24/'Data base original'!U12*100-100)*'Data base original'!U12/'Data base original'!$V12 -> 2.98618311 | U20: =('Data base original'!V24/'Data base original'!V12*100-100)*'Data base original'!V12/'Data base original'!$V12 -> 15.77916822 | V20: =('Data base original'!V24/'Data base original'!V12*100-100)*'Data base original'!V12/('Data base original'!$AC12) -> 3.55106709 | W20: =('Data base original'!W24/'Data base original'!W12*100-100)*'Data base original'!W12/('Data base original'!$AC12) -> 15.34608996 | X20: =('Data base original'!X24/'Data base original'!X12*100-100)*'Data base original'!X12/('Data base original'!$AC12) -> 0.1085232959 | Y20: =('Data base original'!Y24/'Data base original'!Y12*100-100)*'Data base original'!Y12/('Data base original'!$AC12) -> 3.008182284 | Z20: =('Data base original'!Z24/'Data base original'!Z12*100-100)*'Data base original'!Z12/('Data base original'!$AC12) -> 0.1482058528 | AA20: =-('Data base original'!AA24/'Data base original'!AA12*100-100)*'Data base original'!AA12/('Data base original'!$AC12) -> -3.289329174 | AB20: =-('Data base original'!AB24/'Data base original'!AB12*100-100)*'Data base original'!AB12/('Data base original'!$AC12) -> -0.01863380768 | AC20: =(('Data base original'!Y24-'Data base original'!AA24)/('Data base original'!Y12-'Data base original'!AA12)*100-100)*(('Data base original'!Y12-'Data base original'!AA12)/'Data base original'!AC12) -> -0.2811468903 | AD20: =(('Data base original'!Z24-'Data base original'!AB24)/('Data base original'!Z12-'Data base original'!AB12)*100-100)*(('Data base original'!Z12-'Data base original'!AB12)/'Data base original'!AC12) -> 0.1295720451 | AE20: =('Data base original'!AC24/'Data base original'!AC12*100-100)*'Data base original'!AC12/('Data base original'!$AC12) -> 18.8541055 | AF20: =('Data base original'!AC24/'Data base original'!AC12*100-100)*'Data base original'!AC12/('Data base original'!$AN12) -> 10.75338227 | AG20: =('Data base original'!AD24/'Data base original'!AD12*100-100)*'Data base original'!AD12/('Data base original'!$AN12) -> 0.6397557029 | AH20: =('Data base original'!AE24/'Data base original'!AE12*100-100)*'Data base original'!AE12/('Data base original'!$AN12) -> -2.227539472 | AI20: =('Data base original'!AF24/'Data base original'!AF12*100-100)*'Data base original'!AF12/('Data base original'!$AN12) -> -0.006155584734 | AJ20: =('Data base original'!AG24/'Data base original'!AG12*100-100)*'Data base original'!AG12/('Data base original'!$AN12) -> 0.1631059911 | AK20: =('Data base original'!AH24/'Data base original'!AH12*100-100)*'Data base original'!AH12/('Data base original'!$AN12) -> 0.00916535959 | AL20: =('Data base original'!AI24/'Data base original'!AI12*100-100)*'Data base original'!AI12/('Data base original'!$AN12) -> 2.073258753 | AM20: =('Data base original'!AJ24/'Data base original'!AJ12*100-100)*'Data base original'!AJ12/('Data base original'!$AN12) -> 1.844702912 | AN20: =('Data base original'!AK24/'Data base original'!AK12*100-100)*'Data base original'!AK12/('Data base original'!$AN12) -> 0.2483659409 | AO20: =-('Data base original'!AL24/'Data base original'!AL12*100-100)*'Data base original'!AL12/('Data base original'!$AN12) -> -0.5938268787 | AP20: =-('Data base original'!AM24/'Data base original'!AM12*100-100)*'Data base original'!AM12/('Data base original'!$AN12) -> -0.06999001869 | AQ20: =(('Data base original'!AJ24-'Data base original'!AL24)/('Data base original'!AJ12-'Data base original'!AL12)*100-100)*(('Data base original'!AJ12-'Data base original'!AL12)/'Data base original'!AN12) -> 1.250876034 | AR20: =(('Data base original'!AK24-'Data base original'!AM24)/('Data base original'!AK12-'Data base original'!AM12)*100-100)*(('Data base original'!AK12-'Data base original'!AM12)/'Data base original'!AN12) -> 0.1783759223 | AS20: =('Data base original'!AN24/'Data base original'!AN12*100-100)*'Data base original'!AN12/('Data base original'!$AN12) -> 12.83422498
A21: 2007-03-01 | B21: ='Data base original'!B25/'Data base original'!B13*100-100 -> 16.07735532 | C21: ='Data base original'!C25/'Data base original'!C13*100-100 -> 21.01775333 | D21: ='Data base original'!D25/'Data base original'!D13*100-100 -> 17.78992747 | E21: ='Data base original'!E25/'Data base original'!E13*100-100 -> 21.75534482 | F21: ='Data base original'!F25/'Data base original'!F13*100-100 -> 17.56350979 | G21: ='Data base original'!G25 -> 26.98843784 | K21: ='Data base original'!K25 -> 9.818966191 | N21: ='Data base original'!N25 -> 5.992904891 | Q21: ='Data base original'!Q25 -> 4.56 | R21: =('Data base original'!S25/'Data base original'!S13*100-100)*'Data base original'!S13/'Data base original'!$V13 -> 3.439183615 | S21: =('Data base original'!T25/'Data base original'!T13*100-100)*'Data base original'!T13/'Data base original'!$V13 -> 10.96171471 | T21: =('Data base original'!U25/'Data base original'!U13*100-100)*'Data base original'!U13/'Data base original'!$V13 -> 2.071504646 | U21: =('Data base original'!V25/'Data base original'!V13*100-100)*'Data base original'!V13/'Data base original'!$V13 -> 16.47240297 | V21: =('Data base original'!V25/'Data base original'!V13*100-100)*'Data base original'!V13/('Data base original'!$AC13) -> 3.647178643 | W21: =('Data base original'!W25/'Data base original'!W13*100-100)*'Data base original'!W13/('Data base original'!$AC13) -> 15.01542963 | X21: =('Data base original'!X25/'Data base original'!X13*100-100)*'Data base original'!X13/('Data base original'!$AC13) -> 0.1125619851 | Y21: =('Data base original'!Y25/'Data base original'!Y13*100-100)*'Data base original'!Y13/('Data base original'!$AC13) -> 2.971424967 | Z21: =('Data base original'!Z25/'Data base original'!Z13*100-100)*'Data base original'!Z13/('Data base original'!$AC13) -> 0.1439548267 | AA21: =-('Data base original'!AA25/'Data base original'!AA13*100-100)*'Data base original'!AA13/('Data base original'!$AC13) -> -3.208236824 | AB21: =-('Data base original'!AB25/'Data base original'!AB13*100-100)*'Data base original'!AB13/('Data base original'!$AC13) -> -0.01688576609 | AC21: =(('Data base original'!Y25-'Data base original'!AA25)/('Data base original'!Y13-'Data base original'!AA13)*100-100)*(('Data base original'!Y13-'Data base original'!AA13)/'Data base original'!AC13) -> -0.2368118569 | AD21: =(('Data base original'!Z25-'Data base original'!AB25)/('Data base original'!Z13-'Data base original'!AB13)*100-100)*(('Data base original'!Z13-'Data base original'!AB13)/'Data base original'!AC13) -> 0.1270690606 | AE21: =('Data base original'!AC25/'Data base original'!AC13*100-100)*'Data base original'!AC13/('Data base original'!$AC13) -> 18.66542746 | AF21: =('Data base original'!AC25/'Data base original'!AC13*100-100)*'Data base original'!AC13/('Data base original'!$AN13) -> 10.71176529 | AG21: =('Data base original'!AD25/'Data base original'!AD13*100-100)*'Data base original'!AD13/('Data base original'!$AN13) -> 0.7530405383 | AH21: =('Data base original'!AE25/'Data base original'!AE13*100-100)*'Data base original'!AE13/('Data base original'!$AN13) -> -2.035061593 | AI21: =('Data base original'!AF25/'Data base original'!AF13*100-100)*'Data base original'!AF13/('Data base original'!$AN13) -> -0.0462276525 | AJ21: =('Data base original'!AG25/'Data base original'!AG13*100-100)*'Data base original'!AG13/('Data base original'!$AN13) -> 0.0911744805 | AK21: =('Data base original'!AH25/'Data base original'!AH13*100-100)*'Data base original'!AH13/('Data base original'!$AN13) -> 0.02639172578 | AL21: =('Data base original'!AI25/'Data base original'!AI13*100-100)*'Data base original'!AI13/('Data base original'!$AN13) -> 2.007844073 | AM21: =('Data base original'!AJ25/'Data base original'!AJ13*100-100)*'Data base original'!AJ13/('Data base original'!$AN13) -> 1.960335596 | AN21: =('Data base original'!AK25/'Data base original'!AK13*100-100)*'Data base original'!AK13/('Data base original'!$AN13) -> 0.2427499477 | AO21: =-('Data base original'!AL25/'Data base original'!AL13*100-100)*'Data base original'!AL13/('Data base original'!$AN13) -> -0.700897499 | AP21: =-('Data base original'!AM25/'Data base original'!AM13*100-100)*'Data base original'!AM13/('Data base original'!$AN13) -> -0.07524843908 | AQ21: =(('Data base original'!AJ25-'Data base original'!AL25)/('Data base original'!AJ13-'Data base original'!AL13)*100-100)*(('Data base original'!AJ13-'Data base original'!AL13)/'Data base original'!AN13) -> 1.259438097 | AR21: =(('Data base original'!AK25-'Data base original'!AM25)/('Data base original'!AK13-'Data base original'!AM13)*100-100)*(('Data base original'!AK13-'Data base original'!AM13)/'Data base original'!AN13) -> 0.1675015086 | AS21: =('Data base original'!AN25/'Data base original'!AN13*100-100)*'Data base original'!AN13/('Data base original'!$AN13) -> 12.93586647
A22: 2007-04-01 | B22: ='Data base original'!B26/'Data base original'!B14*100-100 -> 15.2637193 | C22: ='Data base original'!C26/'Data base original'!C14*100-100 -> 20.40501776 | D22: ='Data base original'!D26/'Data base original'!D14*100-100 -> 18.23745499 | E22: ='Data base original'!E26/'Data base original'!E14*100-100 -> 24.63912784 | F22: ='Data base original'!F26/'Data base original'!F14*100-100 -> 17.35272767 | G22: ='Data base original'!G26 -> 27.73739058 | K22: ='Data base original'!K26 -> 9.949041121 | N22: ='Data base original'!N26 -> 6.026521309 | Q22: ='Data base original'!Q26 -> 4.54 | R22: =('Data base original'!S26/'Data base original'!S14*100-100)*'Data base original'!S14/'Data base original'!$V14 -> 3.429518741 | S22: =('Data base original'!T26/'Data base original'!T14*100-100)*'Data base original'!T14/'Data base original'!$V14 -> 10.39902431 | T22: =('Data base original'!U26/'Data base original'!U14*100-100)*'Data base original'!U14/'Data base original'!$V14 -> 3.972217494 | U22: =('Data base original'!V26/'Data base original'!V14*100-100)*'Data base original'!V14/'Data base original'!$V14 -> 17.80076054 | V22: =('Data base original'!V26/'Data base original'!V14*100-100)*'Data base original'!V14/('Data base original'!$AC14) -> 3.936911299 | W22: =('Data base original'!W26/'Data base original'!W14*100-100)*'Data base original'!W14/('Data base original'!$AC14) -> 14.86350976 | X22: =('Data base original'!X26/'Data base original'!X14*100-100)*'Data base original'!X14/('Data base original'!$AC14) -> 0.1082275561 | Y22: =('Data base original'!Y26/'Data base original'!Y14*100-100)*'Data base original'!Y14/('Data base original'!$AC14) -> 2.992432557 | Z22: =('Data base original'!Z26/'Data base original'!Z14*100-100)*'Data base original'!Z14/('Data base original'!$AC14) -> 0.1576641198 | AA22: =-('Data base original'!AA26/'Data base original'!AA14*100-100)*'Data base original'!AA14/('Data base original'!$AC14) -> -2.961820695 | AB22: =-('Data base original'!AB26/'Data base original'!AB14*100-100)*'Data base original'!AB14/('Data base original'!$AC14) -> -0.008572479693 | AC22: =(('Data base original'!Y26-'Data base original'!AA26)/('Data base original'!Y14-'Data base original'!AA14)*100-100)*(('Data base original'!Y14-'Data base original'!AA14)/'Data base original'!AC14) -> 0.03061186161 | AD22: =(('Data base original'!Z26-'Data base original'!AB26)/('Data base original'!Z14-'Data base original'!AB14)*100-100)*(('Data base original'!Z14-'Data base original'!AB14)/'Data base original'!AC14) -> 0.1490916401 | AE22: =('Data base original'!AC26/'Data base original'!AC14*100-100)*'Data base original'!AC14/('Data base original'!$AC14) -> 19.08835212 | AF22: =('Data base original'!AC26/'Data base original'!AC14*100-100)*'Data base original'!AC14/('Data base original'!$AN14) -> 11.02799954 | AG22: =('Data base original'!AD26/'Data base original'!AD14*100-100)*'Data base original'!AD14/('Data base original'!$AN14) -> 0.7799702907 | AH22: =('Data base original'!AE26/'Data base original'!AE14*100-100)*'Data base original'!AE14/('Data base original'!$AN14) -> -2.012603106 | AI22: =('Data base original'!AF26/'Data base original'!AF14*100-100)*'Data base original'!AF14/('Data base original'!$AN14) -> -0.09319620986 | AJ22: =('Data base original'!AG26/'Data base original'!AG14*100-100)*'Data base original'!AG14/('Data base original'!$AN14) -> -0.3371293416 | AK22: =('Data base original'!AH26/'Data base original'!AH14*100-100)*'Data base original'!AH14/('Data base original'!$AN14) -> 0.06965454608 | AL22: =('Data base original'!AI26/'Data base original'!AI14*100-100)*'Data base original'!AI14/('Data base original'!$AN14) -> 1.758430103 | AM22: =('Data base original'!AJ26/'Data base original'!AJ14*100-100)*'Data base original'!AJ14/('Data base original'!$AN14) -> 2.352376074 | AN22: =('Data base original'!AK26/'Data base original'!AK14*100-100)*'Data base original'!AK14/('Data base original'!$AN14) -> 0.2550765205 | AO22: =-('Data base original'!AL26/'Data base original'!AL14*100-100)*'Data base original'!AL14/('Data base original'!$AN14) -> -0.7817438631 | AP22: =-('Data base original'!AM26/'Data base original'!AM14*100-100)*'Data base original'!AM14/('Data base original'!$AN14) -> -0.07559434042 | AQ22: =(('Data base original'!AJ26-'Data base original'!AL26)/('Data base original'!AJ14-'Data base original'!AL14)*100-100)*(('Data base original'!AJ14-'Data base original'!AL14)/'Data base original'!AN14) -> 1.570632211 | AR22: =(('Data base original'!AK26-'Data base original'!AM26)/('Data base original'!AK14-'Data base original'!AM14)*100-100)*(('Data base original'!AK14-'Data base original'!AM14)/'Data base original'!AN14) -> 0.1794821801 | AS22: =('Data base original'!AN26/'Data base original'!AN14*100-100)*'Data base original'!AN14/('Data base original'!$AN14) -> 12.94324021
A23: 2007-05-01 | B23: ='Data base original'!B27/'Data base original'!B15*100-100 -> 16.38686719 | C23: ='Data base original'!C27/'Data base original'!C15*100-100 -> 19.58556621 | D23: ='Data base original'!D27/'Data base original'!D15*100-100 -> 18.58973613 | E23: ='Data base original'!E27/'Data base original'!E15*100-100 -> 21.97933134 | F23: ='Data base original'!F27/'Data base original'!F15*100-100 -> 17.76245734 | G23: ='Data base original'!G27 -> 27.88672215 | K23: ='Data base original'!K27 -> 10.02925436 | N23: ='Data base original'!N27 -> 6.07313798 | Q23: ='Data base original'!Q27 -> 4.39 | R23: =('Data base original'!S27/'Data base original'!S15*100-100)*'Data base original'!S15/'Data base original'!$V15 -> 3.468242644 | S23: =('Data base original'!T27/'Data base original'!T15*100-100)*'Data base original'!T15/'Data base original'!$V15 -> 9.215002456 | T23: =('Data base original'!U27/'Data base original'!U15*100-100)*'Data base original'!U15/'Data base original'!$V15 -> 4.902915195 | U23: =('Data base original'!V27/'Data base original'!V15*100-100)*'Data base original'!V15/'Data base original'!$V15 -> 17.5861603 | V23: =('Data base original'!V27/'Data base original'!V15*100-100)*'Data base original'!V15/('Data base original'!$AC15) -> 3.872361683 | W23: =('Data base original'!W27/'Data base original'!W15*100-100)*'Data base original'!W15/('Data base original'!$AC15) -> 15.09635631 | X23: =('Data base original'!X27/'Data base original'!X15*100-100)*'Data base original'!X15/('Data base original'!$AC15) -> 0.09905875158 | Y23: =('Data base original'!Y27/'Data base original'!Y15*100-100)*'Data base original'!Y15/('Data base original'!$AC15) -> 3.228765929 | Z23: =('Data base original'!Z27/'Data base original'!Z15*100-100)*'Data base original'!Z15/('Data base original'!$AC15) -> 0.1844976402 | AA23: =-('Data base original'!AA27/'Data base original'!AA15*100-100)*'Data base original'!AA15/('Data base original'!$AC15) -> -3.0131944 | AB23: =-('Data base original'!AB27/'Data base original'!AB15*100-100)*'Data base original'!AB15/('Data base original'!$AC15) -> -0.01490745511 | AC23: =(('Data base original'!Y27-'Data base original'!AA27)/('Data base original'!Y15-'Data base original'!AA15)*100-100)*(('Data base original'!Y15-'Data base original'!AA15)/'Data base original'!AC15) -> 0.2155715293 | AD23: =(('Data base original'!Z27-'Data base original'!AB27)/('Data base original'!Z15-'Data base original'!AB15)*100-100)*(('Data base original'!Z15-'Data base original'!AB15)/'Data base original'!AC15) -> 0.169590185 | AE23: =('Data base original'!AC27/'Data base original'!AC15*100-100)*'Data base original'!AC15/('Data base original'!$AC15) -> 19.45293846 | AF23: =('Data base original'!AC27/'Data base original'!AC15*100-100)*'Data base original'!AC15/('Data base original'!$AN15) -> 11.27325176 | AG23: =('Data base original'!AD27/'Data base original'!AD15*100-100)*'Data base original'!AD15/('Data base original'!$AN15) -> 0.7415846094 | AH23: =('Data base original'!AE27/'Data base original'!AE15*100-100)*'Data base original'!AE15/('Data base original'!$AN15) -> -1.865527279 | AI23: =('Data base original'!AF27/'Data base original'!AF15*100-100)*'Data base original'!AF15/('Data base original'!$AN15) -> 0.003647980101 | AJ23: =('Data base original'!AG27/'Data base original'!AG15*100-100)*'Data base original'!AG15/('Data base original'!$AN15) -> -0.1989973145 | AK23: =('Data base original'!AH27/'Data base original'!AH15*100-100)*'Data base original'!AH15/('Data base original'!$AN15) -> 0.09652223714 | AL23: =('Data base original'!AI27/'Data base original'!AI15*100-100)*'Data base original'!AI15/('Data base original'!$AN15) -> 1.749637584 | AM23: =('Data base original'!AJ27/'Data base original'!AJ15*100-100)*'Data base original'!AJ15/('Data base original'!$AN15) -> 2.579652547 | AN23: =('Data base original'!AK27/'Data base original'!AK15*100-100)*'Data base original'!AK15/('Data base original'!$AN15) -> 0.2822873329 | AO23: =-('Data base original'!AL27/'Data base original'!AL15*100-100)*'Data base original'!AL15/('Data base original'!$AN15) -> -0.7008930496 | AP23: =-('Data base original'!AM27/'Data base original'!AM15*100-100)*'Data base original'!AM15/('Data base original'!$AN15) -> -0.06831671826 | AQ23: =(('Data base original'!AJ27-'Data base original'!AL27)/('Data base original'!AJ15-'Data base original'!AL15)*100-100)*(('Data base original'!AJ15-'Data base original'!AL15)/'Data base original'!AN15) -> 1.878759497 | AR23: =(('Data base original'!AK27-'Data base original'!AM27)/('Data base original'!AK15-'Data base original'!AM15)*100-100)*(('Data base original'!AK15-'Data base original'!AM15)/'Data base original'!AN15) -> 0.2139706147 | AS23: =('Data base original'!AN27/'Data base original'!AN15*100-100)*'Data base original'!AN15/('Data base original'!$AN15) -> 13.89284969
A24: 2007-06-01 | B24: ='Data base original'!B28/'Data base original'!B16*100-100 -> 16.89509453 | C24: ='Data base original'!C28/'Data base original'!C16*100-100 -> 18.78566119 | D24: ='Data base original'!D28/'Data base original'!D16*100-100 -> 19.50113262 | E24: ='Data base original'!E28/'Data base original'!E16*100-100 -> 12.48910373 | F24: ='Data base original'!F28/'Data base original'!F16*100-100 -> 17.24185689 | G24: ='Data base original'!G28 -> 27.94304786 | K24: ='Data base original'!K28 -> 9.824916651 | N24: ='Data base original'!N28 -> 6.135268702 | Q24: ='Data base original'!Q28 -> 4.42 | R24: =('Data base original'!S28/'Data base original'!S16*100-100)*'Data base original'!S16/'Data base original'!$V16 -> 3.212815464 | S24: =('Data base original'!T28/'Data base original'!T16*100-100)*'Data base original'!T16/'Data base original'!$V16 -> 9.313436805 | T24: =('Data base original'!U28/'Data base original'!U16*100-100)*'Data base original'!U16/'Data base original'!$V16 -> 3.72307653 | U24: =('Data base original'!V28/'Data base original'!V16*100-100)*'Data base original'!V16/'Data base original'!$V16 -> 16.2493288 | V24: =('Data base original'!V28/'Data base original'!V16*100-100)*'Data base original'!V16/('Data base original'!$AC16) -> 3.589904905 | W24: =('Data base original'!W28/'Data base original'!W16*100-100)*'Data base original'!W16/('Data base original'!$AC16) -> 16.04483055 | X24: =('Data base original'!X28/'Data base original'!X16*100-100)*'Data base original'!X16/('Data base original'!$AC16) -> 0.0772216934 | Y24: =('Data base original'!Y28/'Data base original'!Y16*100-100)*'Data base original'!Y16/('Data base original'!$AC16) -> 3.562083629 | Z24: =('Data base original'!Z28/'Data base original'!Z16*100-100)*'Data base original'!Z16/('Data base original'!$AC16) -> 0.2110180217 | AA24: =-('Data base original'!AA28/'Data base original'!AA16*100-100)*'Data base original'!AA16/('Data base original'!$AC16) -> -3.480314498 | AB24: =-('Data base original'!AB28/'Data base original'!AB16*100-100)*'Data base original'!AB16/('Data base original'!$AC16) -> -0.02621131363 | AC24: =(('Data base original'!Y28-'Data base original'!AA28)/('Data base original'!Y16-'Data base original'!AA16)*100-100)*(('Data base original'!Y16-'Data base original'!AA16)/'Data base original'!AC16) -> 0.08176913035 | AD24: =(('Data base original'!Z28-'Data base original'!AB28)/('Data base original'!Z16-'Data base original'!AB16)*100-100)*(('Data base original'!Z16-'Data base original'!AB16)/'Data base original'!AC16) -> 0.1848067081 | AE24: =('Data base original'!AC28/'Data base original'!AC16*100-100)*'Data base original'!AC16/('Data base original'!$AC16) -> 19.97853299 | AF24: =('Data base original'!AC28/'Data base original'!AC16*100-100)*'Data base original'!AC16/('Data base original'!$AN16) -> 11.63331336 | AG24: =('Data base original'!AD28/'Data base original'!AD16*100-100)*'Data base original'!AD16/('Data base original'!$AN16) -> 0.4984193913 | AH24: =('Data base original'!AE28/'Data base original'!AE16*100-100)*'Data base original'!AE16/('Data base original'!$AN16) -> -1.911772646 | AI24: =('Data base original'!AF28/'Data base original'!AF16*100-100)*'Data base original'!AF16/('Data base original'!$AN16) -> 0.1253079473 | AJ24: =('Data base original'!AG28/'Data base original'!AG16*100-100)*'Data base original'!AG16/('Data base original'!$AN16) -> -0.3381620559 | AK24: =('Data base original'!AH28/'Data base original'!AH16*100-100)*'Data base original'!AH16/('Data base original'!$AN16) -> 0.1083348797 | AL24: =('Data base original'!AI28/'Data base original'!AI16*100-100)*'Data base original'!AI16/('Data base original'!$AN16) -> 1.855129967 | AM24: =('Data base original'!AJ28/'Data base original'!AJ16*100-100)*'Data base original'!AJ16/('Data base original'!$AN16) -> 2.932311226 | AN24: =('Data base original'!AK28/'Data base original'!AK16*100-100)*'Data base original'!AK16/('Data base original'!$AN16) -> 0.3250375328 | AO24: =-('Data base original'!AL28/'Data base original'!AL16*100-100)*'Data base original'!AL16/('Data base original'!$AN16) -> -0.634105251 | AP24: =-('Data base original'!AM28/'Data base original'!AM16*100-100)*'Data base original'!AM16/('Data base original'!$AN16) -> -0.07322102393 | AQ24: =(('Data base original'!AJ28-'Data base original'!AL28)/('Data base original'!AJ16-'Data base original'!AL16)*100-100)*(('Data base original'!AJ16-'Data base original'!AL16)/'Data base original'!AN16) -> 2.298205975 | AR24: =(('Data base original'!AK28-'Data base original'!AM28)/('Data base original'!AK16-'Data base original'!AM16)*100-100)*(('Data base original'!AK16-'Data base original'!AM16)/'Data base original'!AN16) -> 0.2518165088 | AS24: =('Data base original'!AN28/'Data base original'!AN16*100-100)*'Data base original'!AN16/('Data base original'!$AN16) -> 14.52059332
A25: 2007-07-01 | B25: ='Data base original'!B29/'Data base original'!B17*100-100 -> 17.24830532 | C25: ='Data base original'!C29/'Data base original'!C17*100-100 -> 18.4423871 | D25: ='Data base original'!D29/'Data base original'!D17*100-100 -> 19.62536295 | E25: ='Data base original'!E29/'Data base original'!E17*100-100 -> 16.83053086 | F25: ='Data base original'!F29/'Data base original'!F17*100-100 -> 17.85595629 | G25: ='Data base original'!G29 -> 28.85455598 | K25: ='Data base original'!K29 -> 9.985638792 | N25: ='Data base original'!N29 -> 6.062530955 | Q25: ='Data base original'!Q29 -> 4.51 | R25: =('Data base original'!S29/'Data base original'!S17*100-100)*'Data base original'!S17/'Data base original'!$V17 -> 3.211884232 | S25: =('Data base original'!T29/'Data base original'!T17*100-100)*'Data base original'!T17/'Data base original'!$V17 -> 10.44598118 | T25: =('Data base original'!U29/'Data base original'!U17*100-100)*'Data base original'!U17/'Data base original'!$V17 -> 5.210329004 | U25: =('Data base original'!V29/'Data base original'!V17*100-100)*'Data base original'!V17/'Data base original'!$V17 -> 18.86819441 | V25: =('Data base original'!V29/'Data base original'!V17*100-100)*'Data base original'!V17/('Data base original'!$AC17) -> 4.093016465 | W25: =('Data base original'!W29/'Data base original'!W17*100-100)*'Data base original'!W17/('Data base original'!$AC17) -> 16.76640444 | X25: =('Data base original'!X29/'Data base original'!X17*100-100)*'Data base original'!X17/('Data base original'!$AC17) -> 0.06445584164 | Y25: =('Data base original'!Y29/'Data base original'!Y17*100-100)*'Data base original'!Y17/('Data base original'!$AC17) -> 3.277375038 | Z25: =('Data base original'!Z29/'Data base original'!Z17*100-100)*'Data base original'!Z17/('Data base original'!$AC17) -> 0.234466939 | AA25: =-('Data base original'!AA29/'Data base original'!AA17*100-100)*'Data base original'!AA17/('Data base original'!$AC17) -> -2.850612487 | AB25: =-('Data base original'!AB29/'Data base original'!AB17*100-100)*'Data base original'!AB17/('Data base original'!$AC17) -> -0.02541562946 | AC25: =(('Data base original'!Y29-'Data base original'!AA29)/('Data base original'!Y17-'Data base original'!AA17)*100-100)*(('Data base original'!Y17-'Data base original'!AA17)/'Data base original'!AC17) -> 0.4267625506 | AD25: =(('Data base original'!Z29-'Data base original'!AB29)/('Data base original'!Z17-'Data base original'!AB17)*100-100)*(('Data base original'!Z17-'Data base original'!AB17)/'Data base original'!AC17) -> 0.2090513096 | AE25: =('Data base original'!AC29/'Data base original'!AC17*100-100)*'Data base original'!AC17/('Data base original'!$AC17) -> 21.55969061 | AF25: =('Data base original'!AC29/'Data base original'!AC17*100-100)*'Data base original'!AC17/('Data base original'!$AN17) -> 12.61808792 | AG25: =('Data base original'!AD29/'Data base original'!AD17*100-100)*'Data base original'!AD17/('Data base original'!$AN17) -> 0.4886405114 | AH25: =('Data base original'!AE29/'Data base original'!AE17*100-100)*'Data base original'!AE17/('Data base original'!$AN17) -> -1.765234071 | AI25: =('Data base original'!AF29/'Data base original'!AF17*100-100)*'Data base original'!AF17/('Data base original'!$AN17) -> 0.1610146262 | AJ25: =('Data base original'!AG29/'Data base original'!AG17*100-100)*'Data base original'!AG17/('Data base original'!$AN17) -> -0.3926227665 | AK25: =('Data base original'!AH29/'Data base original'!AH17*100-100)*'Data base original'!AH17/('Data base original'!$AN17) -> 0.08556739545 | AL25: =('Data base original'!AI29/'Data base original'!AI17*100-100)*'Data base original'!AI17/('Data base original'!$AN17) -> 1.946356953 | AM25: =('Data base original'!AJ29/'Data base original'!AJ17*100-100)*'Data base original'!AJ17/('Data base original'!$AN17) -> 3.241870103 | AN25: =('Data base original'!AK29/'Data base original'!AK17*100-100)*'Data base original'!AK17/('Data base original'!$AN17) -> 0.3557081039 | AO25: =-('Data base original'!AL29/'Data base original'!AL17*100-100)*'Data base original'!AL17/('Data base original'!$AN17) -> -0.5273051535 | AP25: =-('Data base original'!AM29/'Data base original'!AM17*100-100)*'Data base original'!AM17/('Data base original'!$AN17) -> -0.08066415091 | AQ25: =(('Data base original'!AJ29-'Data base original'!AL29)/('Data base original'!AJ17-'Data base original'!AL17)*100-100)*(('Data base original'!AJ17-'Data base original'!AL17)/'Data base original'!AN17) -> 2.714564949 | AR25: =(('Data base original'!AK29-'Data base original'!AM29)/('Data base original'!AK17-'Data base original'!AM17)*100-100)*(('Data base original'!AK17-'Data base original'!AM17)/'Data base original'!AN17) -> 0.275043953 | AS25: =('Data base original'!AN29/'Data base original'!AN17*100-100)*'Data base original'!AN17/('Data base original'!$AN17) -> 16.13141947
A26: 2007-08-01 | B26: ='Data base original'!B30/'Data base original'!B18*100-100 -> 18.04252988 | C26: ='Data base original'!C30/'Data base original'!C18*100-100 -> 17.64587823 | D26: ='Data base original'!D30/'Data base original'!D18*100-100 -> 19.91402681 | E26: ='Data base original'!E30/'Data base original'!E18*100-100 -> 18.47280879 | F26: ='Data base original'!F30/'Data base original'!F18*100-100 -> 18.422651 | G26: ='Data base original'!G30 -> 27.59263685 | K26: ='Data base original'!K30 -> 9.911397133 | N26: ='Data base original'!N30 -> 6.19990909 | Q26: ='Data base original'!Q30 -> 4.69 | R26: =('Data base original'!S30/'Data base original'!S18*100-100)*'Data base original'!S18/'Data base original'!$V18 -> 3.199440033 | S26: =('Data base original'!T30/'Data base original'!T18*100-100)*'Data base original'!T18/'Data base original'!$V18 -> 10.8500207 | T26: =('Data base original'!U30/'Data base original'!U18*100-100)*'Data base original'!U18/'Data base original'!$V18 -> 5.06699758 | U26: =('Data base original'!V30/'Data base original'!V18*100-100)*'Data base original'!V18/'Data base original'!$V18 -> 19.11645831 | V26: =('Data base original'!V30/'Data base original'!V18*100-100)*'Data base original'!V18/('Data base original'!$AC18) -> 4.032896319 | W26: =('Data base original'!W30/'Data base original'!W18*100-100)*'Data base original'!W18/('Data base original'!$AC18) -> 15.32335027 | X26: =('Data base original'!X30/'Data base original'!X18*100-100)*'Data base original'!X18/('Data base original'!$AC18) -> 0.06548573326 | Y26: =('Data base original'!Y30/'Data base original'!Y18*100-100)*'Data base original'!Y18/('Data base original'!$AC18) -> 4.42349654 | Z26: =('Data base original'!Z30/'Data base original'!Z18*100-100)*'Data base original'!Z18/('Data base original'!$AC18) -> 0.2564329849 | AA26: =-('Data base original'!AA30/'Data base original'!AA18*100-100)*'Data base original'!AA18/('Data base original'!$AC18) -> -5.089869664 | AB26: =-('Data base original'!AB30/'Data base original'!AB18*100-100)*'Data base original'!AB18/('Data base original'!$AC18) -> -0.02757729028 | AC26: =(('Data base original'!Y30-'Data base original'!AA30)/('Data base original'!Y18-'Data base original'!AA18)*100-100)*(('Data base original'!Y18-'Data base original'!AA18)/'Data base original'!AC18) -> -0.6663731242 | AD26: =(('Data base original'!Z30-'Data base original'!AB30)/('Data base original'!Z18-'Data base original'!AB18)*100-100)*(('Data base original'!Z18-'Data base original'!AB18)/'Data base original'!AC18) -> 0.2288556947 | AE26: =('Data base original'!AC30/'Data base original'!AC18*100-100)*'Data base original'!AC18/('Data base original'!$AC18) -> 18.98421489 | AF26: =('Data base original'!AC30/'Data base original'!AC18*100-100)*'Data base original'!AC18/('Data base original'!$AN18) -> 11.20143906 | AG26: =('Data base original'!AD30/'Data base original'!AD18*100-100)*'Data base original'!AD18/('Data base original'!$AN18) -> 0.5868538448 | AH26: =('Data base original'!AE30/'Data base original'!AE18*100-100)*'Data base original'!AE18/('Data base original'!$AN18) -> -2.04909557 | AI26: =('Data base original'!AF30/'Data base original'!AF18*100-100)*'Data base original'!AF18/('Data base original'!$AN18) -> 0.14472217 | AJ26: =('Data base original'!AG30/'Data base original'!AG18*100-100)*'Data base original'!AG18/('Data base original'!$AN18) -> -0.2191070571 | AK26: =('Data base original'!AH30/'Data base original'!AH18*100-100)*'Data base original'!AH18/('Data base original'!$AN18) -> 0.05588619795 | AL26: =('Data base original'!AI30/'Data base original'!AI18*100-100)*'Data base original'!AI18/('Data base original'!$AN18) -> 1.989405599 | AM26: =('Data base original'!AJ30/'Data base original'!AJ18*100-100)*'Data base original'!AJ18/('Data base original'!$AN18) -> 3.057436682 | AN26: =('Data base original'!AK30/'Data base original'!AK18*100-100)*'Data base original'!AK18/('Data base original'!$AN18) -> 0.3304080452 | AO26: =-('Data base original'!AL30/'Data base original'!AL18*100-100)*'Data base original'!AL18/('Data base original'!$AN18) -> -0.008111463868 | AP26: =-('Data base original'!AM30/'Data base original'!AM18*100-100)*'Data base original'!AM18/('Data base original'!$AN18) -> -0.07145890814 | AQ26: =(('Data base original'!AJ30-'Data base original'!AL30)/('Data base original'!AJ18-'Data base original'!AL18)*100-100)*(('Data base original'!AJ18-'Data base original'!AL18)/'Data base original'!AN18) -> 3.049325218 | AR26: =(('Data base original'!AK30-'Data base original'!AM30)/('Data base original'!AK18-'Data base original'!AM18)*100-100)*(('Data base original'!AK18-'Data base original'!AM18)/'Data base original'!AN18) -> 0.2589491371 | AS26: =('Data base original'!AN30/'Data base original'!AN18*100-100)*'Data base original'!AN18/('Data base original'!$AN18) -> 15.0183786
A27: 2007-09-01 | B27: ='Data base original'!B31/'Data base original'!B19*100-100 -> 20.42543216 | C27: ='Data base original'!C31/'Data base original'!C19*100-100 -> 16.69893249 | D27: ='Data base original'!D31/'Data base original'!D19*100-100 -> 21.36893863 | E27: ='Data base original'!E31/'Data base original'!E19*100-100 -> 14.48016208 | F27: ='Data base original'!F31/'Data base original'!F19*100-100 -> 19.58836974 | G27: ='Data base original'!G31 -> 28.88864487 | K27: ='Data base original'!K31 -> 10.12611294 | N27: ='Data base original'!N31 -> 6.144116389 | Q27: ='Data base original'!Q31 -> 4.79 | R27: =('Data base original'!S31/'Data base original'!S19*100-100)*'Data base original'!S19/'Data base original'!$V19 -> 3.199995962 | S27: =('Data base original'!T31/'Data base original'!T19*100-100)*'Data base original'!T19/'Data base original'!$V19 -> 9.997196849 | T27: =('Data base original'!U31/'Data base original'!U19*100-100)*'Data base original'!U19/'Data base original'!$V19 -> 5.531111633 | U27: =('Data base original'!V31/'Data base original'!V19*100-100)*'Data base original'!V19/'Data base original'!$V19 -> 18.72830444 | V27: =('Data base original'!V31/'Data base original'!V19*100-100)*'Data base original'!V19/('Data base original'!$AC19) -> 4.001374069 | W27: =('Data base original'!W31/'Data base original'!W19*100-100)*'Data base original'!W19/('Data base original'!$AC19) -> 14.51352175 | X27: =('Data base original'!X31/'Data base original'!X19*100-100)*'Data base original'!X19/('Data base original'!$AC19) -> 0.08494919682 | Y27: =('Data base original'!Y31/'Data base original'!Y19*100-100)*'Data base original'!Y19/('Data base original'!$AC19) -> 3.037789749 | Z27: =('Data base original'!Z31/'Data base original'!Z19*100-100)*'Data base original'!Z19/('Data base original'!$AC19) -> 0.208423434 | AA27: =-('Data base original'!AA31/'Data base original'!AA19*100-100)*'Data base original'!AA19/('Data base original'!$AC19) -> -4.501175135 | AB27: =-('Data base original'!AB31/'Data base original'!AB19*100-100)*'Data base original'!AB19/('Data base original'!$AC19) -> -0.02712119708 | AC27: =(('Data base original'!Y31-'Data base original'!AA31)/('Data base original'!Y19-'Data base original'!AA19)*100-100)*(('Data base original'!Y19-'Data base original'!AA19)/'Data base original'!AC19) -> -1.463385386 | AD27: =(('Data base original'!Z31-'Data base original'!AB31)/('Data base original'!Z19-'Data base original'!AB19)*100-100)*(('Data base original'!Z19-'Data base original'!AB19)/'Data base original'!AC19) -> 0.1813022369 | AE27: =('Data base original'!AC31/'Data base original'!AC19*100-100)*'Data base original'!AC19/('Data base original'!$AC19) -> 17.31776187 | AF27: =('Data base original'!AC31/'Data base original'!AC19*100-100)*'Data base original'!AC19/('Data base original'!$AN19) -> 10.19757445 | AG27: =('Data base original'!AD31/'Data base original'!AD19*100-100)*'Data base original'!AD19/('Data base original'!$AN19) -> 0.5752812453 | AH27: =('Data base original'!AE31/'Data base original'!AE19*100-100)*'Data base original'!AE19/('Data base original'!$AN19) -> -2.709336857 | AI27: =('Data base original'!AF31/'Data base original'!AF19*100-100)*'Data base original'!AF19/('Data base original'!$AN19) -> 0.1673551214 | AJ27: =('Data base original'!AG31/'Data base original'!AG19*100-100)*'Data base original'!AG19/('Data base original'!$AN19) -> -0.2399518744 | AK27: =('Data base original'!AH31/'Data base original'!AH19*100-100)*'Data base original'!AH19/('Data base original'!$AN19) -> 0.04200546871 | AL27: =('Data base original'!AI31/'Data base original'!AI19*100-100)*'Data base original'!AI19/('Data base original'!$AN19) -> 1.98971936 | AM27: =('Data base original'!AJ31/'Data base original'!AJ19*100-100)*'Data base original'!AJ19/('Data base original'!$AN19) -> 2.916760687 | AN27: =('Data base original'!AK31/'Data base original'!AK19*100-100)*'Data base original'!AK19/('Data base original'!$AN19) -> 0.3165332731 | AO27: =-('Data base original'!AL31/'Data base original'!AL19*100-100)*'Data base original'!AL19/('Data base original'!$AN19) -> 0.02493975486 | AP27: =-('Data base original'!AM31/'Data base original'!AM19*100-100)*'Data base original'!AM19/('Data base original'!$AN19) -> -0.05348315347 | AQ27: =(('Data base original'!AJ31-'Data base original'!AL31)/('Data base original'!AJ19-'Data base original'!AL19)*100-100)*(('Data base original'!AJ19-'Data base original'!AL19)/'Data base original'!AN19) -> 2.941700442 | AR27: =(('Data base original'!AK31-'Data base original'!AM31)/('Data base original'!AK19-'Data base original'!AM19)*100-100)*(('Data base original'!AK19-'Data base original'!AM19)/'Data base original'!AN19) -> 0.2630501196 | AS27: =('Data base original'!AN31/'Data base original'!AN19*100-100)*'Data base original'!AN19/('Data base original'!$AN19) -> 13.22739748
A28: 2007-10-01 | B28: ='Data base original'!B32/'Data base original'!B20*100-100 -> 21.67826353 | C28: ='Data base original'!C32/'Data base original'!C20*100-100 -> 16.15653429 | D28: ='Data base original'!D32/'Data base original'!D20*100-100 -> 22.6689105 | E28: ='Data base original'!E32/'Data base original'!E20*100-100 -> 14.35357267 | F28: ='Data base original'!F32/'Data base original'!F20*100-100 -> 20.49779022 | G28: ='Data base original'!G32 -> 29.01098504 | K28: ='Data base original'!K32 -> 10.15083518 | N28: ='Data base original'!N32 -> 5.853360697 | Q28: ='Data base original'!Q32 -> 4.83 | R28: =('Data base original'!S32/'Data base original'!S20*100-100)*'Data base original'!S20/'Data base original'!$V20 -> 3.068645933 | S28: =('Data base original'!T32/'Data base original'!T20*100-100)*'Data base original'!T20/'Data base original'!$V20 -> 10.06520646 | T28: =('Data base original'!U32/'Data base original'!U20*100-100)*'Data base original'!U20/'Data base original'!$V20 -> 5.617318533 | U28: =('Data base original'!V32/'Data base original'!V20*100-100)*'Data base original'!V20/'Data base original'!$V20 -> 18.75117093 | V28: =('Data base original'!V32/'Data base original'!V20*100-100)*'Data base original'!V20/('Data base original'!$AC20) -> 3.93930582 | W28: =('Data base original'!W32/'Data base original'!W20*100-100)*'Data base original'!W20/('Data base original'!$AC20) -> 15.87392772 | X28: =('Data base original'!X32/'Data base original'!X20*100-100)*'Data base original'!X20/('Data base original'!$AC20) -> 0.118646595 | Y28: =('Data base original'!Y32/'Data base original'!Y20*100-100)*'Data base original'!Y20/('Data base original'!$AC20) -> 2.025678207 | Z28: =('Data base original'!Z32/'Data base original'!Z20*100-100)*'Data base original'!Z20/('Data base original'!$AC20) -> 0.1572997066 | AA28: =-('Data base original'!AA32/'Data base original'!AA20*100-100)*'Data base original'!AA20/('Data base original'!$AC20) -> -2.724067189 | AB28: =-('Data base original'!AB32/'Data base original'!AB20*100-100)*'Data base original'!AB20/('Data base original'!$AC20) -> -0.01590640692 | AC28: =(('Data base original'!Y32-'Data base original'!AA32)/('Data base original'!Y20-'Data base original'!AA20)*100-100)*(('Data base original'!Y20-'Data base original'!AA20)/'Data base original'!AC20) -> -0.6983889823 | AD28: =(('Data base original'!Z32-'Data base original'!AB32)/('Data base original'!Z20-'Data base original'!AB20)*100-100)*(('Data base original'!Z20-'Data base original'!AB20)/'Data base original'!AC20) -> 0.1413932997 | AE28: =('Data base original'!AC32/'Data base original'!AC20*100-100)*'Data base original'!AC20/('Data base original'!$AC20) -> 19.37488445 | AF28: =('Data base original'!AC32/'Data base original'!AC20*100-100)*'Data base original'!AC20/('Data base original'!$AN20) -> 11.34562946 | AG28: =('Data base original'!AD32/'Data base original'!AD20*100-100)*'Data base original'!AD20/('Data base original'!$AN20) -> 0.7164886537 | AH28: =('Data base original'!AE32/'Data base original'!AE20*100-100)*'Data base original'!AE20/('Data base original'!$AN20) -> -2.528723643 | AI28: =('Data base original'!AF32/'Data base original'!AF20*100-100)*'Data base original'!AF20/('Data base original'!$AN20) -> 0.1497638676 | AJ28: =('Data base original'!AG32/'Data base original'!AG20*100-100)*'Data base original'!AG20/('Data base original'!$AN20) -> -0.3175528069 | AK28: =('Data base original'!AH32/'Data base original'!AH20*100-100)*'Data base original'!AH20/('Data base original'!$AN20) -> 0.03563687021 | AL28: =('Data base original'!AI32/'Data base original'!AI20*100-100)*'Data base original'!AI20/('Data base original'!$AN20) -> 2.147908239 | AM28: =('Data base original'!AJ32/'Data base original'!AJ20*100-100)*'Data base original'!AJ20/('Data base original'!$AN20) -> 3.249217868 | AN28: =('Data base original'!AK32/'Data base original'!AK20*100-100)*'Data base original'!AK20/('Data base original'!$AN20) -> 0.3474992224 | AO28: =-('Data base original'!AL32/'Data base original'!AL20*100-100)*'Data base original'!AL20/('Data base original'!$AN20) -> -0.4406446548 | AP28: =-('Data base original'!AM32/'Data base original'!AM20*100-100)*'Data base original'!AM20/('Data base original'!$AN20) -> -0.05801720619 | AQ28: =(('Data base original'!AJ32-'Data base original'!AL32)/('Data base original'!AJ20-'Data base original'!AL20)*100-100)*(('Data base original'!AJ20-'Data base original'!AL20)/'Data base original'!AN20) -> 2.808573214 | AR28: =(('Data base original'!AK32-'Data base original'!AM32)/('Data base original'!AK20-'Data base original'!AM20)*100-100)*(('Data base original'!AK20-'Data base original'!AM20)/'Data base original'!AN20) -> 0.2894820162 | AS28: =('Data base original'!AN32/'Data base original'!AN20*100-100)*'Data base original'!AN20/('Data base original'!$AN20) -> 14.64720587
A29: 2007-11-01 | B29: ='Data base original'!B33/'Data base original'!B21*100-100 -> 22.69820311 | C29: ='Data base original'!C33/'Data base original'!C21*100-100 -> 15.6949176 | D29: ='Data base original'!D33/'Data base original'!D21*100-100 -> 23.25184646 | E29: ='Data base original'!E33/'Data base original'!E21*100-100 -> 18.0280213 | F29: ='Data base original'!F33/'Data base original'!F21*100-100 -> 21.47102673 | G29: ='Data base original'!G33 -> 28.91827827 | K29: ='Data base original'!K33 -> 10.16639217 | N29: ='Data base original'!N33 -> 5.682430127 | Q29: ='Data base original'!Q33 -> 4.81 | R29: =('Data base original'!S33/'Data base original'!S21*100-100)*'Data base original'!S21/'Data base original'!$V21 -> 3.01249231 | S29: =('Data base original'!T33/'Data base original'!T21*100-100)*'Data base original'!T21/'Data base original'!$V21 -> 11.19637382 | T29: =('Data base original'!U33/'Data base original'!U21*100-100)*'Data base original'!U21/'Data base original'!$V21 -> 7.44154748 | U29: =('Data base original'!V33/'Data base original'!V21*100-100)*'Data base original'!V21/'Data base original'!$V21 -> 21.65041361 | V29: =('Data base original'!V33/'Data base original'!V21*100-100)*'Data base original'!V21/('Data base original'!$AC21) -> 4.564530929 | W29: =('Data base original'!W33/'Data base original'!W21*100-100)*'Data base original'!W21/('Data base original'!$AC21) -> 17.31265087 | X29: =('Data base original'!X33/'Data base original'!X21*100-100)*'Data base original'!X21/('Data base original'!$AC21) -> 0.1573061343 | Y29: =('Data base original'!Y33/'Data base original'!Y21*100-100)*'Data base original'!Y21/('Data base original'!$AC21) -> 4.734298282 | Z29: =('Data base original'!Z33/'Data base original'!Z21*100-100)*'Data base original'!Z21/('Data base original'!$AC21) -> 0.1392976638 | AA29: =-('Data base original'!AA33/'Data base original'!AA21*100-100)*'Data base original'!AA21/('Data base original'!$AC21) -> -5.074690534 | AB29: =-('Data base original'!AB33/'Data base original'!AB21*100-100)*'Data base original'!AB21/('Data base original'!$AC21) -> -0.00889704201 | AC29: =(('Data base original'!Y33-'Data base original'!AA33)/('Data base original'!Y21-'Data base original'!AA21)*100-100)*(('Data base original'!Y21-'Data base original'!AA21)/'Data base original'!AC21) -> -0.3403922518 | AD29: =(('Data base original'!Z33-'Data base original'!AB33)/('Data base original'!Z21-'Data base original'!AB21)*100-100)*(('Data base original'!Z21-'Data base original'!AB21)/'Data base original'!AC21) -> 0.1304006217 | AE29: =('Data base original'!AC33/'Data base original'!AC21*100-100)*'Data base original'!AC21/('Data base original'!$AC21) -> 21.82449631 | AF29: =('Data base original'!AC33/'Data base original'!AC21*100-100)*'Data base original'!AC21/('Data base original'!$AN21) -> 12.81301682 | AG29: =('Data base original'!AD33/'Data base original'!AD21*100-100)*'Data base original'!AD21/('Data base original'!$AN21) -> 0.732990107 | AH29: =('Data base original'!AE33/'Data base original'!AE21*100-100)*'Data base original'!AE21/('Data base original'!$AN21) -> -2.506694323 | AI29: =('Data base original'!AF33/'Data base original'!AF21*100-100)*'Data base original'!AF21/('Data base original'!$AN21) -> 0.2344548837 | AJ29: =('Data base original'!AG33/'Data base original'!AG21*100-100)*'Data base original'!AG21/('Data base original'!$AN21) -> -0.4294668474 | AK29: =('Data base original'!AH33/'Data base original'!AH21*100-100)*'Data base original'!AH21/('Data base original'!$AN21) -> 0.05932957766 | AL29: =('Data base original'!AI33/'Data base original'!AI21*100-100)*'Data base original'!AI21/('Data base original'!$AN21) -> 2.347081868 | AM29: =('Data base original'!AJ33/'Data base original'!AJ21*100-100)*'Data base original'!AJ21/('Data base original'!$AN21) -> 3.226688876 | AN29: =('Data base original'!AK33/'Data base original'!AK21*100-100)*'Data base original'!AK21/('Data base original'!$AN21) -> 0.326226145 | AO29: =-('Data base original'!AL33/'Data base original'!AL21*100-100)*'Data base original'!AL21/('Data base original'!$AN21) -> -0.5768232049 | AP29: =-('Data base original'!AM33/'Data base original'!AM21*100-100)*'Data base original'!AM21/('Data base original'!$AN21) -> -0.06976063308 | AQ29: =(('Data base original'!AJ33-'Data base original'!AL33)/('Data base original'!AJ21-'Data base original'!AL21)*100-100)*(('Data base original'!AJ21-'Data base original'!AL21)/'Data base original'!AN21) -> 2.649865671 | AR29: =(('Data base original'!AK33-'Data base original'!AM33)/('Data base original'!AK21-'Data base original'!AM21)*100-100)*(('Data base original'!AK21-'Data base original'!AM21)/'Data base original'!AN21) -> 0.2564655119 | AS29: =('Data base original'!AN33/'Data base original'!AN21*100-100)*'Data base original'!AN21/('Data base original'!$AN21) -> 16.15704327
A30: 2007-12-01 | B30: ='Data base original'!B34/'Data base original'!B22*100-100 -> 22.59511209 | C30: ='Data base original'!C34/'Data base original'!C22*100-100 -> 15.33834384 | D30: ='Data base original'!D34/'Data base original'!D22*100-100 -> 24.37138124 | E30: ='Data base original'!E34/'Data base original'!E22*100-100 -> 12.43479757 | F30: ='Data base original'!F34/'Data base original'!F22*100-100 -> 21.08677118 | G30: ='Data base original'!G34 -> 29.9564244 | K30: ='Data base original'!K34 -> 10.20759446 | N30: ='Data base original'!N34 -> 5.890780774 | Q30: ='Data base original'!Q34 -> 4.83 | R30: =('Data base original'!S34/'Data base original'!S22*100-100)*'Data base original'!S22/'Data base original'!$V22 -> 2.939359681 | S30: =('Data base original'!T34/'Data base original'!T22*100-100)*'Data base original'!T22/'Data base original'!$V22 -> 11.19054323 | T30: =('Data base original'!U34/'Data base original'!U22*100-100)*'Data base original'!U22/'Data base original'!$V22 -> 3.932357432 | U30: =('Data base original'!V34/'Data base original'!V22*100-100)*'Data base original'!V22/'Data base original'!$V22 -> 18.06226035 | V30: =('Data base original'!V34/'Data base original'!V22*100-100)*'Data base original'!V22/('Data base original'!$AC22) -> 4.010915521 | W30: =('Data base original'!W34/'Data base original'!W22*100-100)*'Data base original'!W22/('Data base original'!$AC22) -> 17.89963963 | X30: =('Data base original'!X34/'Data base original'!X22*100-100)*'Data base original'!X22/('Data base original'!$AC22) -> 0.1907679789 | Y30: =('Data base original'!Y34/'Data base original'!Y22*100-100)*'Data base original'!Y22/('Data base original'!$AC22) -> 4.045104165 | Z30: =('Data base original'!Z34/'Data base original'!Z22*100-100)*'Data base original'!Z22/('Data base original'!$AC22) -> 0.121200169 | AA30: =-('Data base original'!AA34/'Data base original'!AA22*100-100)*'Data base original'!AA22/('Data base original'!$AC22) -> -4.308985635 | AB30: =-('Data base original'!AB34/'Data base original'!AB22*100-100)*'Data base original'!AB22/('Data base original'!$AC22) -> -0.009550045343 | AC30: =(('Data base original'!Y34-'Data base original'!AA34)/('Data base original'!Y22-'Data base original'!AA22)*100-100)*(('Data base original'!Y22-'Data base original'!AA22)/'Data base original'!AC22) -> -0.2638814697 | AD30: =(('Data base original'!Z34-'Data base original'!AB34)/('Data base original'!Z22-'Data base original'!AB22)*100-100)*(('Data base original'!Z22-'Data base original'!AB22)/'Data base original'!AC22) -> 0.1116501236 | AE30: =('Data base original'!AC34/'Data base original'!AC22*100-100)*'Data base original'!AC22/('Data base original'!$AC22) -> 21.94909179 | AF30: =('Data base original'!AC34/'Data base original'!AC22*100-100)*'Data base original'!AC22/('Data base original'!$AN22) -> 13.04000993 | AG30: =('Data base original'!AD34/'Data base original'!AD22*100-100)*'Data base original'!AD22/('Data base original'!$AN22) -> 0.7881223048 | AH30: =('Data base original'!AE34/'Data base original'!AE22*100-100)*'Data base original'!AE22/('Data base original'!$AN22) -> -2.762541119 | AI30: =('Data base original'!AF34/'Data base original'!AF22*100-100)*'Data base original'!AF22/('Data base original'!$AN22) -> 0.4137038596 | AJ30: =('Data base original'!AG34/'Data base original'!AG22*100-100)*'Data base original'!AG22/('Data base original'!$AN22) -> -0.506266754 | AK30: =('Data base original'!AH34/'Data base original'!AH22*100-100)*'Data base original'!AH22/('Data base original'!$AN22) -> 0.03891639295 | AL30: =('Data base original'!AI34/'Data base original'!AI22*100-100)*'Data base original'!AI22/('Data base original'!$AN22) -> 2.220494655 | AM30: =('Data base original'!AJ34/'Data base original'!AJ22*100-100)*'Data base original'!AJ22/('Data base original'!$AN22) -> 2.668102365 | AN30: =('Data base original'!AK34/'Data base original'!AK22*100-100)*'Data base original'!AK22/('Data base original'!$AN22) -> 0.2577922735 | AO30: =-('Data base original'!AL34/'Data base original'!AL22*100-100)*'Data base original'!AL22/('Data base original'!$AN22) -> -0.4938122781 | AP30: =-('Data base original'!AM34/'Data base original'!AM22*100-100)*'Data base original'!AM22/('Data base original'!$AN22) -> -0.07060611475 | AQ30: =(('Data base original'!AJ34-'Data base original'!AL34)/('Data base original'!AJ22-'Data base original'!AL22)*100-100)*(('Data base original'!AJ22-'Data base original'!AL22)/'Data base original'!AN22) -> 2.174290087 | AR30: =(('Data base original'!AK34-'Data base original'!AM34)/('Data base original'!AK22-'Data base original'!AM22)*100-100)*(('Data base original'!AK22-'Data base original'!AM22)/'Data base original'!AN22) -> 0.1871861587 | AS30: =('Data base original'!AN34/'Data base original'!AN22*100-100)*'Data base original'!AN22/('Data base original'!$AN22) -> 15.59391551
A31: 2008-01-01 | B31: ='Data base original'!B35/'Data base original'!B23*100-100 -> 21.35491589 | C31: ='Data base original'!C35/'Data base original'!C23*100-100 -> 15.32727926 | D31: ='Data base original'!D35/'Data base original'!D23*100-100 -> 25.46052031 | E31: ='Data base original'!E35/'Data base original'!E23*100-100 -> 2.937968793 | F31: ='Data base original'!F35/'Data base original'!F23*100-100 -> 19.69588787 | G31: ='Data base original'!G35 -> 32.06297709 | K31: ='Data base original'!K35 -> 10.54607256 | N31: ='Data base original'!N35 -> 4.909974714 | Q31: ='Data base original'!Q35 -> 4.8 | R31: =('Data base original'!S35/'Data base original'!S23*100-100)*'Data base original'!S23/'Data base original'!$V23 -> 2.801458169 | S31: =('Data base original'!T35/'Data base original'!T23*100-100)*'Data base original'!T23/'Data base original'!$V23 -> 10.68633109 | T31: =('Data base original'!U35/'Data base original'!U23*100-100)*'Data base original'!U23/'Data base original'!$V23 -> 2.575382883 | U31: =('Data base original'!V35/'Data base original'!V23*100-100)*'Data base original'!V23/'Data base original'!$V23 -> 16.06317214 | V31: =('Data base original'!V35/'Data base original'!V23*100-100)*'Data base original'!V23/('Data base original'!$AC23) -> 3.574329624 | W31: =('Data base original'!W35/'Data base original'!W23*100-100)*'Data base original'!W23/('Data base original'!$AC23) -> 17.77534433 | X31: =('Data base original'!X35/'Data base original'!X23*100-100)*'Data base original'!X23/('Data base original'!$AC23) -> 0.2206985613 | Y31: =('Data base original'!Y35/'Data base original'!Y23*100-100)*'Data base original'!Y23/('Data base original'!$AC23) -> 2.553244445 | Z31: =('Data base original'!Z35/'Data base original'!Z23*100-100)*'Data base original'!Z23/('Data base original'!$AC23) -> 0.1486425058 | AA31: =-('Data base original'!AA35/'Data base original'!AA23*100-100)*'Data base original'!AA23/('Data base original'!$AC23) -> -2.94364299 | AB31: =-('Data base original'!AB35/'Data base original'!AB23*100-100)*'Data base original'!AB23/('Data base original'!$AC23) -> -0.01632460689 | AC31: =(('Data base original'!Y35-'Data base original'!AA35)/('Data base original'!Y23-'Data base original'!AA23)*100-100)*(('Data base original'!Y23-'Data base original'!AA23)/'Data base original'!AC23) -> -0.3903985445 | AD31: =(('Data base original'!Z35-'Data base original'!AB35)/('Data base original'!Z23-'Data base original'!AB23)*100-100)*(('Data base original'!Z23-'Data base original'!AB23)/'Data base original'!AC23) -> 0.1323178989 | AE31: =('Data base original'!AC35/'Data base original'!AC23*100-100)*'Data base original'!AC23/('Data base original'!$AC23) -> 21.31229187 | AF31: =('Data base original'!AC35/'Data base original'!AC23*100-100)*'Data base original'!AC23/('Data base original'!$AN23) -> 12.80851475 | AG31: =('Data base original'!AD35/'Data base original'!AD23*100-100)*'Data base original'!AD23/('Data base original'!$AN23) -> 0.8794115489 | AH31: =('Data base original'!AE35/'Data base original'!AE23*100-100)*'Data base original'!AE23/('Data base original'!$AN23) -> -1.827743166 | AI31: =('Data base original'!AF35/'Data base original'!AF23*100-100)*'Data base original'!AF23/('Data base original'!$AN23) -> 0.5441962637 | AJ31: =('Data base original'!AG35/'Data base original'!AG23*100-100)*'Data base original'!AG23/('Data base original'!$AN23) -> -0.3365994667 | AK31: =('Data base original'!AH35/'Data base original'!AH23*100-100)*'Data base original'!AH23/('Data base original'!$AN23) -> 0.0116514615 | AL31: =('Data base original'!AI35/'Data base original'!AI23*100-100)*'Data base original'!AI23/('Data base original'!$AN23) -> 1.929427265 | AM31: =('Data base original'!AJ35/'Data base original'!AJ23*100-100)*'Data base original'!AJ23/('Data base original'!$AN23) -> 1.686130755 | AN31: =('Data base original'!AK35/'Data base original'!AK23*100-100)*'Data base original'!AK23/('Data base original'!$AN23) -> 0.1639874757 | AO31: =-('Data base original'!AL35/'Data base original'!AL23*100-100)*'Data base original'!AL23/('Data base original'!$AN23) -> -0.4084552162 | AP31: =-('Data base original'!AM35/'Data base original'!AM23*100-100)*'Data base original'!AM23/('Data base original'!$AN23) -> -0.06958934249 | AQ31: =(('Data base original'!AJ35-'Data base original'!AL35)/('Data base original'!AJ23-'Data base original'!AL23)*100-100)*(('Data base original'!AJ23-'Data base original'!AL23)/'Data base original'!AN23) -> 1.277675539 | AR31: =(('Data base original'!AK35-'Data base original'!AM35)/('Data base original'!AK23-'Data base original'!AM23)*100-100)*(('Data base original'!AK23-'Data base original'!AM23)/'Data base original'!AN23) -> 0.09439813322 | AS31: =('Data base original'!AN35/'Data base original'!AN23*100-100)*'Data base original'!AN23/('Data base original'!$AN23) -> 15.38093233
A32: 2008-02-01 | B32: ='Data base original'!B36/'Data base original'!B24*100-100 -> 21.17543487 | C32: ='Data base original'!C36/'Data base original'!C24*100-100 -> 15.17123318 | D32: ='Data base original'!D36/'Data base original'!D24*100-100 -> 25.15165791 | E32: ='Data base original'!E36/'Data base original'!E24*100-100 -> 4.311551383 | F32: ='Data base original'!F36/'Data base original'!F24*100-100 -> 19.64871402 | G32: ='Data base original'!G36 -> 31.96068943 | K32: ='Data base original'!K36 -> 10.52429586 | N32: ='Data base original'!N36 -> 4.19445297 | Q32: ='Data base original'!Q36 -> 4.9 | R32: =('Data base original'!S36/'Data base original'!S24*100-100)*'Data base original'!S24/'Data base original'!$V24 -> 2.915518614 | S32: =('Data base original'!T36/'Data base original'!T24*100-100)*'Data base original'!T24/'Data base original'!$V24 -> 8.996626214 | T32: =('Data base original'!U36/'Data base original'!U24*100-100)*'Data base original'!U24/'Data base original'!$V24 -> 4.305827948 | U32: =('Data base original'!V36/'Data base original'!V24*100-100)*'Data base original'!V24/'Data base original'!$V24 -> 16.21797278 | V32: =('Data base original'!V36/'Data base original'!V24*100-100)*'Data base original'!V24/('Data base original'!$AC24) -> 3.555392695 | W32: =('Data base original'!W36/'Data base original'!W24*100-100)*'Data base original'!W24/('Data base original'!$AC24) -> 17.42987521 | X32: =('Data base original'!X36/'Data base original'!X24*100-100)*'Data base original'!X24/('Data base original'!$AC24) -> 0.252727475 | Y32: =('Data base original'!Y36/'Data base original'!Y24*100-100)*'Data base original'!Y24/('Data base original'!$AC24) -> 4.058439522 | Z32: =('Data base original'!Z36/'Data base original'!Z24*100-100)*'Data base original'!Z24/('Data base original'!$AC24) -> 0.1697726602 | AA32: =-('Data base original'!AA36/'Data base original'!AA24*100-100)*'Data base original'!AA24/('Data base original'!$AC24) -> -3.911669452 | AB32: =-('Data base original'!AB36/'Data base original'!AB24*100-100)*'Data base original'!AB24/('Data base original'!$AC24) -> -0.01131316042 | AC32: =(('Data base original'!Y36-'Data base original'!AA36)/('Data base original'!Y24-'Data base original'!AA24)*100-100)*(('Data base original'!Y24-'Data base original'!AA24)/'Data base original'!AC24) -> 0.1467700701 | AD32: =(('Data base original'!Z36-'Data base original'!AB36)/('Data base original'!Z24-'Data base original'!AB24)*100-100)*(('Data base original'!Z24-'Data base original'!AB24)/'Data base original'!AC24) -> 0.1584594997 | AE32: =('Data base original'!AC36/'Data base original'!AC24*100-100)*'Data base original'!AC24/('Data base original'!$AC24) -> 21.54322495 | AF32: =('Data base original'!AC36/'Data base original'!AC24*100-100)*'Data base original'!AC24/('Data base original'!$AN24) -> 12.94264997 | AG32: =('Data base original'!AD36/'Data base original'!AD24*100-100)*'Data base original'!AD24/('Data base original'!$AN24) -> 0.7583641361 | AH32: =('Data base original'!AE36/'Data base original'!AE24*100-100)*'Data base original'!AE24/('Data base original'!$AN24) -> -1.18045115 | AI32: =('Data base original'!AF36/'Data base original'!AF24*100-100)*'Data base original'!AF24/('Data base original'!$AN24) -> 0.3802671247 | AJ32: =('Data base original'!AG36/'Data base original'!AG24*100-100)*'Data base original'!AG24/('Data base original'!$AN24) -> -0.4248297961 | AK32: =('Data base original'!AH36/'Data base original'!AH24*100-100)*'Data base original'!AH24/('Data base original'!$AN24) -> 0.00893664665 | AL32: =('Data base original'!AI36/'Data base original'!AI24*100-100)*'Data base original'!AI24/('Data base original'!$AN24) -> 1.755531144 | AM32: =('Data base original'!AJ36/'Data base original'!AJ24*100-100)*'Data base original'!AJ24/('Data base original'!$AN24) -> 1.109289522 | AN32: =('Data base original'!AK36/'Data base original'!AK24*100-100)*'Data base original'!AK24/('Data base original'!$AN24) -> 0.1090481875 | AO32: =-('Data base original'!AL36/'Data base original'!AL24*100-100)*'Data base original'!AL24/('Data base original'!$AN24) -> -0.6880464409 | AP32: =-('Data base original'!AM36/'Data base original'!AM24*100-100)*'Data base original'!AM24/('Data base original'!$AN24) -> -0.06611310093 | AQ32: =(('Data base original'!AJ36-'Data base original'!AL36)/('Data base original'!AJ24-'Data base original'!AL24)*100-100)*(('Data base original'!AJ24-'Data base original'!AL24)/'Data base original'!AN24) -> 0.4212430812 | AR32: =(('Data base original'!AK36-'Data base original'!AM36)/('Data base original'!AK24-'Data base original'!AM24)*100-100)*(('Data base original'!AK24-'Data base original'!AM24)/'Data base original'!AN24) -> 0.04293508652 | AS32: =('Data base original'!AN36/'Data base original'!AN24*100-100)*'Data base original'!AN24/('Data base original'!$AN24) -> 14.70464624
A33: 2008-03-01 | B33: ='Data base original'!B37/'Data base original'!B25*100-100 -> 20.35201516 | C33: ='Data base original'!C37/'Data base original'!C25*100-100 -> 14.2047277 | D33: ='Data base original'!D37/'Data base original'!D25*100-100 -> 25.07241103 | E33: ='Data base original'!E37/'Data base original'!E25*100-100 -> 3.541958352 | F33: ='Data base original'!F37/'Data base original'!F25*100-100 -> 18.9839677 | G33: ='Data base original'!G37 -> 29.8751708 | K33: ='Data base original'!K37 -> 10.60816322 | N33: ='Data base original'!N37 -> 3.909952199 | Q33: ='Data base original'!Q37 -> 4.82 | R33: =('Data base original'!S37/'Data base original'!S25*100-100)*'Data base original'!S25/'Data base original'!$V25 -> 2.980118499 | S33: =('Data base original'!T37/'Data base original'!T25*100-100)*'Data base original'!T25/'Data base original'!$V25 -> 7.41003447 | T33: =('Data base original'!U37/'Data base original'!U25*100-100)*'Data base original'!U25/'Data base original'!$V25 -> 4.643332085 | U33: =('Data base original'!V37/'Data base original'!V25*100-100)*'Data base original'!V25/'Data base original'!$V25 -> 15.03348505 | V33: =('Data base original'!V37/'Data base original'!V25*100-100)*'Data base original'!V25/('Data base original'!$AC25) -> 3.267071023 | W33: =('Data base original'!W37/'Data base original'!W25*100-100)*'Data base original'!W25/('Data base original'!$AC25) -> 17.23661033 | X33: =('Data base original'!X37/'Data base original'!X25*100-100)*'Data base original'!X25/('Data base original'!$AC25) -> 0.255169935 | Y33: =('Data base original'!Y37/'Data base original'!Y25*100-100)*'Data base original'!Y25/('Data base original'!$AC25) -> 2.932932291 | Z33: =('Data base original'!Z37/'Data base original'!Z25*100-100)*'Data base original'!Z25/('Data base original'!$AC25) -> 0.1847389744 | AA33: =-('Data base original'!AA37/'Data base original'!AA25*100-100)*'Data base original'!AA25/('Data base original'!$AC25) -> -2.659424569 | AB33: =-('Data base original'!AB37/'Data base original'!AB25*100-100)*'Data base original'!AB25/('Data base original'!$AC25) -> -0.007176731759 | AC33: =(('Data base original'!Y37-'Data base original'!AA37)/('Data base original'!Y25-'Data base original'!AA25)*100-100)*(('Data base original'!Y25-'Data base original'!AA25)/'Data base original'!AC25) -> 0.2735077221 | AD33: =(('Data base original'!Z37-'Data base original'!AB37)/('Data base original'!Z25-'Data base original'!AB25)*100-100)*(('Data base original'!Z25-'Data base original'!AB25)/'Data base original'!AC25) -> 0.1775622426 | AE33: =('Data base original'!AC37/'Data base original'!AC25*100-100)*'Data base original'!AC25/('Data base original'!$AC25) -> 21.20992125 | AF33: =('Data base original'!AC37/'Data base original'!AC25*100-100)*'Data base original'!AC25/('Data base original'!$AN25) -> 12.78952702 | AG33: =('Data base original'!AD37/'Data base original'!AD25*100-100)*'Data base original'!AD25/('Data base original'!$AN25) -> 0.6190038664 | AH33: =('Data base original'!AE37/'Data base original'!AE25*100-100)*'Data base original'!AE25/('Data base original'!$AN25) -> -1.142353945 | AI33: =('Data base original'!AF37/'Data base original'!AF25*100-100)*'Data base original'!AF25/('Data base original'!$AN25) -> 0.4486625261 | AJ33: =('Data base original'!AG37/'Data base original'!AG25*100-100)*'Data base original'!AG25/('Data base original'!$AN25) -> -0.4799701154 | AK33: =('Data base original'!AH37/'Data base original'!AH25*100-100)*'Data base original'!AH25/('Data base original'!$AN25) -> -0.005819809259 | AL33: =('Data base original'!AI37/'Data base original'!AI25*100-100)*'Data base original'!AI25/('Data base original'!$AN25) -> 1.770535203 | AM33: =('Data base original'!AJ37/'Data base original'!AJ25*100-100)*'Data base original'!AJ25/('Data base original'!$AN25) -> 1.137205652 | AN33: =('Data base original'!AK37/'Data base original'!AK25*100-100)*'Data base original'!AK25/('Data base original'!$AN25) -> 0.09499719422 | AO33: =-('Data base original'!AL37/'Data base original'!AL25*100-100)*'Data base original'!AL25/('Data base original'!$AN25) -> -0.9155306094 | AP33: =-('Data base original'!AM37/'Data base original'!AM25*100-100)*'Data base original'!AM25/('Data base original'!$AN25) -> -0.07094198261 | AQ33: =(('Data base original'!AJ37-'Data base original'!AL37)/('Data base original'!AJ25-'Data base original'!AL25)*100-100)*(('Data base original'!AJ25-'Data base original'!AL25)/'Data base original'!AN25) -> 0.2216750424 | AR33: =(('Data base original'!AK37-'Data base original'!AM37)/('Data base original'!AK25-'Data base original'!AM25)*100-100)*(('Data base original'!AK25-'Data base original'!AM25)/'Data base original'!AN25) -> 0.02405521161 | AS33: =('Data base original'!AN37/'Data base original'!AN25*100-100)*'Data base original'!AN25/('Data base original'!$AN25) -> 14.245315
A34: 2008-04-01 | B34: ='Data base original'!B38/'Data base original'!B26*100-100 -> 21.2278013 | C34: ='Data base original'!C38/'Data base original'!C26*100-100 -> 14.16514624 | D34: ='Data base original'!D38/'Data base original'!D26*100-100 -> 25.82327366 | E34: ='Data base original'!E38/'Data base original'!E26*100-100 -> 13.14160843 | F34: ='Data base original'!F38/'Data base original'!F26*100-100 -> 20.50549586 | G34: ='Data base original'!G38 -> 30.12632972 | K34: ='Data base original'!K38 -> 10.5928774 | N34: ='Data base original'!N38 -> 4.016354928 | Q34: ='Data base original'!Q38 -> 4.76 | R34: =('Data base original'!S38/'Data base original'!S26*100-100)*'Data base original'!S26/'Data base original'!$V26 -> 2.678962475 | S34: =('Data base original'!T38/'Data base original'!T26*100-100)*'Data base original'!T26/'Data base original'!$V26 -> 6.537000807 | T34: =('Data base original'!U38/'Data base original'!U26*100-100)*'Data base original'!U26/'Data base original'!$V26 -> 3.070358892 | U34: =('Data base original'!V38/'Data base original'!V26*100-100)*'Data base original'!V26/'Data base original'!$V26 -> 12.28632217 | V34: =('Data base original'!V38/'Data base original'!V26*100-100)*'Data base original'!V26/('Data base original'!$AC26) -> 2.687928919 | W34: =('Data base original'!W38/'Data base original'!W26*100-100)*'Data base original'!W26/('Data base original'!$AC26) -> 17.46719338 | X34: =('Data base original'!X38/'Data base original'!X26*100-100)*'Data base original'!X26/('Data base original'!$AC26) -> 0.2804465501 | Y34: =('Data base original'!Y38/'Data base original'!Y26*100-100)*'Data base original'!Y26/('Data base original'!$AC26) -> 1.993475946 | Z34: =('Data base original'!Z38/'Data base original'!Z26*100-100)*'Data base original'!Z26/('Data base original'!$AC26) -> 0.2030878546 | AA34: =-('Data base original'!AA38/'Data base original'!AA26*100-100)*'Data base original'!AA26/('Data base original'!$AC26) -> -2.078616717 | AB34: =-('Data base original'!AB38/'Data base original'!AB26*100-100)*'Data base original'!AB26/('Data base original'!$AC26) -> -0.004426055508 | AC34: =(('Data base original'!Y38-'Data base original'!AA38)/('Data base original'!Y26-'Data base original'!AA26)*100-100)*(('Data base original'!Y26-'Data base original'!AA26)/'Data base original'!AC26) -> -0.08514077106 | AD34: =(('Data base original'!Z38-'Data base original'!AB38)/('Data base original'!Z26-'Data base original'!AB26)*100-100)*(('Data base original'!Z26-'Data base original'!AB26)/'Data base original'!AC26) -> 0.1986617991 | AE34: =('Data base original'!AC38/'Data base original'!AC26*100-100)*'Data base original'!AC26/('Data base original'!$AC26) -> 20.54908988 | AF34: =('Data base original'!AC38/'Data base original'!AC26*100-100)*'Data base original'!AC26/('Data base original'!$AN26) -> 12.51785556 | AG34: =('Data base original'!AD38/'Data base original'!AD26*100-100)*'Data base original'!AD26/('Data base original'!$AN26) -> 0.922371509 | AH34: =('Data base original'!AE38/'Data base original'!AE26*100-100)*'Data base original'!AE26/('Data base original'!$AN26) -> -1.048160216 | AI34: =('Data base original'!AF38/'Data base original'!AF26*100-100)*'Data base original'!AF26/('Data base original'!$AN26) -> 0.6135514184 | AJ34: =('Data base original'!AG38/'Data base original'!AG26*100-100)*'Data base original'!AG26/('Data base original'!$AN26) -> 0.04961328232 | AK34: =('Data base original'!AH38/'Data base original'!AH26*100-100)*'Data base original'!AH26/('Data base original'!$AN26) -> 0.004340606664 | AL34: =('Data base original'!AI38/'Data base original'!AI26*100-100)*'Data base original'!AI26/('Data base original'!$AN26) -> 2.074380369 | AM34: =('Data base original'!AJ38/'Data base original'!AJ26*100-100)*'Data base original'!AJ26/('Data base original'!$AN26) -> 0.995776649 | AN34: =('Data base original'!AK38/'Data base original'!AK26*100-100)*'Data base original'!AK26/('Data base original'!$AN26) -> 0.05673898814 | AO34: =-('Data base original'!AL38/'Data base original'!AL26*100-100)*'Data base original'!AL26/('Data base original'!$AN26) -> -0.831796529 | AP34: =-('Data base original'!AM38/'Data base original'!AM26*100-100)*'Data base original'!AM26/('Data base original'!$AN26) -> -0.05816116643 | AQ34: =(('Data base original'!AJ38-'Data base original'!AL38)/('Data base original'!AJ26-'Data base original'!AL26)*100-100)*(('Data base original'!AJ26-'Data base original'!AL26)/'Data base original'!AN26) -> 0.16398012 | AR34: =(('Data base original'!AK38-'Data base original'!AM38)/('Data base original'!AK26-'Data base original'!AM26)*100-100)*(('Data base original'!AK26-'Data base original'!AM26)/'Data base original'!AN26) -> -0.001422178293 | AS34: =('Data base original'!AN38/'Data base original'!AN26*100-100)*'Data base original'!AN26/('Data base original'!$AN26) -> 15.29651047
A35: 2008-05-01 | B35: ='Data base original'!B39/'Data base original'!B27*100-100 -> 21.44424436 | C35: ='Data base original'!C39/'Data base original'!C27*100-100 -> 13.47332675 | D35: ='Data base original'!D39/'Data base original'!D27*100-100 -> 25.07038997 | E35: ='Data base original'!E39/'Data base original'!E27*100-100 -> 19.10242591 | F35: ='Data base original'!F39/'Data base original'!F27*100-100 -> 20.94932519 | G35: ='Data base original'!G39 -> 30.9324869 | K35: ='Data base original'!K39 -> 10.67956961 | N35: ='Data base original'!N39 -> 4.116003773 | Q35: ='Data base original'!Q39 -> 4.63 | R35: =('Data base original'!S39/'Data base original'!S27*100-100)*'Data base original'!S27/'Data base original'!$V27 -> 2.998157785 | S35: =('Data base original'!T39/'Data base original'!T27*100-100)*'Data base original'!T27/'Data base original'!$V27 -> 7.416153804 | T35: =('Data base original'!U39/'Data base original'!U27*100-100)*'Data base original'!U27/'Data base original'!$V27 -> 4.698149718 | U35: =('Data base original'!V39/'Data base original'!V27*100-100)*'Data base original'!V27/'Data base original'!$V27 -> 15.11246131 | V35: =('Data base original'!V39/'Data base original'!V27*100-100)*'Data base original'!V27/('Data base original'!$AC27) -> 3.275664847 | W35: =('Data base original'!W39/'Data base original'!W27*100-100)*'Data base original'!W27/('Data base original'!$AC27) -> 16.62977249 | X35: =('Data base original'!X39/'Data base original'!X27*100-100)*'Data base original'!X27/('Data base original'!$AC27) -> 0.3227015292 | Y35: =('Data base original'!Y39/'Data base original'!Y27*100-100)*'Data base original'!Y27/('Data base original'!$AC27) -> 4.334768775 | Z35: =('Data base original'!Z39/'Data base original'!Z27*100-100)*'Data base original'!Z27/('Data base original'!$AC27) -> 0.204491015 | AA35: =-('Data base original'!AA39/'Data base original'!AA27*100-100)*'Data base original'!AA27/('Data base original'!$AC27) -> -4.392305078 | AB35: =-('Data base original'!AB39/'Data base original'!AB27*100-100)*'Data base original'!AB27/('Data base original'!$AC27) -> -0.004503257682 | AC35: =(('Data base original'!Y39-'Data base original'!AA39)/('Data base original'!Y27-'Data base original'!AA27)*100-100)*(('Data base original'!Y27-'Data base original'!AA27)/'Data base original'!AC27) -> -0.05753630293 | AD35: =(('Data base original'!Z39-'Data base original'!AB39)/('Data base original'!Z27-'Data base original'!AB27)*100-100)*(('Data base original'!Z27-'Data base original'!AB27)/'Data base original'!AC27) -> 0.1999877574 | AE35: =('Data base original'!AC39/'Data base original'!AC27*100-100)*'Data base original'!AC27/('Data base original'!$AC27) -> 20.37059032 | AF35: =('Data base original'!AC39/'Data base original'!AC27*100-100)*'Data base original'!AC27/('Data base original'!$AN27) -> 12.38134958 | AG35: =('Data base original'!AD39/'Data base original'!AD27*100-100)*'Data base original'!AD27/('Data base original'!$AN27) -> 1.331353194 | AH35: =('Data base original'!AE39/'Data base original'!AE27*100-100)*'Data base original'!AE27/('Data base original'!$AN27) -> -0.5571897655 | AI35: =('Data base original'!AF39/'Data base original'!AF27*100-100)*'Data base original'!AF27/('Data base original'!$AN27) -> 0.7121418356 | AJ35: =('Data base original'!AG39/'Data base original'!AG27*100-100)*'Data base original'!AG27/('Data base original'!$AN27) -> -0.2938600566 | AK35: =('Data base original'!AH39/'Data base original'!AH27*100-100)*'Data base original'!AH27/('Data base original'!$AN27) -> 0.03469423875 | AL35: =('Data base original'!AI39/'Data base original'!AI27*100-100)*'Data base original'!AI27/('Data base original'!$AN27) -> 2.383201565 | AM35: =('Data base original'!AJ39/'Data base original'!AJ27*100-100)*'Data base original'!AJ27/('Data base original'!$AN27) -> 0.9003031203 | AN35: =('Data base original'!AK39/'Data base original'!AK27*100-100)*'Data base original'!AK27/('Data base original'!$AN27) -> 0.04289098924 | AO35: =-('Data base original'!AL39/'Data base original'!AL27*100-100)*'Data base original'!AL27/('Data base original'!$AN27) -> -0.8870689353 | AP35: =-('Data base original'!AM39/'Data base original'!AM27*100-100)*'Data base original'!AM27/('Data base original'!$AN27) -> -0.04388100528 | AQ35: =(('Data base original'!AJ39-'Data base original'!AL39)/('Data base original'!AJ27-'Data base original'!AL27)*100-100)*(('Data base original'!AJ27-'Data base original'!AL27)/'Data base original'!AN27) -> 0.01323418507 | AR35: =(('Data base original'!AK39-'Data base original'!AM39)/('Data base original'!AK27-'Data base original'!AM27)*100-100)*(('Data base original'!AK27-'Data base original'!AM27)/'Data base original'!AN27) -> -0.0009900160449 | AS35: =('Data base original'!AN39/'Data base original'!AN27*100-100)*'Data base original'!AN27/('Data base original'!$AN27) -> 16.00393476
A36: 2008-06-01 | B36: ='Data base original'!B40/'Data base original'!B28*100-100 -> 22.02472461 | C36: ='Data base original'!C40/'Data base original'!C28*100-100 -> 13.12629055 | D36: ='Data base original'!D40/'Data base original'!D28*100-100 -> 24.87876397 | E36: ='Data base original'!E40/'Data base original'!E28*100-100 -> 32.75970701 | F36: ='Data base original'!F40/'Data base original'!F28*100-100 -> 22.48867907 | G36: ='Data base original'!G40 -> 30.74424815 | K36: ='Data base original'!K40 -> 10.87630127 | N36: ='Data base original'!N40 -> 4.238679367 | Q36: ='Data base original'!Q40 -> 4.72 | R36: =('Data base original'!S40/'Data base original'!S28*100-100)*'Data base original'!S28/'Data base original'!$V28 -> 2.944090868 | S36: =('Data base original'!T40/'Data base original'!T28*100-100)*'Data base original'!T28/'Data base original'!$V28 -> 10.41594824 | T36: =('Data base original'!U40/'Data base original'!U28*100-100)*'Data base original'!U28/'Data base original'!$V28 -> 2.024787771 | U36: =('Data base original'!V40/'Data base original'!V28*100-100)*'Data base original'!V28/'Data base original'!$V28 -> 15.38482688 | V36: =('Data base original'!V40/'Data base original'!V28*100-100)*'Data base original'!V28/('Data base original'!$AC28) -> 3.293267726 | W36: =('Data base original'!W40/'Data base original'!W28*100-100)*'Data base original'!W28/('Data base original'!$AC28) -> 14.82662837 | X36: =('Data base original'!X40/'Data base original'!X28*100-100)*'Data base original'!X28/('Data base original'!$AC28) -> 0.3560677553 | Y36: =('Data base original'!Y40/'Data base original'!Y28*100-100)*'Data base original'!Y28/('Data base original'!$AC28) -> 2.935716846 | Z36: =('Data base original'!Z40/'Data base original'!Z28*100-100)*'Data base original'!Z28/('Data base original'!$AC28) -> 0.212510653 | AA36: =-('Data base original'!AA40/'Data base original'!AA28*100-100)*'Data base original'!AA28/('Data base original'!$AC28) -> -2.986566852 | AB36: =-('Data base original'!AB40/'Data base original'!AB28*100-100)*'Data base original'!AB28/('Data base original'!$AC28) -> -0.01306562672 | AC36: =(('Data base original'!Y40-'Data base original'!AA40)/('Data base original'!Y28-'Data base original'!AA28)*100-100)*(('Data base original'!Y28-'Data base original'!AA28)/'Data base original'!AC28) -> -0.05085000671 | AD36: =(('Data base original'!Z40-'Data base original'!AB40)/('Data base original'!Z28-'Data base original'!AB28)*100-100)*(('Data base original'!Z28-'Data base original'!AB28)/'Data base original'!AC28) -> 0.1994450263 | AE36: =('Data base original'!AC40/'Data base original'!AC28*100-100)*'Data base original'!AC28/('Data base original'!$AC28) -> 18.62455887 | AF36: =('Data base original'!AC40/'Data base original'!AC28*100-100)*'Data base original'!AC28/('Data base original'!$AN28) -> 11.36176453 | AG36: =('Data base original'!AD40/'Data base original'!AD28*100-100)*'Data base original'!AD28/('Data base original'!$AN28) -> 2.065012648 | AH36: =('Data base original'!AE40/'Data base original'!AE28*100-100)*'Data base original'!AE28/('Data base original'!$AN28) -> 0.2313192158 | AI36: =('Data base original'!AF40/'Data base original'!AF28*100-100)*'Data base original'!AF28/('Data base original'!$AN28) -> 0.714092343 | AJ36: =('Data base original'!AG40/'Data base original'!AG28*100-100)*'Data base original'!AG28/('Data base original'!$AN28) -> -0.1873733041 | AK36: =('Data base original'!AH40/'Data base original'!AH28*100-100)*'Data base original'!AH28/('Data base original'!$AN28) -> 0.04492248756 | AL36: =('Data base original'!AI40/'Data base original'!AI28*100-100)*'Data base original'!AI28/('Data base original'!$AN28) -> 2.487510942 | AM36: =('Data base original'!AJ40/'Data base original'!AJ28*100-100)*'Data base original'!AJ28/('Data base original'!$AN28) -> 0.6507872519 | AN36: =('Data base original'!AK40/'Data base original'!AK28*100-100)*'Data base original'!AK28/('Data base original'!$AN28) -> 0.01031149171 | AO36: =-('Data base original'!AL40/'Data base original'!AL28*100-100)*'Data base original'!AL28/('Data base original'!$AN28) -> -0.9308634515 | AP36: =-('Data base original'!AM40/'Data base original'!AM28*100-100)*'Data base original'!AM28/('Data base original'!$AN28) -> -0.03090575231 | AQ36: =(('Data base original'!AJ40-'Data base original'!AL40)/('Data base original'!AJ28-'Data base original'!AL28)*100-100)*(('Data base original'!AJ28-'Data base original'!AL28)/'Data base original'!AN28) -> -0.2800761996 | AR36: =(('Data base original'!AK40-'Data base original'!AM40)/('Data base original'!AK28-'Data base original'!AM28)*100-100)*(('Data base original'!AK28-'Data base original'!AM28)/'Data base original'!AN28) -> -0.0205942606 | AS36: =('Data base original'!AN40/'Data base original'!AN28*100-100)*'Data base original'!AN28/('Data base original'!$AN28) -> 16.41657841
A37: 2008-07-01 | B37: ='Data base original'!B41/'Data base original'!B29*100-100 -> 21.58154513 | C37: ='Data base original'!C41/'Data base original'!C29*100-100 -> 12.294786 | D37: ='Data base original'!D41/'Data base original'!D29*100-100 -> 25.2057987 | E37: ='Data base original'!E41/'Data base original'!E29*100-100 -> 27.19567264 | F37: ='Data base original'!F41/'Data base original'!F29*100-100 -> 21.6759579 | G37: ='Data base original'!G41 -> 31.24031374 | K37: ='Data base original'!K41 -> 11.42875372 | N37: ='Data base original'!N41 -> 4.404424868 | Q37: ='Data base original'!Q41 -> 4.87 | R37: =('Data base original'!S41/'Data base original'!S29*100-100)*'Data base original'!S29/'Data base original'!$V29 -> 2.878181068 | S37: =('Data base original'!T41/'Data base original'!T29*100-100)*'Data base original'!T29/'Data base original'!$V29 -> 8.510920898 | T37: =('Data base original'!U41/'Data base original'!U29*100-100)*'Data base original'!U29/'Data base original'!$V29 -> -2.538941319 | U37: =('Data base original'!V41/'Data base original'!V29*100-100)*'Data base original'!V29/'Data base original'!$V29 -> 8.850160646 | V37: =('Data base original'!V41/'Data base original'!V29*100-100)*'Data base original'!V29/('Data base original'!$AC29) -> 1.877328974 | W37: =('Data base original'!W41/'Data base original'!W29*100-100)*'Data base original'!W29/('Data base original'!$AC29) -> 14.08912062 | X37: =('Data base original'!X41/'Data base original'!X29*100-100)*'Data base original'!X29/('Data base original'!$AC29) -> 0.4114989271 | Y37: =('Data base original'!Y41/'Data base original'!Y29*100-100)*'Data base original'!Y29/('Data base original'!$AC29) -> 2.32836967 | Z37: =('Data base original'!Z41/'Data base original'!Z29*100-100)*'Data base original'!Z29/('Data base original'!$AC29) -> 0.2233506555 | AA37: =-('Data base original'!AA41/'Data base original'!AA29*100-100)*'Data base original'!AA29/('Data base original'!$AC29) -> -2.59274723 | AB37: =-('Data base original'!AB41/'Data base original'!AB29*100-100)*'Data base original'!AB29/('Data base original'!$AC29) -> -0.01457290511 | AC37: =(('Data base original'!Y41-'Data base original'!AA41)/('Data base original'!Y29-'Data base original'!AA29)*100-100)*(('Data base original'!Y29-'Data base original'!AA29)/'Data base original'!AC29) -> -0.2643775603 | AD37: =(('Data base original'!Z41-'Data base original'!AB41)/('Data base original'!Z29-'Data base original'!AB29)*100-100)*(('Data base original'!Z29-'Data base original'!AB29)/'Data base original'!AC29) -> 0.2087777504 | AE37: =('Data base original'!AC41/'Data base original'!AC29*100-100)*'Data base original'!AC29/('Data base original'!$AC29) -> 16.32234872 | AF37: =('Data base original'!AC41/'Data base original'!AC29*100-100)*'Data base original'!AC29/('Data base original'!$AN29) -> 9.999390489 | AG37: =('Data base original'!AD41/'Data base original'!AD29*100-100)*'Data base original'!AD29/('Data base original'!$AN29) -> 2.709299214 | AH37: =('Data base original'!AE41/'Data base original'!AE29*100-100)*'Data base original'!AE29/('Data base original'!$AN29) -> 1.113510732 | AI37: =('Data base original'!AF41/'Data base original'!AF29*100-100)*'Data base original'!AF29/('Data base original'!$AN29) -> 0.7462972744 | AJ37: =('Data base original'!AG41/'Data base original'!AG29*100-100)*'Data base original'!AG29/('Data base original'!$AN29) -> -0.1334029301 | AK37: =('Data base original'!AH41/'Data base original'!AH29*100-100)*'Data base original'!AH29/('Data base original'!$AN29) -> 0.04351517147 | AL37: =('Data base original'!AI41/'Data base original'!AI29*100-100)*'Data base original'!AI29/('Data base original'!$AN29) -> 2.513075787 | AM37: =('Data base original'!AJ41/'Data base original'!AJ29*100-100)*'Data base original'!AJ29/('Data base original'!$AN29) -> 0.1557646958 | AN37: =('Data base original'!AK41/'Data base original'!AK29*100-100)*'Data base original'!AK29/('Data base original'!$AN29) -> -0.04600297121 | AO37: =-('Data base original'!AL41/'Data base original'!AL29*100-100)*'Data base original'!AL29/('Data base original'!$AN29) -> -0.9968684643 | AP37: =-('Data base original'!AM41/'Data base original'!AM29*100-100)*'Data base original'!AM29/('Data base original'!$AN29) -> -0.04108423573 | AQ37: =(('Data base original'!AJ41-'Data base original'!AL41)/('Data base original'!AJ29-'Data base original'!AL29)*100-100)*(('Data base original'!AJ29-'Data base original'!AL29)/'Data base original'!AN29) -> -0.8411037685 | AR37: =(('Data base original'!AK41-'Data base original'!AM41)/('Data base original'!AK29-'Data base original'!AM29)*100-100)*(('Data base original'!AK29-'Data base original'!AM29)/'Data base original'!AN29) -> -0.08708720694 | AS37: =('Data base original'!AN41/'Data base original'!AN29*100-100)*'Data base original'!AN29/('Data base original'!$AN29) -> 16.06349476
A38: 2008-08-01 | B38: ='Data base original'!B42/'Data base original'!B30*100-100 -> 20.73425617 | C38: ='Data base original'!C42/'Data base original'!C30*100-100 -> 11.16750021 | D38: ='Data base original'!D42/'Data base original'!D30*100-100 -> 24.76098549 | E38: ='Data base original'!E42/'Data base original'!E30*100-100 -> 25.12779867 | F38: ='Data base original'!F42/'Data base original'!F30*100-100 -> 20.77160171 | G38: ='Data base original'!G42 -> 32.01457109 | K38: ='Data base original'!K42 -> 11.87277186 | N38: ='Data base original'!N42 -> 4.682843065 | Q38: ='Data base original'!Q42 -> 4.82 | R38: =('Data base original'!S42/'Data base original'!S30*100-100)*'Data base original'!S30/'Data base original'!$V30 -> 2.873446656 | S38: =('Data base original'!T42/'Data base original'!T30*100-100)*'Data base original'!T30/'Data base original'!$V30 -> 5.989285695 | T38: =('Data base original'!U42/'Data base original'!U30*100-100)*'Data base original'!U30/'Data base original'!$V30 -> 1.457447007 | U38: =('Data base original'!V42/'Data base original'!V30*100-100)*'Data base original'!V30/'Data base original'!$V30 -> 10.32017936 | V38: =('Data base original'!V42/'Data base original'!V30*100-100)*'Data base original'!V30/('Data base original'!$AC30) -> 2.179612504 | W38: =('Data base original'!W42/'Data base original'!W30*100-100)*'Data base original'!W30/('Data base original'!$AC30) -> 14.34269424 | X38: =('Data base original'!X42/'Data base original'!X30*100-100)*'Data base original'!X30/('Data base original'!$AC30) -> 0.4547931036 | Y38: =('Data base original'!Y42/'Data base original'!Y30*100-100)*'Data base original'!Y30/('Data base original'!$AC30) -> 2.104523713 | Z38: =('Data base original'!Z42/'Data base original'!Z30*100-100)*'Data base original'!Z30/('Data base original'!$AC30) -> 0.2328609227 | AA38: =-('Data base original'!AA42/'Data base original'!AA30*100-100)*'Data base original'!AA30/('Data base original'!$AC30) -> -2.112095108 | AB38: =-('Data base original'!AB42/'Data base original'!AB30*100-100)*'Data base original'!AB30/('Data base original'!$AC30) -> -0.0103961971 | AC38: =(('Data base original'!Y42-'Data base original'!AA42)/('Data base original'!Y30-'Data base original'!AA30)*100-100)*(('Data base original'!Y30-'Data base original'!AA30)/'Data base original'!AC30) -> -0.007571395218 | AD38: =(('Data base original'!Z42-'Data base original'!AB42)/('Data base original'!Z30-'Data base original'!AB30)*100-100)*(('Data base original'!Z30-'Data base original'!AB30)/'Data base original'!AC30) -> 0.2224647255 | AE38: =('Data base original'!AC42/'Data base original'!AC30*100-100)*'Data base original'!AC30/('Data base original'!$AC30) -> 17.19199318 | AF38: =('Data base original'!AC42/'Data base original'!AC30*100-100)*'Data base original'!AC30/('Data base original'!$AN30) -> 10.49372111 | AG38: =('Data base original'!AD42/'Data base original'!AD30*100-100)*'Data base original'!AD30/('Data base original'!$AN30) -> 2.947261954 | AH38: =('Data base original'!AE42/'Data base original'!AE30*100-100)*'Data base original'!AE30/('Data base original'!$AN30) -> 2.139100026 | AI38: =('Data base original'!AF42/'Data base original'!AF30*100-100)*'Data base original'!AF30/('Data base original'!$AN30) -> 0.9431170415 | AJ38: =('Data base original'!AG42/'Data base original'!AG30*100-100)*'Data base original'!AG30/('Data base original'!$AN30) -> -0.1965463151 | AK38: =('Data base original'!AH42/'Data base original'!AH30*100-100)*'Data base original'!AH30/('Data base original'!$AN30) -> 0.05451061603 | AL38: =('Data base original'!AI42/'Data base original'!AI30*100-100)*'Data base original'!AI30/('Data base original'!$AN30) -> 2.774063199 | AM38: =('Data base original'!AJ42/'Data base original'!AJ30*100-100)*'Data base original'!AJ30/('Data base original'!$AN30) -> -0.1176140385 | AN38: =('Data base original'!AK42/'Data base original'!AK30*100-100)*'Data base original'!AK30/('Data base original'!$AN30) -> -0.07442387971 | AO38: =-('Data base original'!AL42/'Data base original'!AL30*100-100)*'Data base original'!AL30/('Data base original'!$AN30) -> -1.132596904 | AP38: =-('Data base original'!AM42/'Data base original'!AM30*100-100)*'Data base original'!AM30/('Data base original'!$AN30) -> -0.0465396574 | AQ38: =(('Data base original'!AJ42-'Data base original'!AL42)/('Data base original'!AJ30-'Data base original'!AL30)*100-100)*(('Data base original'!AJ30-'Data base original'!AL30)/'Data base original'!AN30) -> -1.250210942 | AR38: =(('Data base original'!AK42-'Data base original'!AM42)/('Data base original'!AK30-'Data base original'!AM30)*100-100)*(('Data base original'!AK30-'Data base original'!AM30)/'Data base original'!AN30) -> -0.1209635371 | AS38: =('Data base original'!AN42/'Data base original'!AN30*100-100)*'Data base original'!AN30/('Data base original'!$AN30) -> 17.78405315
A39: 2008-09-01 | B39: ='Data base original'!B43/'Data base original'!B31*100-100 -> 20.23680607 | C39: ='Data base original'!C43/'Data base original'!C31*100-100 -> 10.44001469 | D39: ='Data base original'!D43/'Data base original'!D31*100-100 -> 23.74625345 | E39: ='Data base original'!E43/'Data base original'!E31*100-100 -> 36.8691849 | F39: ='Data base original'!F43/'Data base original'!F31*100-100 -> 21.22982782 | G39: ='Data base original'!G43 -> 34.02436491 | K39: ='Data base original'!K43 -> 12.80472031 | N39: ='Data base original'!N43 -> 5.126385627 | Q39: ='Data base original'!Q43 -> 4.8 | R39: =('Data base original'!S43/'Data base original'!S31*100-100)*'Data base original'!S31/'Data base original'!$V31 -> 2.717544369 | S39: =('Data base original'!T43/'Data base original'!T31*100-100)*'Data base original'!T31/'Data base original'!$V31 -> 7.980095608 | T39: =('Data base original'!U43/'Data base original'!U31*100-100)*'Data base original'!U31/'Data base original'!$V31 -> -2.364652049 | U39: =('Data base original'!V43/'Data base original'!V31*100-100)*'Data base original'!V31/'Data base original'!$V31 -> 8.332987928 | V39: =('Data base original'!V43/'Data base original'!V31*100-100)*'Data base original'!V31/('Data base original'!$AC31) -> 1.801780747 | W39: =('Data base original'!W43/'Data base original'!W31*100-100)*'Data base original'!W31/('Data base original'!$AC31) -> 14.5908955 | X39: =('Data base original'!X43/'Data base original'!X31*100-100)*'Data base original'!X31/('Data base original'!$AC31) -> 0.4725575432 | Y39: =('Data base original'!Y43/'Data base original'!Y31*100-100)*'Data base original'!Y31/('Data base original'!$AC31) -> 1.076858541 | Z39: =('Data base original'!Z43/'Data base original'!Z31*100-100)*'Data base original'!Z31/('Data base original'!$AC31) -> 0.2271327931 | AA39: =-('Data base original'!AA43/'Data base original'!AA31*100-100)*'Data base original'!AA31/('Data base original'!$AC31) -> -0.2996801654 | AB39: =-('Data base original'!AB43/'Data base original'!AB31*100-100)*'Data base original'!AB31/('Data base original'!$AC31) -> -0.00645733659 | AC39: =(('Data base original'!Y43-'Data base original'!AA43)/('Data base original'!Y31-'Data base original'!AA31)*100-100)*(('Data base original'!Y31-'Data base original'!AA31)/'Data base original'!AC31) -> 0.7771783753 | AD39: =(('Data base original'!Z43-'Data base original'!AB43)/('Data base original'!Z31-'Data base original'!AB31)*100-100)*(('Data base original'!Z31-'Data base original'!AB31)/'Data base original'!AC31) -> 0.2206754565 | AE39: =('Data base original'!AC43/'Data base original'!AC31*100-100)*'Data base original'!AC31/('Data base original'!$AC31) -> 17.86308762 | AF39: =('Data base original'!AC43/'Data base original'!AC31*100-100)*'Data base original'!AC31/('Data base original'!$AN31) -> 10.89867981 | AG39: =('Data base original'!AD43/'Data base original'!AD31*100-100)*'Data base original'!AD31/('Data base original'!$AN31) -> 3.159092083 | AH39: =('Data base original'!AE43/'Data base original'!AE31*100-100)*'Data base original'!AE31/('Data base original'!$AN31) -> 3.197592462 | AI39: =('Data base original'!AF43/'Data base original'!AF31*100-100)*'Data base original'!AF31/('Data base original'!$AN31) -> 1.106332081 | AJ39: =('Data base original'!AG43/'Data base original'!AG31*100-100)*'Data base original'!AG31/('Data base original'!$AN31) -> -0.3428160098 | AK39: =('Data base original'!AH43/'Data base original'!AH31*100-100)*'Data base original'!AH31/('Data base original'!$AN31) -> 0.08422133128 | AL39: =('Data base original'!AI43/'Data base original'!AI31*100-100)*'Data base original'!AI31/('Data base original'!$AN31) -> 3.031112673 | AM39: =('Data base original'!AJ43/'Data base original'!AJ31*100-100)*'Data base original'!AJ31/('Data base original'!$AN31) -> -0.6434021795 | AN39: =('Data base original'!AK43/'Data base original'!AK31*100-100)*'Data base original'!AK31/('Data base original'!$AN31) -> -0.1393640807 | AO39: =-('Data base original'!AL43/'Data base original'!AL31*100-100)*'Data base original'!AL31/('Data base original'!$AN31) -> -0.7835093484 | AP39: =-('Data base original'!AM43/'Data base original'!AM31*100-100)*'Data base original'!AM31/('Data base original'!$AN31) -> -0.06441032061 | AQ39: =(('Data base original'!AJ43-'Data base original'!AL43)/('Data base original'!AJ31-'Data base original'!AL31)*100-100)*(('Data base original'!AJ31-'Data base original'!AL31)/'Data base original'!AN31) -> -1.426911528 | AR39: =(('Data base original'!AK43-'Data base original'!AM43)/('Data base original'!AK31-'Data base original'!AM31)*100-100)*(('Data base original'!AK31-'Data base original'!AM31)/'Data base original'!AN31) -> -0.2037744013 | AS39: =('Data base original'!AN43/'Data base original'!AN31*100-100)*'Data base original'!AN31/('Data base original'!$AN31) -> 19.5035285
A40: 2008-10-01 | B40: ='Data base original'!B44/'Data base original'!B32*100-100 -> 22.17036803 | C40: ='Data base original'!C44/'Data base original'!C32*100-100 -> 9.148232845 | D40: ='Data base original'!D44/'Data base original'!D32*100-100 -> 23.13558143 | E40: ='Data base original'!E44/'Data base original'!E32*100-100 -> 61.59700316 | F40: ='Data base original'!F44/'Data base original'!F32*100-100 -> 24.14709582 | G40: ='Data base original'!G44 -> 35.7608978 | K40: ='Data base original'!K44 -> 15.14850576 | N40: ='Data base original'!N44 -> 8.027125743 | Q40: ='Data base original'!Q44 -> 5.34 | R40: =('Data base original'!S44/'Data base original'!S32*100-100)*'Data base original'!S32/'Data base original'!$V32 -> 3.122677712 | S40: =('Data base original'!T44/'Data base original'!T32*100-100)*'Data base original'!T32/'Data base original'!$V32 -> 9.388448051 | T40: =('Data base original'!U44/'Data base original'!U32*100-100)*'Data base original'!U32/'Data base original'!$V32 -> 0.8246665426 | U40: =('Data base original'!V44/'Data base original'!V32*100-100)*'Data base original'!V32/'Data base original'!$V32 -> 13.33579231 | V40: =('Data base original'!V44/'Data base original'!V32*100-100)*'Data base original'!V32/('Data base original'!$AC32) -> 2.78698778 | W40: =('Data base original'!W44/'Data base original'!W32*100-100)*'Data base original'!W32/('Data base original'!$AC32) -> 15.80565786 | X40: =('Data base original'!X44/'Data base original'!X32*100-100)*'Data base original'!X32/('Data base original'!$AC32) -> 0.4679807411 | Y40: =('Data base original'!Y44/'Data base original'!Y32*100-100)*'Data base original'!Y32/('Data base original'!$AC32) -> 1.198590973 | Z40: =('Data base original'!Z44/'Data base original'!Z32*100-100)*'Data base original'!Z32/('Data base original'!$AC32) -> 0.2082162988 | AA40: =-('Data base original'!AA44/'Data base original'!AA32*100-100)*'Data base original'!AA32/('Data base original'!$AC32) -> -0.1163983001 | AB40: =-('Data base original'!AB44/'Data base original'!AB32*100-100)*'Data base original'!AB32/('Data base original'!$AC32) -> -0.002364802346 | AC40: =(('Data base original'!Y44-'Data base original'!AA44)/('Data base original'!Y32-'Data base original'!AA32)*100-100)*(('Data base original'!Y32-'Data base original'!AA32)/'Data base original'!AC32) -> 1.082192673 | AD40: =(('Data base original'!Z44-'Data base original'!AB44)/('Data base original'!Z32-'Data base original'!AB32)*100-100)*(('Data base original'!Z32-'Data base original'!AB32)/'Data base original'!AC32) -> 0.2058514965 | AE40: =('Data base original'!AC44/'Data base original'!AC32*100-100)*'Data base original'!AC32/('Data base original'!$AC32) -> 20.34867055 | AF40: =('Data base original'!AC44/'Data base original'!AC32*100-100)*'Data base original'!AC32/('Data base original'!$AN32) -> 12.4072349 | AG40: =('Data base original'!AD44/'Data base original'!AD32*100-100)*'Data base original'!AD32/('Data base original'!$AN32) -> 3.411857696 | AH40: =('Data base original'!AE44/'Data base original'!AE32*100-100)*'Data base original'!AE32/('Data base original'!$AN32) -> 3.113191209 | AI40: =('Data base original'!AF44/'Data base original'!AF32*100-100)*'Data base original'!AF32/('Data base original'!$AN32) -> 1.321635946 | AJ40: =('Data base original'!AG44/'Data base original'!AG32*100-100)*'Data base original'!AG32/('Data base original'!$AN32) -> -0.293051413 | AK40: =('Data base original'!AH44/'Data base original'!AH32*100-100)*'Data base original'!AH32/('Data base original'!$AN32) -> 0.09931055832 | AL40: =('Data base original'!AI44/'Data base original'!AI32*100-100)*'Data base original'!AI32/('Data base original'!$AN32) -> 3.004452872 | AM40: =('Data base original'!AJ44/'Data base original'!AJ32*100-100)*'Data base original'!AJ32/('Data base original'!$AN32) -> -1.883892037 | AN40: =('Data base original'!AK44/'Data base original'!AK32*100-100)*'Data base original'!AK32/('Data base original'!$AN32) -> -0.2855785118 | AO40: =-('Data base original'!AL44/'Data base original'!AL32*100-100)*'Data base original'!AL32/('Data base original'!$AN32) -> -0.2330325093 | AP40: =-('Data base original'!AM44/'Data base original'!AM32*100-100)*'Data base original'!AM32/('Data base original'!$AN32) -> -0.05282329013 | AQ40: =(('Data base original'!AJ44-'Data base original'!AL44)/('Data base original'!AJ32-'Data base original'!AL32)*100-100)*(('Data base original'!AJ32-'Data base original'!AL32)/'Data base original'!AN32) -> -2.116924547 | AR40: =(('Data base original'!AK44-'Data base original'!AM44)/('Data base original'!AK32-'Data base original'!AM32)*100-100)*(('Data base original'!AK32-'Data base original'!AM32)/'Data base original'!AN32) -> -0.338401802 | AS40: =('Data base original'!AN44/'Data base original'!AN32*100-100)*'Data base original'!AN32/('Data base original'!$AN32) -> 20.60930542
A41: 2008-11-01 | B41: ='Data base original'!B45/'Data base original'!B33*100-100 -> 19.53722489 | C41: ='Data base original'!C45/'Data base original'!C33*100-100 -> 8.077160323 | D41: ='Data base original'!D45/'Data base original'!D33*100-100 -> 22.72275315 | E41: ='Data base original'!E45/'Data base original'!E33*100-100 -> 51.40255611 | F41: ='Data base original'!F45/'Data base original'!F33*100-100 -> 21.62517545 | G41: ='Data base original'!G45 -> 36.07184204 | K41: ='Data base original'!K45 -> 15.12878623 | N41: ='Data base original'!N45 -> 5.927597244 | Q41: ='Data base original'!Q45 -> 5.69 | R41: =('Data base original'!S45/'Data base original'!S33*100-100)*'Data base original'!S33/'Data base original'!$V33 -> 3.029090343 | S41: =('Data base original'!T45/'Data base original'!T33*100-100)*'Data base original'!T33/'Data base original'!$V33 -> 7.287635063 | T41: =('Data base original'!U45/'Data base original'!U33*100-100)*'Data base original'!U33/'Data base original'!$V33 -> -2.87439985 | U41: =('Data base original'!V45/'Data base original'!V33*100-100)*'Data base original'!V33/'Data base original'!$V33 -> 7.442325556 | V41: =('Data base original'!V45/'Data base original'!V33*100-100)*'Data base original'!V33/('Data base original'!$AC33) -> 1.566814514 | W41: =('Data base original'!W45/'Data base original'!W33*100-100)*'Data base original'!W33/('Data base original'!$AC33) -> 15.89435622 | X41: =('Data base original'!X45/'Data base original'!X33*100-100)*'Data base original'!X33/('Data base original'!$AC33) -> 0.4582735025 | Y41: =('Data base original'!Y45/'Data base original'!Y33*100-100)*'Data base original'!Y33/('Data base original'!$AC33) -> -0.2231424379 | Z41: =('Data base original'!Z45/'Data base original'!Z33*100-100)*'Data base original'!Z33/('Data base original'!$AC33) -> 0.2210746748 | AA41: =-('Data base original'!AA45/'Data base original'!AA33*100-100)*'Data base original'!AA33/('Data base original'!$AC33) -> 1.078668433 | AB41: =-('Data base original'!AB45/'Data base original'!AB33*100-100)*'Data base original'!AB33/('Data base original'!$AC33) -> -0.005851329701 | AC41: =(('Data base original'!Y45-'Data base original'!AA45)/('Data base original'!Y33-'Data base original'!AA33)*100-100)*(('Data base original'!Y33-'Data base original'!AA33)/'Data base original'!AC33) -> 0.8555259952 | AD41: =(('Data base original'!Z45-'Data base original'!AB45)/('Data base original'!Z33-'Data base original'!AB33)*100-100)*(('Data base original'!Z33-'Data base original'!AB33)/'Data base original'!AC33) -> 0.2152233451 | AE41: =('Data base original'!AC45/'Data base original'!AC33*100-100)*'Data base original'!AC33/('Data base original'!$AC33) -> 18.99019358 | AF41: =('Data base original'!AC45/'Data base original'!AC33*100-100)*'Data base original'!AC33/('Data base original'!$AN33) -> 11.69299151 | AG41: =('Data base original'!AD45/'Data base original'!AD33*100-100)*'Data base original'!AD33/('Data base original'!$AN33) -> 3.673618808 | AH41: =('Data base original'!AE45/'Data base original'!AE33*100-100)*'Data base original'!AE33/('Data base original'!$AN33) -> 2.749735277 | AI41: =('Data base original'!AF45/'Data base original'!AF33*100-100)*'Data base original'!AF33/('Data base original'!$AN33) -> 1.438012999 | AJ41: =('Data base original'!AG45/'Data base original'!AG33*100-100)*'Data base original'!AG33/('Data base original'!$AN33) -> -0.3014100601 | AK41: =('Data base original'!AH45/'Data base original'!AH33*100-100)*'Data base original'!AH33/('Data base original'!$AN33) -> 0.1100777225 | AL41: =('Data base original'!AI45/'Data base original'!AI33*100-100)*'Data base original'!AI33/('Data base original'!$AN33) -> 2.888907001 | AM41: =('Data base original'!AJ45/'Data base original'!AJ33*100-100)*'Data base original'!AJ33/('Data base original'!$AN33) -> -2.666232243 | AN41: =('Data base original'!AK45/'Data base original'!AK33*100-100)*'Data base original'!AK33/('Data base original'!$AN33) -> -0.3493040957 | AO41: =-('Data base original'!AL45/'Data base original'!AL33*100-100)*'Data base original'!AL33/('Data base original'!$AN33) -> 0.003426807406 | AP41: =-('Data base original'!AM45/'Data base original'!AM33*100-100)*'Data base original'!AM33/('Data base original'!$AN33) -> -0.01747265436 | AQ41: =(('Data base original'!AJ45-'Data base original'!AL45)/('Data base original'!AJ33-'Data base original'!AL33)*100-100)*(('Data base original'!AJ33-'Data base original'!AL33)/'Data base original'!AN33) -> -2.662805436 | AR41: =(('Data base original'!AK45-'Data base original'!AM45)/('Data base original'!AK33-'Data base original'!AM33)*100-100)*(('Data base original'!AK33-'Data base original'!AM33)/'Data base original'!AN33) -> -0.36677675 | AS41: =('Data base original'!AN45/'Data base original'!AN33*100-100)*'Data base original'!AN33/('Data base original'!$AN33) -> 19.22235107
A42: 2008-12-01 | B42: ='Data base original'!B46/'Data base original'!B34*100-100 -> 15.25357333 | C42: ='Data base original'!C46/'Data base original'!C34*100-100 -> 6.764548534 | D42: ='Data base original'!D46/'Data base original'!D34*100-100 -> 21.1695724 | E42: ='Data base original'!E46/'Data base original'!E34*100-100 -> 44.87859877 | F42: ='Data base original'!F46/'Data base original'!F34*100-100 -> 17.98661627 | G42: ='Data base original'!G46 -> 36.85158168 | K42: ='Data base original'!K46 -> 14.91091061 | N42: ='Data base original'!N46 -> 5.831500249 | Q42: ='Data base original'!Q46 -> 5.77 | R42: =('Data base original'!S46/'Data base original'!S34*100-100)*'Data base original'!S34/'Data base original'!$V34 -> 2.709810402 | S42: =('Data base original'!T46/'Data base original'!T34*100-100)*'Data base original'!T34/'Data base original'!$V34 -> 4.617272104 | T42: =('Data base original'!U46/'Data base original'!U34*100-100)*'Data base original'!U34/'Data base original'!$V34 -> -0.6336040182 | U42: =('Data base original'!V46/'Data base original'!V34*100-100)*'Data base original'!V34/'Data base original'!$V34 -> 6.693478488 | V42: =('Data base original'!V46/'Data base original'!V34*100-100)*'Data base original'!V34/('Data base original'!$AC34) -> 1.438983494 | W42: =('Data base original'!W46/'Data base original'!W34*100-100)*'Data base original'!W34/('Data base original'!$AC34) -> 14.15346083 | X42: =('Data base original'!X46/'Data base original'!X34*100-100)*'Data base original'!X34/('Data base original'!$AC34) -> 0.4394370867 | Y42: =('Data base original'!Y46/'Data base original'!Y34*100-100)*'Data base original'!Y34/('Data base original'!$AC34) -> 0.711469569 | Z42: =('Data base original'!Z46/'Data base original'!Z34*100-100)*'Data base original'!Z34/('Data base original'!$AC34) -> 0.2572402651 | AA42: =-('Data base original'!AA46/'Data base original'!AA34*100-100)*'Data base original'!AA34/('Data base original'!$AC34) -> 0.0690161985 | AB42: =-('Data base original'!AB46/'Data base original'!AB34*100-100)*'Data base original'!AB34/('Data base original'!$AC34) -> -0.011969599 | AC42: =(('Data base original'!Y46-'Data base original'!AA46)/('Data base original'!Y34-'Data base original'!AA34)*100-100)*(('Data base original'!Y34-'Data base original'!AA34)/'Data base original'!AC34) -> 0.7804857675 | AD42: =(('Data base original'!Z46-'Data base original'!AB46)/('Data base original'!Z34-'Data base original'!AB34)*100-100)*(('Data base original'!Z34-'Data base original'!AB34)/'Data base original'!AC34) -> 0.2452706661 | AE42: =('Data base original'!AC46/'Data base original'!AC34*100-100)*'Data base original'!AC34/('Data base original'!$AC34) -> 17.05763784 | AF42: =('Data base original'!AC46/'Data base original'!AC34*100-100)*'Data base original'!AC34/('Data base original'!$AN34) -> 10.69113595 | AG42: =('Data base original'!AD46/'Data base original'!AD34*100-100)*'Data base original'!AD34/('Data base original'!$AN34) -> 3.35681726 | AH42: =('Data base original'!AE46/'Data base original'!AE34*100-100)*'Data base original'!AE34/('Data base original'!$AN34) -> 2.990077516 | AI42: =('Data base original'!AF46/'Data base original'!AF34*100-100)*'Data base original'!AF34/('Data base original'!$AN34) -> 1.341005671 | AJ42: =('Data base original'!AG46/'Data base original'!AG34*100-100)*'Data base original'!AG34/('Data base original'!$AN34) -> -0.4275947855 | AK42: =('Data base original'!AH46/'Data base original'!AH34*100-100)*'Data base original'!AH34/('Data base original'!$AN34) -> 0.1514658689 | AL42: =('Data base original'!AI46/'Data base original'!AI34*100-100)*'Data base original'!AI34/('Data base original'!$AN34) -> 2.936112729 | AM42: =('Data base original'!AJ46/'Data base original'!AJ34*100-100)*'Data base original'!AJ34/('Data base original'!$AN34) -> -2.664280245 | AN42: =('Data base original'!AK46/'Data base original'!AK34*100-100)*'Data base original'!AK34/('Data base original'!$AN34) -> -0.3280851547 | AO42: =-('Data base original'!AL46/'Data base original'!AL34*100-100)*'Data base original'!AL34/('Data base original'!$AN34) -> 0.08574242478 | AP42: =-('Data base original'!AM46/'Data base original'!AM34*100-100)*'Data base original'!AM34/('Data base original'!$AN34) -> -0.0002926362621 | AQ42: =(('Data base original'!AJ46-'Data base original'!AL46)/('Data base original'!AJ34-'Data base original'!AL34)*100-100)*(('Data base original'!AJ34-'Data base original'!AL34)/'Data base original'!AN34) -> -2.57853782 | AR42: =(('Data base original'!AK46-'Data base original'!AM46)/('Data base original'!AK34-'Data base original'!AM34)*100-100)*(('Data base original'!AK34-'Data base original'!AM34)/'Data base original'!AN34) -> -0.328377791 | AS42: =('Data base original'!AN46/'Data base original'!AN34*100-100)*'Data base original'!AN34/('Data base original'!$AN34) -> 18.1321046
A43: 2009-01-01 | B43: ='Data base original'!B47/'Data base original'!B35*100-100 -> 13.92605067 | C43: ='Data base original'!C47/'Data base original'!C35*100-100 -> 5.380483709 | D43: ='Data base original'!D47/'Data base original'!D35*100-100 -> 18.63429965 | E43: ='Data base original'!E47/'Data base original'!E35*100-100 -> 46.9582296 | F43: ='Data base original'!F47/'Data base original'!F35*100-100 -> 16.53815593 | G43: ='Data base original'!G47 -> 36.33417145 | K43: ='Data base original'!K47 -> 13.51124586 | N43: ='Data base original'!N47 -> 5.323566282 | Q43: ='Data base original'!Q47 -> 5.92 | R43: =('Data base original'!S47/'Data base original'!S35*100-100)*'Data base original'!S35/'Data base original'!$V35 -> 2.497035505 | S43: =('Data base original'!T47/'Data base original'!T35*100-100)*'Data base original'!T35/'Data base original'!$V35 -> 3.508599975 | T43: =('Data base original'!U47/'Data base original'!U35*100-100)*'Data base original'!U35/'Data base original'!$V35 -> -0.6283851589 | U43: =('Data base original'!V47/'Data base original'!V35*100-100)*'Data base original'!V35/'Data base original'!$V35 -> 5.377250321 | V43: =('Data base original'!V47/'Data base original'!V35*100-100)*'Data base original'!V35/('Data base original'!$AC35) -> 1.144756636 | W43: =('Data base original'!W47/'Data base original'!W35*100-100)*'Data base original'!W35/('Data base original'!$AC35) -> 12.57004124 | X43: =('Data base original'!X47/'Data base original'!X35*100-100)*'Data base original'!X35/('Data base original'!$AC35) -> 0.4007795695 | Y43: =('Data base original'!Y47/'Data base original'!Y35*100-100)*'Data base original'!Y35/('Data base original'!$AC35) -> 4.361424727 | Z43: =('Data base original'!Z47/'Data base original'!Z35*100-100)*'Data base original'!Z35/('Data base original'!$AC35) -> 0.2493136832 | AA43: =-('Data base original'!AA47/'Data base original'!AA35*100-100)*'Data base original'!AA35/('Data base original'!$AC35) -> -3.416119037 | AB43: =-('Data base original'!AB47/'Data base original'!AB35*100-100)*'Data base original'!AB35/('Data base original'!$AC35) -> -0.01335236463 | AC43: =(('Data base original'!Y47-'Data base original'!AA47)/('Data base original'!Y35-'Data base original'!AA35)*100-100)*(('Data base original'!Y35-'Data base original'!AA35)/'Data base original'!AC35) -> 0.9453056893 | AD43: =(('Data base original'!Z47-'Data base original'!AB47)/('Data base original'!Z35-'Data base original'!AB35)*100-100)*(('Data base original'!Z35-'Data base original'!AB35)/'Data base original'!AC35) -> 0.2359613186 | AE43: =('Data base original'!AC47/'Data base original'!AC35*100-100)*'Data base original'!AC35/('Data base original'!$AC35) -> 15.29684445 | AF43: =('Data base original'!AC47/'Data base original'!AC35*100-100)*'Data base original'!AC35/('Data base original'!$AN35) -> 9.665876274 | AG43: =('Data base original'!AD47/'Data base original'!AD35*100-100)*'Data base original'!AD35/('Data base original'!$AN35) -> 3.084450222 | AH43: =('Data base original'!AE47/'Data base original'!AE35*100-100)*'Data base original'!AE35/('Data base original'!$AN35) -> 2.516785878 | AI43: =('Data base original'!AF47/'Data base original'!AF35*100-100)*'Data base original'!AF35/('Data base original'!$AN35) -> 1.256349558 | AJ43: =('Data base original'!AG47/'Data base original'!AG35*100-100)*'Data base original'!AG35/('Data base original'!$AN35) -> -0.6077409721 | AK43: =('Data base original'!AH47/'Data base original'!AH35*100-100)*'Data base original'!AH35/('Data base original'!$AN35) -> 0.1736214447 | AL43: =('Data base original'!AI47/'Data base original'!AI35*100-100)*'Data base original'!AI35/('Data base original'!$AN35) -> 3.255435047 | AM43: =('Data base original'!AJ47/'Data base original'!AJ35*100-100)*'Data base original'!AJ35/('Data base original'!$AN35) -> -2.016619013 | AN43: =('Data base original'!AK47/'Data base original'!AK35*100-100)*'Data base original'!AK35/('Data base original'!$AN35) -> -0.2806682277 | AO43: =-('Data base original'!AL47/'Data base original'!AL35*100-100)*'Data base original'!AL35/('Data base original'!$AN35) -> -0.205129057 | AP43: =-('Data base original'!AM47/'Data base original'!AM35*100-100)*'Data base original'!AM35/('Data base original'!$AN35) -> 0.01951098999 | AQ43: =(('Data base original'!AJ47-'Data base original'!AL47)/('Data base original'!AJ35-'Data base original'!AL35)*100-100)*(('Data base original'!AJ35-'Data base original'!AL35)/'Data base original'!AN35) -> -2.22174807 | AR43: =(('Data base original'!AK47-'Data base original'!AM47)/('Data base original'!AK35-'Data base original'!AM35)*100-100)*(('Data base original'!AK35-'Data base original'!AM35)/'Data base original'!AN35) -> -0.2611572377 | AS43: =('Data base original'!AN47/'Data base original'!AN35*100-100)*'Data base original'!AN35/('Data base original'!$AN35) -> 16.86187214
A44: 2009-02-01 | B44: ='Data base original'!B48/'Data base original'!B36*100-100 -> 11.42682459 | C44: ='Data base original'!C48/'Data base original'!C36*100-100 -> 3.850262605 | D44: ='Data base original'!D48/'Data base original'!D36*100-100 -> 16.59682269 | E44: ='Data base original'!E48/'Data base original'!E36*100-100 -> 36.02129932 | F44: ='Data base original'!F48/'Data base original'!F36*100-100 -> 13.60115863 | G44: ='Data base original'!G48 -> 36.18977679 | K44: ='Data base original'!K48 -> 12.21579471 | N44: ='Data base original'!N48 -> 5.117256562 | Q44: ='Data base original'!Q48 -> 5.53 | R44: =('Data base original'!S48/'Data base original'!S36*100-100)*'Data base original'!S36/'Data base original'!$V36 -> 2.138468809 | S44: =('Data base original'!T48/'Data base original'!T36*100-100)*'Data base original'!T36/'Data base original'!$V36 -> 4.472883684 | T44: =('Data base original'!U48/'Data base original'!U36*100-100)*'Data base original'!U36/'Data base original'!$V36 -> -2.885769632 | U44: =('Data base original'!V48/'Data base original'!V36*100-100)*'Data base original'!V36/'Data base original'!$V36 -> 3.725582861 | V44: =('Data base original'!V48/'Data base original'!V36*100-100)*'Data base original'!V36/('Data base original'!$AC36) -> 0.7809581758 | W44: =('Data base original'!W48/'Data base original'!W36*100-100)*'Data base original'!W36/('Data base original'!$AC36) -> 10.76314329 | X44: =('Data base original'!X48/'Data base original'!X36*100-100)*'Data base original'!X36/('Data base original'!$AC36) -> 0.3436298527 | Y44: =('Data base original'!Y48/'Data base original'!Y36*100-100)*'Data base original'!Y36/('Data base original'!$AC36) -> 4.990785044 | Z44: =('Data base original'!Z48/'Data base original'!Z36*100-100)*'Data base original'!Z36/('Data base original'!$AC36) -> 0.2383738618 | AA44: =-('Data base original'!AA48/'Data base original'!AA36*100-100)*'Data base original'!AA36/('Data base original'!$AC36) -> -4.151213729 | AB44: =-('Data base original'!AB48/'Data base original'!AB36*100-100)*'Data base original'!AB36/('Data base original'!$AC36) -> -0.01878097093 | AC44: =(('Data base original'!Y48-'Data base original'!AA48)/('Data base original'!Y36-'Data base original'!AA36)*100-100)*(('Data base original'!Y36-'Data base original'!AA36)/'Data base original'!AC36) -> 0.8395713159 | AD44: =(('Data base original'!Z48-'Data base original'!AB48)/('Data base original'!Z36-'Data base original'!AB36)*100-100)*(('Data base original'!Z36-'Data base original'!AB36)/'Data base original'!AC36) -> 0.2195928909 | AE44: =('Data base original'!AC48/'Data base original'!AC36*100-100)*'Data base original'!AC36/('Data base original'!$AC36) -> 12.94689553 | AF44: =('Data base original'!AC48/'Data base original'!AC36*100-100)*'Data base original'!AC36/('Data base original'!$AN36) -> 8.241910206 | AG44: =('Data base original'!AD48/'Data base original'!AD36*100-100)*'Data base original'!AD36/('Data base original'!$AN36) -> 3.016288893 | AH44: =('Data base original'!AE48/'Data base original'!AE36*100-100)*'Data base original'!AE36/('Data base original'!$AN36) -> 2.297361599 | AI44: =('Data base original'!AF48/'Data base original'!AF36*100-100)*'Data base original'!AF36/('Data base original'!$AN36) -> 1.502363598 | AJ44: =('Data base original'!AG48/'Data base original'!AG36*100-100)*'Data base original'!AG36/('Data base original'!$AN36) -> -0.4844087964 | AK44: =('Data base original'!AH48/'Data base original'!AH36*100-100)*'Data base original'!AH36/('Data base original'!$AN36) -> 0.2091615958 | AL44: =('Data base original'!AI48/'Data base original'!AI36*100-100)*'Data base original'!AI36/('Data base original'!$AN36) -> 3.465355686 | AM44: =('Data base original'!AJ48/'Data base original'!AJ36*100-100)*'Data base original'!AJ36/('Data base original'!$AN36) -> -1.236181819 | AN44: =('Data base original'!AK48/'Data base original'!AK36*100-100)*'Data base original'!AK36/('Data base original'!$AN36) -> -0.2525179568 | AO44: =-('Data base original'!AL48/'Data base original'!AL36*100-100)*'Data base original'!AL36/('Data base original'!$AN36) -> -0.5771651323 | AP44: =-('Data base original'!AM48/'Data base original'!AM36*100-100)*'Data base original'!AM36/('Data base original'!$AN36) -> 0.0131382912 | AQ44: =(('Data base original'!AJ48-'Data base original'!AL48)/('Data base original'!AJ36-'Data base original'!AL36)*100-100)*(('Data base original'!AJ36-'Data base original'!AL36)/'Data base original'!AN36) -> -1.813346951 | AR44: =(('Data base original'!AK48-'Data base original'!AM48)/('Data base original'!AK36-'Data base original'!AM36)*100-100)*(('Data base original'!AK36-'Data base original'!AM36)/'Data base original'!AN36) -> -0.2393796656 | AS44: =('Data base original'!AN48/'Data base original'!AN36*100-100)*'Data base original'!AN36/('Data base original'!$AN36) -> 16.19530616
A45: 2009-03-01 | B45: ='Data base original'!B49/'Data base original'!B37*100-100 -> 9.11651237 | C45: ='Data base original'!C49/'Data base original'!C37*100-100 -> 2.820031559 | D45: ='Data base original'!D49/'Data base original'!D37*100-100 -> 15.1063322 | E45: ='Data base original'!E49/'Data base original'!E37*100-100 -> 30.72665462 | F45: ='Data base original'!F49/'Data base original'!F37*100-100 -> 11.36667338 | G45: ='Data base original'!G49 -> 32.23109006 | K45: ='Data base original'!K49 -> 10.05881629 | N45: ='Data base original'!N49 -> 4.683590798 | Q45: ='Data base original'!Q49 -> 4.9 | R45: =('Data base original'!S49/'Data base original'!S37*100-100)*'Data base original'!S37/'Data base original'!$V37 -> 2.282784086 | S45: =('Data base original'!T49/'Data base original'!T37*100-100)*'Data base original'!T37/'Data base original'!$V37 -> 6.001951652 | T45: =('Data base original'!U49/'Data base original'!U37*100-100)*'Data base original'!U37/'Data base original'!$V37 -> -2.931181385 | U45: =('Data base original'!V49/'Data base original'!V37*100-100)*'Data base original'!V37/'Data base original'!$V37 -> 5.353554352 | V45: =('Data base original'!V49/'Data base original'!V37*100-100)*'Data base original'!V37/('Data base original'!$AC37) -> 1.104147847 | W45: =('Data base original'!W49/'Data base original'!W37*100-100)*'Data base original'!W37/('Data base original'!$AC37) -> 7.94736751 | X45: =('Data base original'!X49/'Data base original'!X37*100-100)*'Data base original'!X37/('Data base original'!$AC37) -> 0.3131957836 | Y45: =('Data base original'!Y49/'Data base original'!Y37*100-100)*'Data base original'!Y37/('Data base original'!$AC37) -> 4.386986834 | Z45: =('Data base original'!Z49/'Data base original'!Z37*100-100)*'Data base original'!Z37/('Data base original'!$AC37) -> 0.2294863499 | AA45: =-('Data base original'!AA49/'Data base original'!AA37*100-100)*'Data base original'!AA37/('Data base original'!$AC37) -> -3.751815984 | AB45: =-('Data base original'!AB49/'Data base original'!AB37*100-100)*'Data base original'!AB37/('Data base original'!$AC37) -> -0.0226627979 | AC45: =(('Data base original'!Y49-'Data base original'!AA49)/('Data base original'!Y37-'Data base original'!AA37)*100-100)*(('Data base original'!Y37-'Data base original'!AA37)/'Data base original'!AC37) -> 0.6351708493 | AD45: =(('Data base original'!Z49-'Data base original'!AB49)/('Data base original'!Z37-'Data base original'!AB37)*100-100)*(('Data base original'!Z37-'Data base original'!AB37)/'Data base original'!AC37) -> 0.206823552 | AE45: =('Data base original'!AC49/'Data base original'!AC37*100-100)*'Data base original'!AC37/('Data base original'!$AC37) -> 10.20670554 | AF45: =('Data base original'!AC49/'Data base original'!AC37*100-100)*'Data base original'!AC37/('Data base original'!$AN37) -> 6.529813588 | AG45: =('Data base original'!AD49/'Data base original'!AD37*100-100)*'Data base original'!AD37/('Data base original'!$AN37) -> 3.025393029 | AH45: =('Data base original'!AE49/'Data base original'!AE37*100-100)*'Data base original'!AE37/('Data base original'!$AN37) -> 2.984901196 | AI45: =('Data base original'!AF49/'Data base original'!AF37*100-100)*'Data base original'!AF37/('Data base original'!$AN37) -> 1.520664263 | AJ45: =('Data base original'!AG49/'Data base original'!AG37*100-100)*'Data base original'!AG37/('Data base original'!$AN37) -> -0.6286683642 | AK45: =('Data base original'!AH49/'Data base original'!AH37*100-100)*'Data base original'!AH37/('Data base original'!$AN37) -> 0.2528780289 | AL45: =('Data base original'!AI49/'Data base original'!AI37*100-100)*'Data base original'!AI37/('Data base original'!$AN37) -> 3.497057576 | AM45: =('Data base original'!AJ49/'Data base original'!AJ37*100-100)*'Data base original'!AJ37/('Data base original'!$AN37) -> -1.09380197 | AN45: =('Data base original'!AK49/'Data base original'!AK37*100-100)*'Data base original'!AK37/('Data base original'!$AN37) -> -0.2524861724 | AO45: =-('Data base original'!AL49/'Data base original'!AL37*100-100)*'Data base original'!AL37/('Data base original'!$AN37) -> -0.7415230217 | AP45: =-('Data base original'!AM49/'Data base original'!AM37*100-100)*'Data base original'!AM37/('Data base original'!$AN37) -> 0.02181334237 | AQ45: =(('Data base original'!AJ49-'Data base original'!AL49)/('Data base original'!AJ37-'Data base original'!AL37)*100-100)*(('Data base original'!AJ37-'Data base original'!AL37)/'Data base original'!AN37) -> -1.835324992 | AR45: =(('Data base original'!AK49-'Data base original'!AM49)/('Data base original'!AK37-'Data base original'!AM37)*100-100)*(('Data base original'!AK37-'Data base original'!AM37)/'Data base original'!AN37) -> -0.2306728301 | AS45: =('Data base original'!AN49/'Data base original'!AN37*100-100)*'Data base original'!AN37/('Data base original'!$AN37) -> 15.1160415
A46: 2009-04-01 | B46: ='Data base original'!B50/'Data base original'!B38*100-100 -> 7.729474345 | C46: ='Data base original'!C50/'Data base original'!C38*100-100 -> 2.022545014 | D46: ='Data base original'!D50/'Data base original'!D38*100-100 -> 13.1399209 | E46: ='Data base original'!E50/'Data base original'!E38*100-100 -> 9.965763716 | F46: ='Data base original'!F50/'Data base original'!F38*100-100 -> 8.393857943 | G46: ='Data base original'!G50 -> 29.97497029 | K46: ='Data base original'!K50 -> 8.766351447 | N46: ='Data base original'!N50 -> 3.947299689 | Q46: ='Data base original'!Q50 -> 4.42 | R46: =('Data base original'!S50/'Data base original'!S38*100-100)*'Data base original'!S38/'Data base original'!$V38 -> 2.46304931 | S46: =('Data base original'!T50/'Data base original'!T38*100-100)*'Data base original'!T38/'Data base original'!$V38 -> 7.125194282 | T46: =('Data base original'!U50/'Data base original'!U38*100-100)*'Data base original'!U38/'Data base original'!$V38 -> -1.782317622 | U46: =('Data base original'!V50/'Data base original'!V38*100-100)*'Data base original'!V38/'Data base original'!$V38 -> 7.80592597 | V46: =('Data base original'!V50/'Data base original'!V38*100-100)*'Data base original'!V38/('Data base original'!$AC38) -> 1.590681499 | W46: =('Data base original'!W50/'Data base original'!W38*100-100)*'Data base original'!W38/('Data base original'!$AC38) -> 5.908428571 | X46: =('Data base original'!X50/'Data base original'!X38*100-100)*'Data base original'!X38/('Data base original'!$AC38) -> 0.3167241539 | Y46: =('Data base original'!Y50/'Data base original'!Y38*100-100)*'Data base original'!Y38/('Data base original'!$AC38) -> 5.663310302 | Z46: =('Data base original'!Z50/'Data base original'!Z38*100-100)*'Data base original'!Z38/('Data base original'!$AC38) -> 0.2132340323 | AA46: =-('Data base original'!AA50/'Data base original'!AA38*100-100)*'Data base original'!AA38/('Data base original'!$AC38) -> -5.496273614 | AB46: =-('Data base original'!AB50/'Data base original'!AB38*100-100)*'Data base original'!AB38/('Data base original'!$AC38) -> -0.01210410779 | AC46: =(('Data base original'!Y50-'Data base original'!AA50)/('Data base original'!Y38-'Data base original'!AA38)*100-100)*(('Data base original'!Y38-'Data base original'!AA38)/'Data base original'!AC38) -> 0.1670366876 | AD46: =(('Data base original'!Z50-'Data base original'!AB50)/('Data base original'!Z38-'Data base original'!AB38)*100-100)*(('Data base original'!Z38-'Data base original'!AB38)/'Data base original'!AC38) -> 0.2011299245 | AE46: =('Data base original'!AC50/'Data base original'!AC38*100-100)*'Data base original'!AC38/('Data base original'!$AC38) -> 8.184000837 | AF46: =('Data base original'!AC50/'Data base original'!AC38*100-100)*'Data base original'!AC38/('Data base original'!$AN38) -> 5.212556579 | AG46: =('Data base original'!AD50/'Data base original'!AD38*100-100)*'Data base original'!AD38/('Data base original'!$AN38) -> 2.342101268 | AH46: =('Data base original'!AE50/'Data base original'!AE38*100-100)*'Data base original'!AE38/('Data base original'!$AN38) -> 3.171756078 | AI46: =('Data base original'!AF50/'Data base original'!AF38*100-100)*'Data base original'!AF38/('Data base original'!$AN38) -> 1.431241278 | AJ46: =('Data base original'!AG50/'Data base original'!AG38*100-100)*'Data base original'!AG38/('Data base original'!$AN38) -> -0.7740189838 | AK46: =('Data base original'!AH50/'Data base original'!AH38*100-100)*'Data base original'!AH38/('Data base original'!$AN38) -> 0.2650732343 | AL46: =('Data base original'!AI50/'Data base original'!AI38*100-100)*'Data base original'!AI38/('Data base original'!$AN38) -> 3.829877797 | AM46: =('Data base original'!AJ50/'Data base original'!AJ38*100-100)*'Data base original'!AJ38/('Data base original'!$AN38) -> -1.149721425 | AN46: =('Data base original'!AK50/'Data base original'!AK38*100-100)*'Data base original'!AK38/('Data base original'!$AN38) -> -0.2298671916 | AO46: =-('Data base original'!AL50/'Data base original'!AL38*100-100)*'Data base original'!AL38/('Data base original'!$AN38) -> -0.7137575456 | AP46: =-('Data base original'!AM50/'Data base original'!AM38*100-100)*'Data base original'!AM38/('Data base original'!$AN38) -> 0.02364201411 | AQ46: =(('Data base original'!AJ50-'Data base original'!AL50)/('Data base original'!AJ38-'Data base original'!AL38)*100-100)*(('Data base original'!AJ38-'Data base original'!AL38)/'Data base original'!AN38) -> -1.863478971 | AR46: =(('Data base original'!AK50-'Data base original'!AM50)/('Data base original'!AK38-'Data base original'!AM38)*100-100)*(('Data base original'!AK38-'Data base original'!AM38)/'Data base original'!AN38) -> -0.2062251775 | AS46: =('Data base original'!AN50/'Data base original'!AN38*100-100)*'Data base original'!AN38/('Data base original'!$AN38) -> 13.4088831
A47: 2009-05-01 | B47: ='Data base original'!B51/'Data base original'!B39*100-100 -> 5.808529583 | C47: ='Data base original'!C51/'Data base original'!C39*100-100 -> 1.33634861 | D47: ='Data base original'!D51/'Data base original'!D39*100-100 -> 12.17029718 | E47: ='Data base original'!E51/'Data base original'!E39*100-100 -> -2.399493265 | F47: ='Data base original'!F51/'Data base original'!F39*100-100 -> 5.867166996 | G47: ='Data base original'!G51 -> 29.56658702 | K47: ='Data base original'!K51 -> 8.071368334 | N47: ='Data base original'!N51 -> 3.776842156 | Q47: ='Data base original'!Q51 -> 4.455645369 | R47: =('Data base original'!S51/'Data base original'!S39*100-100)*'Data base original'!S39/'Data base original'!$V39 -> 2.268538075 | S47: =('Data base original'!T51/'Data base original'!T39*100-100)*'Data base original'!T39/'Data base original'!$V39 -> 7.744178411 | T47: =('Data base original'!U51/'Data base original'!U39*100-100)*'Data base original'!U39/'Data base original'!$V39 -> -1.200650897 | U47: =('Data base original'!V51/'Data base original'!V39*100-100)*'Data base original'!V39/'Data base original'!$V39 -> 8.812065589 | V47: =('Data base original'!V51/'Data base original'!V39*100-100)*'Data base original'!V39/('Data base original'!$AC39) -> 1.826602 | W47: =('Data base original'!W51/'Data base original'!W39*100-100)*'Data base original'!W39/('Data base original'!$AC39) -> 4.820964647 | X47: =('Data base original'!X51/'Data base original'!X39*100-100)*'Data base original'!X39/('Data base original'!$AC39) -> 0.3233716363 | Y47: =('Data base original'!Y51/'Data base original'!Y39*100-100)*'Data base original'!Y39/('Data base original'!$AC39) -> 4.55585861 | Z47: =('Data base original'!Z51/'Data base original'!Z39*100-100)*'Data base original'!Z39/('Data base original'!$AC39) -> 0.1968089528 | AA47: =-('Data base original'!AA51/'Data base original'!AA39*100-100)*'Data base original'!AA39/('Data base original'!$AC39) -> -4.607200075 | AB47: =-('Data base original'!AB51/'Data base original'!AB39*100-100)*'Data base original'!AB39/('Data base original'!$AC39) -> -0.00835791306 | AC47: =(('Data base original'!Y51-'Data base original'!AA51)/('Data base original'!Y39-'Data base original'!AA39)*100-100)*(('Data base original'!Y39-'Data base original'!AA39)/'Data base original'!AC39) -> -0.05134146594 | AD47: =(('Data base original'!Z51-'Data base original'!AB51)/('Data base original'!Z39-'Data base original'!AB39)*100-100)*(('Data base original'!Z39-'Data base original'!AB39)/'Data base original'!AC39) -> 0.1884510397 | AE47: =('Data base original'!AC51/'Data base original'!AC39*100-100)*'Data base original'!AC39/('Data base original'!$AC39) -> 7.108047856 | AF47: =('Data base original'!AC51/'Data base original'!AC39*100-100)*'Data base original'!AC39/('Data base original'!$AN39) -> 4.482934405 | AG47: =('Data base original'!AD51/'Data base original'!AD39*100-100)*'Data base original'!AD39/('Data base original'!$AN39) -> 1.209867008 | AH47: =('Data base original'!AE51/'Data base original'!AE39*100-100)*'Data base original'!AE39/('Data base original'!$AN39) -> 2.750564869 | AI47: =('Data base original'!AF51/'Data base original'!AF39*100-100)*'Data base original'!AF39/('Data base original'!$AN39) -> 1.304748694 | AJ47: =('Data base original'!AG51/'Data base original'!AG39*100-100)*'Data base original'!AG39/('Data base original'!$AN39) -> -0.650366269 | AK47: =('Data base original'!AH51/'Data base original'!AH39*100-100)*'Data base original'!AH39/('Data base original'!$AN39) -> 0.2562809574 | AL47: =('Data base original'!AI51/'Data base original'!AI39*100-100)*'Data base original'!AI39/('Data base original'!$AN39) -> 3.954909662 | AM47: =('Data base original'!AJ51/'Data base original'!AJ39*100-100)*'Data base original'!AJ39/('Data base original'!$AN39) -> -1.108835582 | AN47: =('Data base original'!AK51/'Data base original'!AK39*100-100)*'Data base original'!AK39/('Data base original'!$AN39) -> -0.2147388434 | AO47: =-('Data base original'!AL51/'Data base original'!AL39*100-100)*'Data base original'!AL39/('Data base original'!$AN39) -> -0.5706706726 | AP47: =-('Data base original'!AM51/'Data base original'!AM39*100-100)*'Data base original'!AM39/('Data base original'!$AN39) -> 0.03576888975 | AQ47: =(('Data base original'!AJ51-'Data base original'!AL51)/('Data base original'!AJ39-'Data base original'!AL39)*100-100)*(('Data base original'!AJ39-'Data base original'!AL39)/'Data base original'!AN39) -> -1.679506255 | AR47: =(('Data base original'!AK51-'Data base original'!AM51)/('Data base original'!AK39-'Data base original'!AM39)*100-100)*(('Data base original'!AK39-'Data base original'!AM39)/'Data base original'!AN39) -> -0.1789699536 | AS47: =('Data base original'!AN51/'Data base original'!AN39*100-100)*'Data base original'!AN39/('Data base original'!$AN39) -> 11.45046312
A48: 2009-06-01 | B48: ='Data base original'!B52/'Data base original'!B40*100-100 -> 2.848261871 | C48: ='Data base original'!C52/'Data base original'!C40*100-100 -> 0.1622425609 | D48: ='Data base original'!D52/'Data base original'!D40*100-100 -> 10.73803343 | E48: ='Data base original'!E52/'Data base original'!E40*100-100 -> -23.01216392 | F48: ='Data base original'!F52/'Data base original'!F40*100-100 -> 1.602554879 | G48: ='Data base original'!G52 -> 28.9061915 | K48: ='Data base original'!K52 -> 7.984518349 | N48: ='Data base original'!N52 -> 3.496964596 | Q48: ='Data base original'!Q52 -> 4.61 | R48: =('Data base original'!S52/'Data base original'!S40*100-100)*'Data base original'!S40/'Data base original'!$V40 -> 2.197927886 | S48: =('Data base original'!T52/'Data base original'!T40*100-100)*'Data base original'!T40/'Data base original'!$V40 -> 8.094405101 | T48: =('Data base original'!U52/'Data base original'!U40*100-100)*'Data base original'!U40/'Data base original'!$V40 -> 0.4132723963 | U48: =('Data base original'!V52/'Data base original'!V40*100-100)*'Data base original'!V40/'Data base original'!$V40 -> 10.70560538 | V48: =('Data base original'!V52/'Data base original'!V40*100-100)*'Data base original'!V40/('Data base original'!$AC40) -> 2.229049679 | W48: =('Data base original'!W52/'Data base original'!W40*100-100)*'Data base original'!W40/('Data base original'!$AC40) -> 3.965414286 | X48: =('Data base original'!X52/'Data base original'!X40*100-100)*'Data base original'!X40/('Data base original'!$AC40) -> 0.3159408021 | Y48: =('Data base original'!Y52/'Data base original'!Y40*100-100)*'Data base original'!Y40/('Data base original'!$AC40) -> 4.043526283 | Z48: =('Data base original'!Z52/'Data base original'!Z40*100-100)*'Data base original'!Z40/('Data base original'!$AC40) -> 0.1543982061 | AA48: =-('Data base original'!AA52/'Data base original'!AA40*100-100)*'Data base original'!AA40/('Data base original'!$AC40) -> -3.583308494 | AB48: =-('Data base original'!AB52/'Data base original'!AB40*100-100)*'Data base original'!AB40/('Data base original'!$AC40) -> -0.008533576941 | AC48: =(('Data base original'!Y52-'Data base original'!AA52)/('Data base original'!Y40-'Data base original'!AA40)*100-100)*(('Data base original'!Y40-'Data base original'!AA40)/'Data base original'!AC40) -> 0.460217789 | AD48: =(('Data base original'!Z52-'Data base original'!AB52)/('Data base original'!Z40-'Data base original'!AB40)*100-100)*(('Data base original'!Z40-'Data base original'!AB40)/'Data base original'!AC40) -> 0.1458646291 | AE48: =('Data base original'!AC52/'Data base original'!AC40*100-100)*'Data base original'!AC40/('Data base original'!$AC40) -> 7.116487185 | AF48: =('Data base original'!AC52/'Data base original'!AC40*100-100)*'Data base original'!AC40/('Data base original'!$AN40) -> 4.423695657 | AG48: =('Data base original'!AD52/'Data base original'!AD40*100-100)*'Data base original'!AD40/('Data base original'!$AN40) -> 0.004194315921 | AH48: =('Data base original'!AE52/'Data base original'!AE40*100-100)*'Data base original'!AE40/('Data base original'!$AN40) -> 2.513382135 | AI48: =('Data base original'!AF52/'Data base original'!AF40*100-100)*'Data base original'!AF40/('Data base original'!$AN40) -> 1.261625557 | AJ48: =('Data base original'!AG52/'Data base original'!AG40*100-100)*'Data base original'!AG40/('Data base original'!$AN40) -> -0.7991405452 | AK48: =('Data base original'!AH52/'Data base original'!AH40*100-100)*'Data base original'!AH40/('Data base original'!$AN40) -> 0.2279734065 | AL48: =('Data base original'!AI52/'Data base original'!AI40*100-100)*'Data base original'!AI40/('Data base original'!$AN40) -> 3.733681343 | AM48: =('Data base original'!AJ52/'Data base original'!AJ40*100-100)*'Data base original'!AJ40/('Data base original'!$AN40) -> -1.013790831 | AN48: =('Data base original'!AK52/'Data base original'!AK40*100-100)*'Data base original'!AK40/('Data base original'!$AN40) -> -0.1861536096 | AO48: =-('Data base original'!AL52/'Data base original'!AL40*100-100)*'Data base original'!AL40/('Data base original'!$AN40) -> -0.4519992216 | AP48: =-('Data base original'!AM52/'Data base original'!AM40*100-100)*'Data base original'!AM40/('Data base original'!$AN40) -> 0.05181213785 | AQ48: =(('Data base original'!AJ52-'Data base original'!AL52)/('Data base original'!AJ40-'Data base original'!AL40)*100-100)*(('Data base original'!AJ40-'Data base original'!AL40)/'Data base original'!AN40) -> -1.465790052 | AR48: =(('Data base original'!AK52-'Data base original'!AM52)/('Data base original'!AK40-'Data base original'!AM40)*100-100)*(('Data base original'!AK40-'Data base original'!AM40)/'Data base original'!AN40) -> -0.1343414717 | AS48: =('Data base original'!AN52/'Data base original'!AN40*100-100)*'Data base original'!AN40/('Data base original'!$AN40) -> 9.765280345
A49: 2009-07-01 | B49: ='Data base original'!B53/'Data base original'!B41*100-100 -> 1.768445658 | C49: ='Data base original'!C53/'Data base original'!C41*100-100 -> -0.2000263149 | D49: ='Data base original'!D53/'Data base original'!D41*100-100 -> 9.231442079 | E49: ='Data base original'!E53/'Data base original'!E41*100-100 -> -19.89023915 | F49: ='Data base original'!F53/'Data base original'!F41*100-100 -> 1.082394406 | G49: ='Data base original'!G53 -> 27.90935239 | K49: ='Data base original'!K53 -> 7.240847234 | N49: ='Data base original'!N53 -> 2.713315794 | Q49: ='Data base original'!Q53 -> 4.62 | R49: =('Data base original'!S53/'Data base original'!S41*100-100)*'Data base original'!S41/'Data base original'!$V41 -> 2.337641454 | S49: =('Data base original'!T53/'Data base original'!T41*100-100)*'Data base original'!T41/'Data base original'!$V41 -> 9.818222749 | T49: =('Data base original'!U53/'Data base original'!U41*100-100)*'Data base original'!U41/'Data base original'!$V41 -> 4.445812144 | U49: =('Data base original'!V53/'Data base original'!V41*100-100)*'Data base original'!V41/'Data base original'!$V41 -> 16.60167635 | V49: =('Data base original'!V53/'Data base original'!V41*100-100)*'Data base original'!V41/('Data base original'!$AC41) -> 3.295392005 | W49: =('Data base original'!W53/'Data base original'!W41*100-100)*'Data base original'!W41/('Data base original'!$AC41) -> 3.763676206 | X49: =('Data base original'!X53/'Data base original'!X41*100-100)*'Data base original'!X41/('Data base original'!$AC41) -> 0.2826787621 | Y49: =('Data base original'!Y53/'Data base original'!Y41*100-100)*'Data base original'!Y41/('Data base original'!$AC41) -> 7.422462033 | Z49: =('Data base original'!Z53/'Data base original'!Z41*100-100)*'Data base original'!Z41/('Data base original'!$AC41) -> 0.1194951154 | AA49: =-('Data base original'!AA53/'Data base original'!AA41*100-100)*'Data base original'!AA41/('Data base original'!$AC41) -> -6.530138743 | AB49: =-('Data base original'!AB53/'Data base original'!AB41*100-100)*'Data base original'!AB41/('Data base original'!$AC41) -> -0.0009974550533 | AC49: =(('Data base original'!Y53-'Data base original'!AA53)/('Data base original'!Y41-'Data base original'!AA41)*100-100)*(('Data base original'!Y41-'Data base original'!AA41)/'Data base original'!AC41) -> 0.8923232907 | AD49: =(('Data base original'!Z53-'Data base original'!AB53)/('Data base original'!Z41-'Data base original'!AB41)*100-100)*(('Data base original'!Z41-'Data base original'!AB41)/'Data base original'!AC41) -> 0.1184976603 | AE49: =('Data base original'!AC53/'Data base original'!AC41*100-100)*'Data base original'!AC41/('Data base original'!$AC41) -> 8.352567924 | AF49: =('Data base original'!AC53/'Data base original'!AC41*100-100)*'Data base original'!AC41/('Data base original'!$AN41) -> 5.128358909 | AG49: =('Data base original'!AD53/'Data base original'!AD41*100-100)*'Data base original'!AD41/('Data base original'!$AN41) -> -0.8456341418 | AH49: =('Data base original'!AE53/'Data base original'!AE41*100-100)*'Data base original'!AE41/('Data base original'!$AN41) -> 1.253140629 | AI49: =('Data base original'!AF53/'Data base original'!AF41*100-100)*'Data base original'!AF41/('Data base original'!$AN41) -> 1.338267473 | AJ49: =('Data base original'!AG53/'Data base original'!AG41*100-100)*'Data base original'!AG41/('Data base original'!$AN41) -> -0.8125632817 | AK49: =('Data base original'!AH53/'Data base original'!AH41*100-100)*'Data base original'!AH41/('Data base original'!$AN41) -> 0.2316185055 | AL49: =('Data base original'!AI53/'Data base original'!AI41*100-100)*'Data base original'!AI41/('Data base original'!$AN41) -> 3.525966113 | AM49: =('Data base original'!AJ53/'Data base original'!AJ41*100-100)*'Data base original'!AJ41/('Data base original'!$AN41) -> -0.6576201778 | AN49: =('Data base original'!AK53/'Data base original'!AK41*100-100)*'Data base original'!AK41/('Data base original'!$AN41) -> -0.1359579805 | AO49: =-('Data base original'!AL53/'Data base original'!AL41*100-100)*'Data base original'!AL41/('Data base original'!$AN41) -> -0.4953279939 | AP49: =-('Data base original'!AM53/'Data base original'!AM41*100-100)*'Data base original'!AM41/('Data base original'!$AN41) -> 0.06969377559 | AQ49: =(('Data base original'!AJ53-'Data base original'!AL53)/('Data base original'!AJ41-'Data base original'!AL41)*100-100)*(('Data base original'!AJ41-'Data base original'!AL41)/'Data base original'!AN41) -> -1.152948172 | AR49: =(('Data base original'!AK53-'Data base original'!AM53)/('Data base original'!AK41-'Data base original'!AM41)*100-100)*(('Data base original'!AK41-'Data base original'!AM41)/'Data base original'!AN41) -> -0.06626420491 | AS49: =('Data base original'!AN53/'Data base original'!AN41*100-100)*'Data base original'!AN41/('Data base original'!$AN41) -> 8.59994183
A50: 2009-08-01 | B50: ='Data base original'!B54/'Data base original'!B42*100-100 -> 1.47751355 | C50: ='Data base original'!C54/'Data base original'!C42*100-100 -> -0.8235564826 | D50: ='Data base original'!D54/'Data base original'!D42*100-100 -> 7.815388836 | E50: ='Data base original'!E54/'Data base original'!E42*100-100 -> -19.64061604 | F50: ='Data base original'!F54/'Data base original'!F42*100-100 -> 0.592747986 | G50: ='Data base original'!G54 -> 24.57374351 | K50: ='Data base original'!K54 -> 5.987396699 | N50: ='Data base original'!N54 -> 3.394973906 | Q50: ='Data base original'!Q54 -> 4.56 | R50: =('Data base original'!S54/'Data base original'!S42*100-100)*'Data base original'!S42/'Data base original'!$V42 -> 2.720912668 | S50: =('Data base original'!T54/'Data base original'!T42*100-100)*'Data base original'!T42/'Data base original'!$V42 -> 12.78365316 | T50: =('Data base original'!U54/'Data base original'!U42*100-100)*'Data base original'!U42/'Data base original'!$V42 -> 1.2442516 | U50: =('Data base original'!V54/'Data base original'!V42*100-100)*'Data base original'!V42/'Data base original'!$V42 -> 16.74881743 | V50: =('Data base original'!V54/'Data base original'!V42*100-100)*'Data base original'!V42/('Data base original'!$AC42) -> 3.329915497 | W50: =('Data base original'!W54/'Data base original'!W42*100-100)*'Data base original'!W42/('Data base original'!$AC42) -> 3.161008329 | X50: =('Data base original'!X54/'Data base original'!X42*100-100)*'Data base original'!X42/('Data base original'!$AC42) -> 0.2552658611 | Y50: =('Data base original'!Y54/'Data base original'!Y42*100-100)*'Data base original'!Y42/('Data base original'!$AC42) -> 7.745698775 | Z50: =('Data base original'!Z54/'Data base original'!Z42*100-100)*'Data base original'!Z42/('Data base original'!$AC42) -> 0.08732779458 | AA50: =-('Data base original'!AA54/'Data base original'!AA42*100-100)*'Data base original'!AA42/('Data base original'!$AC42) -> -7.083232496 | AB50: =-('Data base original'!AB54/'Data base original'!AB42*100-100)*'Data base original'!AB42/('Data base original'!$AC42) -> 0.005532077485 | AC50: =(('Data base original'!Y54-'Data base original'!AA54)/('Data base original'!Y42-'Data base original'!AA42)*100-100)*(('Data base original'!Y42-'Data base original'!AA42)/'Data base original'!AC42) -> 0.6624662788 | AD50: =(('Data base original'!Z54-'Data base original'!AB54)/('Data base original'!Z42-'Data base original'!AB42)*100-100)*(('Data base original'!Z42-'Data base original'!AB42)/'Data base original'!AC42) -> 0.09285987206 | AE50: =('Data base original'!AC54/'Data base original'!AC42*100-100)*'Data base original'!AC42/('Data base original'!$AC42) -> 7.501515839 | AF50: =('Data base original'!AC54/'Data base original'!AC42*100-100)*'Data base original'!AC42/('Data base original'!$AN42) -> 4.5557907 | AG50: =('Data base original'!AD54/'Data base original'!AD42*100-100)*'Data base original'!AD42/('Data base original'!$AN42) -> -0.8208514064 | AH50: =('Data base original'!AE54/'Data base original'!AE42*100-100)*'Data base original'!AE42/('Data base original'!$AN42) -> -0.1549070553 | AI50: =('Data base original'!AF54/'Data base original'!AF42*100-100)*'Data base original'!AF42/('Data base original'!$AN42) -> 1.29505178 | AJ50: =('Data base original'!AG54/'Data base original'!AG42*100-100)*'Data base original'!AG42/('Data base original'!$AN42) -> -0.8380099725 | AK50: =('Data base original'!AH54/'Data base original'!AH42*100-100)*'Data base original'!AH42/('Data base original'!$AN42) -> 0.2134621622 | AL50: =('Data base original'!AI54/'Data base original'!AI42*100-100)*'Data base original'!AI42/('Data base original'!$AN42) -> 3.160295913 | AM50: =('Data base original'!AJ54/'Data base original'!AJ42*100-100)*'Data base original'!AJ42/('Data base original'!$AN42) -> -0.09383215901 | AN50: =('Data base original'!AK54/'Data base original'!AK42*100-100)*'Data base original'!AK42/('Data base original'!$AN42) -> -0.08027329204 | AO50: =-('Data base original'!AL54/'Data base original'!AL42*100-100)*'Data base original'!AL42/('Data base original'!$AN42) -> -0.5700723625 | AP50: =-('Data base original'!AM54/'Data base original'!AM42*100-100)*'Data base original'!AM42/('Data base original'!$AN42) -> 0.07835345247 | AQ50: =(('Data base original'!AJ54-'Data base original'!AL54)/('Data base original'!AJ42-'Data base original'!AL42)*100-100)*(('Data base original'!AJ42-'Data base original'!AL42)/'Data base original'!AN42) -> -0.6639045215 | AR50: =(('Data base original'!AK54-'Data base original'!AM54)/('Data base original'!AK42-'Data base original'!AM42)*100-100)*(('Data base original'!AK42-'Data base original'!AM42)/'Data base original'!AN42) -> -0.001919839571 | AS50: =('Data base original'!AN54/'Data base original'!AN42*100-100)*'Data base original'!AN42/('Data base original'!$AN42) -> 6.74500776
A51: 2009-09-01 | B51: ='Data base original'!B55/'Data base original'!B43*100-100 -> 0.190409256 | C51: ='Data base original'!C55/'Data base original'!C43*100-100 -> -0.8847249328 | D51: ='Data base original'!D55/'Data base original'!D43*100-100 -> 6.790161495 | E51: ='Data base original'!E55/'Data base original'!E43*100-100 -> -27.82090243 | F51: ='Data base original'!F55/'Data base original'!F43*100-100 -> -1.312811188 | G51: ='Data base original'!G55 -> 26.52326424 | K51: ='Data base original'!K55 -> 5.774980921 | N51: ='Data base original'!N55 -> 2.545047012 | Q51: ='Data base original'!Q55 -> 4.49 | R51: =('Data base original'!S55/'Data base original'!S43*100-100)*'Data base original'!S43/'Data base original'!$V43 -> 2.919564812 | S51: =('Data base original'!T55/'Data base original'!T43*100-100)*'Data base original'!T43/'Data base original'!$V43 -> 12.93552088 | T51: =('Data base original'!U55/'Data base original'!U43*100-100)*'Data base original'!U43/'Data base original'!$V43 -> 4.786904633 | U51: =('Data base original'!V55/'Data base original'!V43*100-100)*'Data base original'!V43/'Data base original'!$V43 -> 20.64199033 | V51: =('Data base original'!V55/'Data base original'!V43*100-100)*'Data base original'!V43/('Data base original'!$AC43) -> 4.102377931 | W51: =('Data base original'!W55/'Data base original'!W43*100-100)*'Data base original'!W43/('Data base original'!$AC43) -> 1.038035561 | X51: =('Data base original'!X55/'Data base original'!X43*100-100)*'Data base original'!X43/('Data base original'!$AC43) -> 0.2277257461 | Y51: =('Data base original'!Y55/'Data base original'!Y43*100-100)*'Data base original'!Y43/('Data base original'!$AC43) -> 6.138261698 | Z51: =('Data base original'!Z55/'Data base original'!Z43*100-100)*'Data base original'!Z43/('Data base original'!$AC43) -> 0.06960453026 | AA51: =-('Data base original'!AA55/'Data base original'!AA43*100-100)*'Data base original'!AA43/('Data base original'!$AC43) -> -5.849510131 | AB51: =-('Data base original'!AB55/'Data base original'!AB43*100-100)*'Data base original'!AB43/('Data base original'!$AC43) -> 0.002534618749 | AC51: =(('Data base original'!Y55-'Data base original'!AA55)/('Data base original'!Y43-'Data base original'!AA43)*100-100)*(('Data base original'!Y43-'Data base original'!AA43)/'Data base original'!AC43) -> 0.2887515667 | AD51: =(('Data base original'!Z55-'Data base original'!AB55)/('Data base original'!Z43-'Data base original'!AB43)*100-100)*(('Data base original'!Z43-'Data base original'!AB43)/'Data base original'!AC43) -> 0.07213914901 | AE51: =('Data base original'!AC55/'Data base original'!AC43*100-100)*'Data base original'!AC43/('Data base original'!$AC43) -> 5.729029954 | AF51: =('Data base original'!AC55/'Data base original'!AC43*100-100)*'Data base original'!AC43/('Data base original'!$AN43) -> 3.44743069 | AG51: =('Data base original'!AD55/'Data base original'!AD43*100-100)*'Data base original'!AD43/('Data base original'!$AN43) -> -0.999358653 | AH51: =('Data base original'!AE55/'Data base original'!AE43*100-100)*'Data base original'!AE43/('Data base original'!$AN43) -> -0.459789453 | AI51: =('Data base original'!AF55/'Data base original'!AF43*100-100)*'Data base original'!AF43/('Data base original'!$AN43) -> 1.250782179 | AJ51: =('Data base original'!AG55/'Data base original'!AG43*100-100)*'Data base original'!AG43/('Data base original'!$AN43) -> -0.8224353319 | AK51: =('Data base original'!AH55/'Data base original'!AH43*100-100)*'Data base original'!AH43/('Data base original'!$AN43) -> 0.1752807968 | AL51: =('Data base original'!AI55/'Data base original'!AI43*100-100)*'Data base original'!AI43/('Data base original'!$AN43) -> 2.15123741 | AM51: =('Data base original'!AJ55/'Data base original'!AJ43*100-100)*'Data base original'!AJ43/('Data base original'!$AN43) -> 0.8555204622 | AN51: =('Data base original'!AK55/'Data base original'!AK43*100-100)*'Data base original'!AK43/('Data base original'!$AN43) -> -0.001407877886 | AO51: =-('Data base original'!AL55/'Data base original'!AL43*100-100)*'Data base original'!AL43/('Data base original'!$AN43) -> -0.9719050342 | AP51: =-('Data base original'!AM55/'Data base original'!AM43*100-100)*'Data base original'!AM43/('Data base original'!$AN43) -> 0.08306479529 | AQ51: =(('Data base original'!AJ55-'Data base original'!AL55)/('Data base original'!AJ43-'Data base original'!AL43)*100-100)*(('Data base original'!AJ43-'Data base original'!AL43)/'Data base original'!AN43) -> -0.1163845719 | AR51: =(('Data base original'!AK55-'Data base original'!AM55)/('Data base original'!AK43-'Data base original'!AM43)*100-100)*(('Data base original'!AK43-'Data base original'!AM43)/'Data base original'!AN43) -> 0.08165691741 | AS51: =('Data base original'!AN55/'Data base original'!AN43*100-100)*'Data base original'!AN43/('Data base original'!$AN43) -> 4.708419984
A52: 2009-10-01 | B52: ='Data base original'!B56/'Data base original'!B44*100-100 -> -3.124849522 | C52: ='Data base original'!C56/'Data base original'!C44*100-100 -> -0.301030871 | D52: ='Data base original'!D56/'Data base original'!D44*100-100 -> 6.665499943 | E52: ='Data base original'!E56/'Data base original'!E44*100-100 -> -38.26890364 | F52: ='Data base original'!F56/'Data base original'!F44*100-100 -> -4.686929542 | G52: ='Data base original'!G56 -> 26.66781426 | K52: ='Data base original'!K56 -> 5.613465454 | N52: ='Data base original'!N56 -> 2.660928912 | Q52: ='Data base original'!Q56 -> 4.35 | R52: =('Data base original'!S56/'Data base original'!S44*100-100)*'Data base original'!S44/'Data base original'!$V44 -> 2.546920751 | S52: =('Data base original'!T56/'Data base original'!T44*100-100)*'Data base original'!T44/'Data base original'!$V44 -> 12.2638103 | T52: =('Data base original'!U56/'Data base original'!U44*100-100)*'Data base original'!U44/'Data base original'!$V44 -> 3.695485048 | U52: =('Data base original'!V56/'Data base original'!V44*100-100)*'Data base original'!V44/'Data base original'!$V44 -> 18.5062161 | V52: =('Data base original'!V56/'Data base original'!V44*100-100)*'Data base original'!V44/('Data base original'!$AC44) -> 3.64216535 | W52: =('Data base original'!W56/'Data base original'!W44*100-100)*'Data base original'!W44/('Data base original'!$AC44) -> -2.697071905 | X52: =('Data base original'!X56/'Data base original'!X44*100-100)*'Data base original'!X44/('Data base original'!$AC44) -> 0.2014083241 | Y52: =('Data base original'!Y56/'Data base original'!Y44*100-100)*'Data base original'!Y44/('Data base original'!$AC44) -> 6.799325853 | Z52: =('Data base original'!Z56/'Data base original'!Z44*100-100)*'Data base original'!Z44/('Data base original'!$AC44) -> 0.06027134651 | AA52: =-('Data base original'!AA56/'Data base original'!AA44*100-100)*'Data base original'!AA44/('Data base original'!$AC44) -> -6.261418255 | AB52: =-('Data base original'!AB56/'Data base original'!AB44*100-100)*'Data base original'!AB44/('Data base original'!$AC44) -> -0.01265887215 | AC52: =(('Data base original'!Y56-'Data base original'!AA56)/('Data base original'!Y44-'Data base original'!AA44)*100-100)*(('Data base original'!Y44-'Data base original'!AA44)/'Data base original'!AC44) -> 0.5379075973 | AD52: =(('Data base original'!Z56-'Data base original'!AB56)/('Data base original'!Z44-'Data base original'!AB44)*100-100)*(('Data base original'!Z44-'Data base original'!AB44)/'Data base original'!AC44) -> 0.04761247436 | AE52: =('Data base original'!AC56/'Data base original'!AC44*100-100)*'Data base original'!AC44/('Data base original'!$AC44) -> 1.732021841 | AF52: =('Data base original'!AC56/'Data base original'!AC44*100-100)*'Data base original'!AC44/('Data base original'!$AN44) -> 1.053786934 | AG52: =('Data base original'!AD56/'Data base original'!AD44*100-100)*'Data base original'!AD44/('Data base original'!$AN44) -> -1.476109251 | AH52: =('Data base original'!AE56/'Data base original'!AE44*100-100)*'Data base original'!AE44/('Data base original'!$AN44) -> -0.4408440913 | AI52: =('Data base original'!AF56/'Data base original'!AF44*100-100)*'Data base original'!AF44/('Data base original'!$AN44) -> 1.22355789 | AJ52: =('Data base original'!AG56/'Data base original'!AG44*100-100)*'Data base original'!AG44/('Data base original'!$AN44) -> -0.8551340795 | AK52: =('Data base original'!AH56/'Data base original'!AH44*100-100)*'Data base original'!AH44/('Data base original'!$AN44) -> 0.1454153261 | AL52: =('Data base original'!AI56/'Data base original'!AI44*100-100)*'Data base original'!AI44/('Data base original'!$AN44) -> 1.389779678 | AM52: =('Data base original'!AJ56/'Data base original'!AJ44*100-100)*'Data base original'!AJ44/('Data base original'!$AN44) -> 2.087543337 | AN52: =('Data base original'!AK56/'Data base original'!AK44*100-100)*'Data base original'!AK44/('Data base original'!$AN44) -> 0.1110444308 | AO52: =-('Data base original'!AL56/'Data base original'!AL44*100-100)*'Data base original'!AL44/('Data base original'!$AN44) -> -1.573819153 | AP52: =-('Data base original'!AM56/'Data base original'!AM44*100-100)*'Data base original'!AM44/('Data base original'!$AN44) -> 0.08690433715 | AQ52: =(('Data base original'!AJ56-'Data base original'!AL56)/('Data base original'!AJ44-'Data base original'!AL44)*100-100)*(('Data base original'!AJ44-'Data base original'!AL44)/'Data base original'!AN44) -> 0.5137241835 | AR52: =(('Data base original'!AK56-'Data base original'!AM56)/('Data base original'!AK44-'Data base original'!AM44)*100-100)*(('Data base original'!AK44-'Data base original'!AM44)/'Data base original'!AN44) -> 0.197948768 | AS52: =('Data base original'!AN56/'Data base original'!AN44*100-100)*'Data base original'!AN44/('Data base original'!$AN44) -> 1.752125357
A53: 2009-11-01 | B53: ='Data base original'!B57/'Data base original'!B45*100-100 -> -4.158929895 | C53: ='Data base original'!C57/'Data base original'!C45*100-100 -> -0.2367642625 | D53: ='Data base original'!D57/'Data base original'!D45*100-100 -> 6.886516476 | E53: ='Data base original'!E57/'Data base original'!E45*100-100 -> -42.58371947 | F53: ='Data base original'!F57/'Data base original'!F45*100-100 -> -5.625516256 | G53: ='Data base original'!G57 -> 27.25833994 | K53: ='Data base original'!K57 -> 5.247571939 | N53: ='Data base original'!N57 -> 2.546599361 | Q53: ='Data base original'!Q57 -> 4.28 | R53: =('Data base original'!S57/'Data base original'!S45*100-100)*'Data base original'!S45/'Data base original'!$V45 -> 2.473061812 | S53: =('Data base original'!T57/'Data base original'!T45*100-100)*'Data base original'!T45/'Data base original'!$V45 -> 14.12245248 | T53: =('Data base original'!U57/'Data base original'!U45*100-100)*'Data base original'!U45/'Data base original'!$V45 -> 3.239550086 | U53: =('Data base original'!V57/'Data base original'!V45*100-100)*'Data base original'!V45/'Data base original'!$V45 -> 19.83506438 | V53: =('Data base original'!V57/'Data base original'!V45*100-100)*'Data base original'!V45/('Data base original'!$AC45) -> 3.770567895 | W53: =('Data base original'!W57/'Data base original'!W45*100-100)*'Data base original'!W45/('Data base original'!$AC45) -> -5.921662459 | X53: =('Data base original'!X57/'Data base original'!X45*100-100)*'Data base original'!X45/('Data base original'!$AC45) -> 0.1329200979 | Y53: =('Data base original'!Y57/'Data base original'!Y45*100-100)*'Data base original'!Y45/('Data base original'!$AC45) -> 5.911339429 | Z53: =('Data base original'!Z57/'Data base original'!Z45*100-100)*'Data base original'!Z45/('Data base original'!$AC45) -> 0.03216703342 | AA53: =-('Data base original'!AA57/'Data base original'!AA45*100-100)*'Data base original'!AA45/('Data base original'!$AC45) -> -5.308484855 | AB53: =-('Data base original'!AB57/'Data base original'!AB45*100-100)*'Data base original'!AB45/('Data base original'!$AC45) -> -0.01016774045 | AC53: =(('Data base original'!Y57-'Data base original'!AA57)/('Data base original'!Y45-'Data base original'!AA45)*100-100)*(('Data base original'!Y45-'Data base original'!AA45)/'Data base original'!AC45) -> 0.6028545746 | AD53: =(('Data base original'!Z57-'Data base original'!AB57)/('Data base original'!Z45-'Data base original'!AB45)*100-100)*(('Data base original'!Z45-'Data base original'!AB45)/'Data base original'!AC45) -> 0.02199929297 | AE53: =('Data base original'!AC57/'Data base original'!AC45*100-100)*'Data base original'!AC45/('Data base original'!$AC45) -> -1.393320599 | AF53: =('Data base original'!AC57/'Data base original'!AC45*100-100)*'Data base original'!AC45/('Data base original'!$AN45) -> -0.8562504042 | AG53: =('Data base original'!AD57/'Data base original'!AD45*100-100)*'Data base original'!AD45/('Data base original'!$AN45) -> -1.694246167 | AH53: =('Data base original'!AE57/'Data base original'!AE45*100-100)*'Data base original'!AE45/('Data base original'!$AN45) -> -0.0679379875 | AI53: =('Data base original'!AF57/'Data base original'!AF45*100-100)*'Data base original'!AF45/('Data base original'!$AN45) -> 1.253217291 | AJ53: =('Data base original'!AG57/'Data base original'!AG45*100-100)*'Data base original'!AG45/('Data base original'!$AN45) -> -1.08189541 | AK53: =('Data base original'!AH57/'Data base original'!AH45*100-100)*'Data base original'!AH45/('Data base original'!$AN45) -> 0.05305525111 | AL53: =('Data base original'!AI57/'Data base original'!AI45*100-100)*'Data base original'!AI45/('Data base original'!$AN45) -> 1.403748785 | AM53: =('Data base original'!AJ57/'Data base original'!AJ45*100-100)*'Data base original'!AJ45/('Data base original'!$AN45) -> 2.631517733 | AN53: =('Data base original'!AK57/'Data base original'!AK45*100-100)*'Data base original'!AK45/('Data base original'!$AN45) -> 0.1699585774 | AO53: =-('Data base original'!AL57/'Data base original'!AL45*100-100)*'Data base original'!AL45/('Data base original'!$AN45) -> -1.481570727 | AP53: =-('Data base original'!AM57/'Data base original'!AM45*100-100)*'Data base original'!AM45/('Data base original'!$AN45) -> 0.08134381112 | AQ53: =(('Data base original'!AJ57-'Data base original'!AL57)/('Data base original'!AJ45-'Data base original'!AL45)*100-100)*(('Data base original'!AJ45-'Data base original'!AL45)/'Data base original'!AN45) -> 1.149947006 | AR53: =(('Data base original'!AK57-'Data base original'!AM57)/('Data base original'!AK45-'Data base original'!AM45)*100-100)*(('Data base original'!AK45-'Data base original'!AM45)/'Data base original'!AN45) -> 0.2513023885 | AS53: =('Data base original'!AN57/'Data base original'!AN45*100-100)*'Data base original'!AN45/('Data base original'!$AN45) -> 0.410940754
A54: 2009-12-01 | B54: ='Data base original'!B58/'Data base original'!B46*100-100 -> 0.5395345086 | C54: ='Data base original'!C58/'Data base original'!C46*100-100 -> 0.8077955756 | D54: ='Data base original'!D58/'Data base original'!D46*100-100 -> 7.131900088 | E54: ='Data base original'!E58/'Data base original'!E46*100-100 -> -40.92991794 | F54: ='Data base original'!F58/'Data base original'!F46*100-100 -> -2.339024026 | G54: ='Data base original'!G58 -> 26.55652398 | K54: ='Data base original'!K58 -> 4.739766636 | N54: ='Data base original'!N58 -> 2.220797364 | Q54: ='Data base original'!Q58 -> 4.541432542 | R54: =('Data base original'!S58/'Data base original'!S46*100-100)*'Data base original'!S46/'Data base original'!$V46 -> 2.495396886 | S54: =('Data base original'!T58/'Data base original'!T46*100-100)*'Data base original'!T46/'Data base original'!$V46 -> 15.87216382 | T54: =('Data base original'!U58/'Data base original'!U46*100-100)*'Data base original'!U46/'Data base original'!$V46 -> 4.497195627 | U54: =('Data base original'!V58/'Data base original'!V46*100-100)*'Data base original'!V46/'Data base original'!$V46 -> 22.86475634 | V54: =('Data base original'!V58/'Data base original'!V46*100-100)*'Data base original'!V46/('Data base original'!$AC46) -> 4.480315899 | W54: =('Data base original'!W58/'Data base original'!W46*100-100)*'Data base original'!W46/('Data base original'!$AC46) -> -6.618545393 | X54: =('Data base original'!X58/'Data base original'!X46*100-100)*'Data base original'!X46/('Data base original'!$AC46) -> 0.1169392908 | Y54: =('Data base original'!Y58/'Data base original'!Y46*100-100)*'Data base original'!Y46/('Data base original'!$AC46) -> 5.323366601 | Z54: =('Data base original'!Z58/'Data base original'!Z46*100-100)*'Data base original'!Z46/('Data base original'!$AC46) -> 0.006708145366 | AA54: =-('Data base original'!AA58/'Data base original'!AA46*100-100)*'Data base original'!AA46/('Data base original'!$AC46) -> -4.880085103 | AB54: =-('Data base original'!AB58/'Data base original'!AB46*100-100)*'Data base original'!AB46/('Data base original'!$AC46) -> -0.00326342207 | AC54: =(('Data base original'!Y58-'Data base original'!AA58)/('Data base original'!Y46-'Data base original'!AA46)*100-100)*(('Data base original'!Y46-'Data base original'!AA46)/'Data base original'!AC46) -> 0.4432814978 | AD54: =(('Data base original'!Z58-'Data base original'!AB58)/('Data base original'!Z46-'Data base original'!AB46)*100-100)*(('Data base original'!Z46-'Data base original'!AB46)/'Data base original'!AC46) -> 0.003444723296 | AE54: =('Data base original'!AC58/'Data base original'!AC46*100-100)*'Data base original'!AC46/('Data base original'!$AC46) -> -1.574563982 | AF54: =('Data base original'!AC58/'Data base original'!AC46*100-100)*'Data base original'!AC46/('Data base original'!$AN46) -> -0.9779059539 | AG54: =('Data base original'!AD58/'Data base original'!AD46*100-100)*'Data base original'!AD46/('Data base original'!$AN46) -> -1.43970071 | AH54: =('Data base original'!AE58/'Data base original'!AE46*100-100)*'Data base original'!AE46/('Data base original'!$AN46) -> -0.1308409373 | AI54: =('Data base original'!AF58/'Data base original'!AF46*100-100)*'Data base original'!AF46/('Data base original'!$AN46) -> 1.256050478 | AJ54: =('Data base original'!AG58/'Data base original'!AG46*100-100)*'Data base original'!AG46/('Data base original'!$AN46) -> -0.958899675 | AK54: =('Data base original'!AH58/'Data base original'!AH46*100-100)*'Data base original'!AH46/('Data base original'!$AN46) -> -0.007318985307 | AL54: =('Data base original'!AI58/'Data base original'!AI46*100-100)*'Data base original'!AI46/('Data base original'!$AN46) -> 1.354462681 | AM54: =('Data base original'!AJ58/'Data base original'!AJ46*100-100)*'Data base original'!AJ46/('Data base original'!$AN46) -> 2.766689046 | AN54: =('Data base original'!AK58/'Data base original'!AK46*100-100)*'Data base original'!AK46/('Data base original'!$AN46) -> 0.1850014286 | AO54: =-('Data base original'!AL58/'Data base original'!AL46*100-100)*'Data base original'!AL46/('Data base original'!$AN46) -> -1.259203272 | AP54: =-('Data base original'!AM58/'Data base original'!AM46*100-100)*'Data base original'!AM46/('Data base original'!$AN46) -> 0.07690564561 | AQ54: =(('Data base original'!AJ58-'Data base original'!AL58)/('Data base original'!AJ46-'Data base original'!AL46)*100-100)*(('Data base original'!AJ46-'Data base original'!AL46)/'Data base original'!AN46) -> 1.507485774 | AR54: =(('Data base original'!AK58-'Data base original'!AM58)/('Data base original'!AK46-'Data base original'!AM46)*100-100)*(('Data base original'!AK46-'Data base original'!AM46)/'Data base original'!AN46) -> 0.2619070742 | AS54: =('Data base original'!AN58/'Data base original'!AN46*100-100)*'Data base original'!AN46/('Data base original'!$AN46) -> 0.865239746
A55: 2010-01-01 | B55: ='Data base original'!B59/'Data base original'!B47*100-100 -> 1.702202424 | C55: ='Data base original'!C59/'Data base original'!C47*100-100 -> 1.406485298 | D55: ='Data base original'!D59/'Data base original'!D47*100-100 -> 7.481898842 | E55: ='Data base original'!E59/'Data base original'!E47*100-100 -> -29.95339864 | F55: ='Data base original'!F59/'Data base original'!F47*100-100 -> -0.271676367 | G55: ='Data base original'!G59 -> 30.35391496 | K55: ='Data base original'!K59 -> 7.040624887 | N55: ='Data base original'!N59 -> 1.837065704 | Q55: ='Data base original'!Q59 -> 4.583830998 | R55: =('Data base original'!S59/'Data base original'!S47*100-100)*'Data base original'!S47/'Data base original'!$V47 -> 2.779741091 | S55: =('Data base original'!T59/'Data base original'!T47*100-100)*'Data base original'!T47/'Data base original'!$V47 -> 19.00723718 | T55: =('Data base original'!U59/'Data base original'!U47*100-100)*'Data base original'!U47/'Data base original'!$V47 -> 6.371268879 | U55: =('Data base original'!V59/'Data base original'!V47*100-100)*'Data base original'!V47/'Data base original'!$V47 -> 28.15824715 | V55: =('Data base original'!V59/'Data base original'!V47*100-100)*'Data base original'!V47/('Data base original'!$AC47) -> 5.478831864 | W55: =('Data base original'!W59/'Data base original'!W47*100-100)*'Data base original'!W47/('Data base original'!$AC47) -> -5.920276102 | X55: =('Data base original'!X59/'Data base original'!X47*100-100)*'Data base original'!X47/('Data base original'!$AC47) -> 0.1842080335 | Y55: =('Data base original'!Y59/'Data base original'!Y47*100-100)*'Data base original'!Y47/('Data base original'!$AC47) -> 3.750207754 | Z55: =('Data base original'!Z59/'Data base original'!Z47*100-100)*'Data base original'!Z47/('Data base original'!$AC47) -> 0.005428527509 | AA55: =-('Data base original'!AA59/'Data base original'!AA47*100-100)*'Data base original'!AA47/('Data base original'!$AC47) -> -3.285344849 | AB55: =-('Data base original'!AB59/'Data base original'!AB47*100-100)*'Data base original'!AB47/('Data base original'!$AC47) -> -0.000180950917 | AC55: =(('Data base original'!Y59-'Data base original'!AA59)/('Data base original'!Y47-'Data base original'!AA47)*100-100)*(('Data base original'!Y47-'Data base original'!AA47)/'Data base original'!AC47) -> 0.4648629057 | AD55: =(('Data base original'!Z59-'Data base original'!AB59)/('Data base original'!Z47-'Data base original'!AB47)*100-100)*(('Data base original'!Z47-'Data base original'!AB47)/'Data base original'!AC47) -> 0.005247576592 | AE55: =('Data base original'!AC59/'Data base original'!AC47*100-100)*'Data base original'!AC47/('Data base original'!$AC47) -> 0.2128742777 | AF55: =('Data base original'!AC59/'Data base original'!AC47*100-100)*'Data base original'!AC47/('Data base original'!$AN47) -> 0.1327110699 | AG55: =('Data base original'!AD59/'Data base original'!AD47*100-100)*'Data base original'!AD47/('Data base original'!$AN47) -> -1.167688653 | AH55: =('Data base original'!AE59/'Data base original'!AE47*100-100)*'Data base original'!AE47/('Data base original'!$AN47) -> -0.2576563504 | AI55: =('Data base original'!AF59/'Data base original'!AF47*100-100)*'Data base original'!AF47/('Data base original'!$AN47) -> 1.329118704 | AJ55: =('Data base original'!AG59/'Data base original'!AG47*100-100)*'Data base original'!AG47/('Data base original'!$AN47) -> -0.9609092787 | AK55: =('Data base original'!AH59/'Data base original'!AH47*100-100)*'Data base original'!AH47/('Data base original'!$AN47) -> -0.005978890793 | AL55: =('Data base original'!AI59/'Data base original'!AI47*100-100)*'Data base original'!AI47/('Data base original'!$AN47) -> 1.037506766 | AM55: =('Data base original'!AJ59/'Data base original'!AJ47*100-100)*'Data base original'!AJ47/('Data base original'!$AN47) -> 2.816283182 | AN55: =('Data base original'!AK59/'Data base original'!AK47*100-100)*'Data base original'!AK47/('Data base original'!$AN47) -> 0.2056512814 | AO55: =-('Data base original'!AL59/'Data base original'!AL47*100-100)*'Data base original'!AL47/('Data base original'!$AN47) -> -1.16204819 | AP55: =-('Data base original'!AM59/'Data base original'!AM47*100-100)*'Data base original'!AM47/('Data base original'!$AN47) -> 0.02323870761 | AQ55: =(('Data base original'!AJ59-'Data base original'!AL59)/('Data base original'!AJ47-'Data base original'!AL47)*100-100)*(('Data base original'!AJ47-'Data base original'!AL47)/'Data base original'!AN47) -> 1.654234992 | AR55: =(('Data base original'!AK59-'Data base original'!AM59)/('Data base original'!AK47-'Data base original'!AM47)*100-100)*(('Data base original'!AK47-'Data base original'!AM47)/'Data base original'!AN47) -> 0.228889989 | AS55: =('Data base original'!AN59/'Data base original'!AN47*100-100)*'Data base original'!AN47/('Data base original'!$AN47) -> 1.990228349
A56: 2010-02-01 | B56: ='Data base original'!B60/'Data base original'!B48*100-100 -> 3.517441588 | C56: ='Data base original'!C60/'Data base original'!C48*100-100 -> 2.311812815 | D56: ='Data base original'!D60/'Data base original'!D48*100-100 -> 8.937570741 | E56: ='Data base original'!E60/'Data base original'!E48*100-100 -> -27.59056686 | F56: ='Data base original'!F60/'Data base original'!F48*100-100 -> 1.557876943 | G56: ='Data base original'!G60 -> 29.546126 | K56: ='Data base original'!K60 -> 5.62794949 | N56: ='Data base original'!N60 -> 1.978243918 | Q56: ='Data base original'!Q60 -> 4.602983966 | R56: =('Data base original'!S60/'Data base original'!S48*100-100)*'Data base original'!S48/'Data base original'!$V48 -> 3.377249601 | S56: =('Data base original'!T60/'Data base original'!T48*100-100)*'Data base original'!T48/'Data base original'!$V48 -> 20.76528447 | T56: =('Data base original'!U60/'Data base original'!U48*100-100)*'Data base original'!U48/'Data base original'!$V48 -> 7.569251177 | U56: =('Data base original'!V60/'Data base original'!V48*100-100)*'Data base original'!V48/'Data base original'!$V48 -> 31.71178525 | V56: =('Data base original'!V60/'Data base original'!V48*100-100)*'Data base original'!V48/('Data base original'!$AC48) -> 6.104721082 | W56: =('Data base original'!W60/'Data base original'!W48*100-100)*'Data base original'!W48/('Data base original'!$AC48) -> -4.55516548 | X56: =('Data base original'!X60/'Data base original'!X48*100-100)*'Data base original'!X48/('Data base original'!$AC48) -> 0.1697532367 | Y56: =('Data base original'!Y60/'Data base original'!Y48*100-100)*'Data base original'!Y48/('Data base original'!$AC48) -> 1.203073531 | Z56: =('Data base original'!Z60/'Data base original'!Z48*100-100)*'Data base original'!Z48/('Data base original'!$AC48) -> 0.004385444221 | AA56: =-('Data base original'!AA60/'Data base original'!AA48*100-100)*'Data base original'!AA48/('Data base original'!$AC48) -> -0.9284350869 | AB56: =-('Data base original'!AB60/'Data base original'!AB48*100-100)*'Data base original'!AB48/('Data base original'!$AC48) -> 0.0009136342127 | AC56: =(('Data base original'!Y60-'Data base original'!AA60)/('Data base original'!Y48-'Data base original'!AA48)*100-100)*(('Data base original'!Y48-'Data base original'!AA48)/'Data base original'!AC48) -> 0.2746384443 | AD56: =(('Data base original'!Z60-'Data base original'!AB60)/('Data base original'!Z48-'Data base original'!AB48)*100-100)*(('Data base original'!Z48-'Data base original'!AB48)/'Data base original'!AC48) -> 0.005299078434 | AE56: =('Data base original'!AC60/'Data base original'!AC48*100-100)*'Data base original'!AC48/('Data base original'!$AC48) -> 1.999246361 | AF56: =('Data base original'!AC60/'Data base original'!AC48*100-100)*'Data base original'!AC48/('Data base original'!$AN48) -> 1.237126937 | AG56: =('Data base original'!AD60/'Data base original'!AD48*100-100)*'Data base original'!AD48/('Data base original'!$AN48) -> -1.100630746 | AH56: =('Data base original'!AE60/'Data base original'!AE48*100-100)*'Data base original'!AE48/('Data base original'!$AN48) -> -0.113862252 | AI56: =('Data base original'!AF60/'Data base original'!AF48*100-100)*'Data base original'!AF48/('Data base original'!$AN48) -> 1.350630189 | AJ56: =('Data base original'!AG60/'Data base original'!AG48*100-100)*'Data base original'!AG48/('Data base original'!$AN48) -> -1.064900387 | AK56: =('Data base original'!AH60/'Data base original'!AH48*100-100)*'Data base original'!AH48/('Data base original'!$AN48) -> -0.05789222744 | AL56: =('Data base original'!AI60/'Data base original'!AI48*100-100)*'Data base original'!AI48/('Data base original'!$AN48) -> 0.7886685282 | AM56: =('Data base original'!AJ60/'Data base original'!AJ48*100-100)*'Data base original'!AJ48/('Data base original'!$AN48) -> 2.598252919 | AN56: =('Data base original'!AK60/'Data base original'!AK48*100-100)*'Data base original'!AK48/('Data base original'!$AN48) -> 0.2178873482 | AO56: =-('Data base original'!AL60/'Data base original'!AL48*100-100)*'Data base original'!AL48/('Data base original'!$AN48) -> -0.7704641363 | AP56: =-('Data base original'!AM60/'Data base original'!AM48*100-100)*'Data base original'!AM48/('Data base original'!$AN48) -> 0.02227493908 | AQ56: =(('Data base original'!AJ60-'Data base original'!AL60)/('Data base original'!AJ48-'Data base original'!AL48)*100-100)*(('Data base original'!AJ48-'Data base original'!AL48)/'Data base original'!AN48) -> 1.827788783 | AR56: =(('Data base original'!AK60-'Data base original'!AM60)/('Data base original'!AK48-'Data base original'!AM48)*100-100)*(('Data base original'!AK48-'Data base original'!AM48)/'Data base original'!AN48) -> 0.2401622873 | AS56: =('Data base original'!AN60/'Data base original'!AN48*100-100)*'Data base original'!AN48/('Data base original'!$AN48) -> 3.107091112
